Workbook

Sheet Produktionsanlæg
A1: Produktionsanlæg | B1: Enhed | C1: Standard-levetid | D1: Samlet mængde per 31/12-2019 | E1: Samlet mængde per 31/12-2020 | F1: Samlet mængde per 31/12-2021 | G1: Afvigelse 2019-2020 | H1: Afvigelse 2020-2021 | I1: Bemærkninger
A3: Boringer | G3: =IF($D$3="",IF($E$3>0,"Ny data",IF($E$3="","",0)),IF($D$3=0,IF($E$3=0,0,"Ny data"),($E$3-$D$3)/$D$3)) ->  | H3: =IF($E$3="",IF($F$3>0,"Ny data",IF($F$3="","",0)),IF($E$3=0,IF($F$3=0,0,"Ny data"),($F$3-$E$3)/$E$3)) -> 
A4: Boring (inkl. etablering, forerør, filter og prøvepumpning) | B4: dybdemeter | C4: 30 | D4: 649 | E4: 649 | F4: 649 | G4: =IF($D$4="",IF($E$4>0,"Ny data",IF($E$4="","",0)),IF($D$4=0,IF($E$4=0,0,"Ny data"),($E$4-$D$4)/$D$4)) -> 0 | H4: =IF($E$4="",IF($F$4>0,"Ny data",IF($F$4="","",0)),IF($E$4=0,IF($F$4=0,0,"Ny data"),($F$4-$E$4)/$E$4)) -> 0
A5: Råvandsstationer | G5: =IF($D$5="",IF($E$5>0,"Ny data",IF($E$5="","",0)),IF($D$5=0,IF($E$5=0,0,"Ny data"),($E$5-$D$5)/$D$5)) ->  | H5: =IF($E$5="",IF($F$5>0,"Ny data",IF($F$5="","",0)),IF($E$5=0,IF($F$5=0,0,"Ny data"),($F$5-$E$5)/$E$5)) -> 
A6: Råvandsstation komplet montering og boringshus/tørbrønd | B6: stk. | C6: 30 | D6: 13 | E6: 13 | F6: 13 | G6: =IF($D$6="",IF($E$6>0,"Ny data",IF($E$6="","",0)),IF($D$6=0,IF($E$6=0,0,"Ny data"),($E$6-$D$6)/$D$6)) -> 0 | H6: =IF($E$6="",IF($F$6>0,"Ny data",IF($F$6="","",0)),IF($E$6=0,IF($F$6=0,0,"Ny data"),($F$6-$E$6)/$E$6)) -> 0
A7: Instrumenter (flowmåler+tryk transducer+alarmer) | B7: stk. | C7: 10 | D7: 13 | E7: 13 | F7: 13 | G7: =IF($D$7="",IF($E$7>0,"Ny data",IF($E$7="","",0)),IF($D$7=0,IF($E$7=0,0,"Ny data"),($E$7-$D$7)/$D$7)) -> 0 | H7: =IF($E$7="",IF($F$7>0,"Ny data",IF($F$7="","",0)),IF($E$7=0,IF($F$7=0,0,"Ny data"),($F$7-$E$7)/$E$7)) -> 0
A8: Pumpe inkl. stigrør og forerørsforsejlinger mv. - 1 | B8: m³/h | C8: 15 | D8: 27 | E8: 27 | F8: 27 | G8: =IF($D$8="",IF($E$8>0,"Ny data",IF($E$8="","",0)),IF($D$8=0,IF($E$8=0,0,"Ny data"),($E$8-$D$8)/$D$8)) -> 0 | H8: =IF($E$8="",IF($F$8>0,"Ny data",IF($F$8="","",0)),IF($E$8=0,IF($F$8=0,0,"Ny data"),($F$8-$E$8)/$E$8)) -> 0
A9: Pumpe inkl. stigrør og forerørsforsejlinger mv. - 2 | B9: m³/h | C9: 15 | D9: 27 | E9: 27 | F9: 27 | G9: =IF($D$9="",IF($E$9>0,"Ny data",IF($E$9="","",0)),IF($D$9=0,IF($E$9=0,0,"Ny data"),($E$9-$D$9)/$D$9)) -> 0 | H9: =IF($E$9="",IF($F$9>0,"Ny data",IF($F$9="","",0)),IF($E$9=0,IF($F$9=0,0,"Ny data"),($F$9-$E$9)/$E$9)) -> 0
A10: Pumpe inkl. stigrør og forerørsforsejlinger mv. - 3 | B10: m³/h | C10: 15 | D10: 28 | E10: 28 | F10: 28 | G10: =IF($D$10="",IF($E$10>0,"Ny data",IF($E$10="","",0)),IF($D$10=0,IF($E$10=0,0,"Ny data"),($E$10-$D$10)/$D$10)) -> 0 | H10: =IF($E$10="",IF($F$10>0,"Ny data",IF($F$10="","",0)),IF($E$10=0,IF($F$10=0,0,"Ny data"),($F$10-$E$10)/$E$10)) -> 0
A11: Pumpe inkl. stigrør og forerørsforsejlinger mv. - 4 | B11: m³/h | C11: 15 | D11: 11 | E11: 11 | F11: 11 | G11: =IF($D$11="",IF($E$11>0,"Ny data",IF($E$11="","",0)),IF($D$11=0,IF($E$11=0,0,"Ny data"),($E$11-$D$11)/$D$11)) -> 0 | H11: =IF($E$11="",IF($F$11>0,"Ny data",IF($F$11="","",0)),IF($E$11=0,IF($F$11=0,0,"Ny data"),($F$11-$E$11)/$E$11)) -> 0
A12: Pumpe inkl. stigrør og forerørsforsejlinger mv. - 5 | B12: m³/h | C12: 15 | D12: 30 | E12: 30 | F12: 30 | G12: =IF($D$12="",IF($E$12>0,"Ny data",IF($E$12="","",0)),IF($D$12=0,IF($E$12=0,0,"Ny data"),($E$12-$D$12)/$D$12)) -> 0 | H12: =IF($E$12="",IF($F$12>0,"Ny data",IF($F$12="","",0)),IF($E$12=0,IF($F$12=0,0,"Ny data"),($F$12-$E$12)/$E$12)) -> 0
A13: Pumpe inkl. stigrør og forerørsforsejlinger mv. - 6 | B13: m³/h | C13: 15 | D13: 28 | E13: 28 | F13: 28 | G13: =IF($D$13="",IF($E$13>0,"Ny data",IF($E$13="","",0)),IF($D$13=0,IF($E$13=0,0,"Ny data"),($E$13-$D$13)/$D$13)) -> 0 | H13: =IF($E$13="",IF($F$13>0,"Ny data",IF($F$13="","",0)),IF($E$13=0,IF($F$13=0,0,"Ny data"),($F$13-$E$13)/$E$13)) -> 0
A14: Pumpe inkl. stigrør og forerørsforsejlinger mv. - 7 | B14: m³/h | C14: 15 | D14: 21 | E14: 21 | F14: 21 | G14: =IF($D$14="",IF($E$14>0,"Ny data",IF($E$14="","",0)),IF($D$14=0,IF($E$14=0,0,"Ny data"),($E$14-$D$14)/$D$14)) -> 0 | H14: =IF($E$14="",IF($F$14>0,"Ny data",IF($F$14="","",0)),IF($E$14=0,IF($F$14=0,0,"Ny data"),($F$14-$E$14)/$E$14)) -> 0
A15: Pumpe inkl. stigrør og forerørsforsejlinger mv. - 8 | B15: m³/h | C15: 15 | D15: 23 | E15: 23 | F15: 23 | G15: =IF($D$15="",IF($E$15>0,"Ny data",IF($E$15="","",0)),IF($D$15=0,IF($E$15=0,0,"Ny data"),($E$15-$D$15)/$D$15)) -> 0 | H15: =IF($E$15="",IF($F$15>0,"Ny data",IF($F$15="","",0)),IF($E$15=0,IF($F$15=0,0,"Ny data"),($F$15-$E$15)/$E$15)) -> 0
A16: Pumpe inkl. stigrør og forerørsforsejlinger mv. - 9 | B16: m³/h | C16: 15 | D16: 21 | E16: 21 | F16: 21 | G16: =IF($D$16="",IF($E$16>0,"Ny data",IF($E$16="","",0)),IF($D$16=0,IF($E$16=0,0,"Ny data"),($E$16-$D$16)/$D$16)) -> 0 | H16: =IF($E$16="",IF($F$16>0,"Ny data",IF($F$16="","",0)),IF($E$16=0,IF($F$16=0,0,"Ny data"),($F$16-$E$16)/$E$16)) -> 0
A17: Pumpe inkl. stigrør og forerørsforsejlinger mv. - 10 | B17: m³/h | C17: 15 | D17: 18 | E17: 18 | F17: 18 | G17: =IF($D$17="",IF($E$17>0,"Ny data",IF($E$17="","",0)),IF($D$17=0,IF($E$17=0,0,"Ny data"),($E$17-$D$17)/$D$17)) -> 0 | H17: =IF($E$17="",IF($F$17>0,"Ny data",IF($F$17="","",0)),IF($E$17=0,IF($F$17=0,0,"Ny data"),($F$17-$E$17)/$E$17)) -> 0
A18: Pumpe inkl. stigrør og forerørsforsejlinger mv. - 11 | B18: m³/h | C18: 15 | D18: 20 | E18: 20 | F18: 20 | G18: =IF($D$18="",IF($E$18>0,"Ny data",IF($E$18="","",0)),IF($D$18=0,IF($E$18=0,0,"Ny data"),($E$18-$D$18)/$D$18)) -> 0 | H18: =IF($E$18="",IF($F$18>0,"Ny data",IF($F$18="","",0)),IF($E$18=0,IF($F$18=0,0,"Ny data"),($F$18-$E$18)/$E$18)) -> 0
A19: Pumpe inkl. stigrør og forerørsforsejlinger mv. - 12 | B19: m³/h | C19: 15 | D19: 20 | E19: 20 | F19: 20 | G19: =IF($D$19="",IF($E$19>0,"Ny data",IF($E$19="","",0)),IF($D$19=0,IF($E$19=0,0,"Ny data"),($E$19-$D$19)/$D$19)) -> 0 | H19: =IF($E$19="",IF($F$19>0,"Ny data",IF($F$19="","",0)),IF($E$19=0,IF($F$19=0,0,"Ny data"),($F$19-$E$19)/$E$19)) -> 0
A20: Pumpe inkl. stigrør og forerørsforsejlinger mv. - 13 | B20: m³/h | C20: 15 | D20: 0 | E20: 0 | F20: 0 | G20: =IF($D$20="",IF($E$20>0,"Ny data",IF($E$20="","",0)),IF($D$20=0,IF($E$20=0,0,"Ny data"),($E$20-$D$20)/$D$20)) -> 0 | H20: =IF($E$20="",IF($F$20>0,"Ny data",IF($F$20="","",0)),IF($E$20=0,IF($F$20=0,0,"Ny data"),($F$20-$E$20)/$E$20)) -> 0
A21: Pumpe inkl. stigrør og forerørsforsejlinger mv. - 14 | B21: m³/h | C21: 15 | D21: 0 | E21: 0 | F21: 0 | G21: =IF($D$21="",IF($E$21>0,"Ny data",IF($E$21="","",0)),IF($D$21=0,IF($E$21=0,0,"Ny data"),($E$21-$D$21)/$D$21)) -> 0 | H21: =IF($E$21="",IF($F$21>0,"Ny data",IF($F$21="","",0)),IF($E$21=0,IF($F$21=0,0,"Ny data"),($F$21-$E$21)/$E$21)) -> 0
A22: Pumpe inkl. stigrør og forerørsforsejlinger mv. - 15 | B22: m³/h | C22: 15 | D22: 0 | E22: 0 | F22: 0 | G22: =IF($D$22="",IF($E$22>0,"Ny data",IF($E$22="","",0)),IF($D$22=0,IF($E$22=0,0,"Ny data"),($E$22-$D$22)/$D$22)) -> 0 | H22: =IF($E$22="",IF($F$22>0,"Ny data",IF($F$22="","",0)),IF($E$22=0,IF($F$22=0,0,"Ny data"),($F$22-$E$22)/$E$22)) -> 0
A23: Pumpe inkl. stigrør og forerørsforsejlinger mv. - 16 | B23: m³/h | C23: 15 | D23: 0 | E23: 0 | F23: 0 | G23: =IF($D$23="",IF($E$23>0,"Ny data",IF($E$23="","",0)),IF($D$23=0,IF($E$23=0,0,"Ny data"),($E$23-$D$23)/$D$23)) -> 0 | H23: =IF($E$23="",IF($F$23>0,"Ny data",IF($F$23="","",0)),IF($E$23=0,IF($F$23=0,0,"Ny data"),($F$23-$E$23)/$E$23)) -> 0
A24: Pumpe inkl. stigrør og forerørsforsejlinger mv. - 17 | B24: m³/h | C24: 15 | D24: 0 | E24: 0 | F24: 0 | G24: =IF($D$24="",IF($E$24>0,"Ny data",IF($E$24="","",0)),IF($D$24=0,IF($E$24=0,0,"Ny data"),($E$24-$D$24)/$D$24)) -> 0 | H24: =IF($E$24="",IF($F$24>0,"Ny data",IF($F$24="","",0)),IF($E$24=0,IF($F$24=0,0,"Ny data"),($F$24-$E$24)/$E$24)) -> 0
A25: Pumpe inkl. stigrør og forerørsforsejlinger mv. - 18 | B25: m³/h | C25: 15 | D25: 0 | E25: 0 | F25: 0 | G25: =IF($D$25="",IF($E$25>0,"Ny data",IF($E$25="","",0)),IF($D$25=0,IF($E$25=0,0,"Ny data"),($E$25-$D$25)/$D$25)) -> 0 | H25: =IF($E$25="",IF($F$25>0,"Ny data",IF($F$25="","",0)),IF($E$25=0,IF($F$25=0,0,"Ny data"),($F$25-$E$25)/$E$25)) -> 0
A26: Pumpe inkl. stigrør og forerørsforsejlinger mv. - 19 | B26: m³/h | C26: 15 | D26: 0 | E26: 0 | F26: 0 | G26: =IF($D$26="",IF($E$26>0,"Ny data",IF($E$26="","",0)),IF($D$26=0,IF($E$26=0,0,"Ny data"),($E$26-$D$26)/$D$26)) -> 0 | H26: =IF($E$26="",IF($F$26>0,"Ny data",IF($F$26="","",0)),IF($E$26=0,IF($F$26=0,0,"Ny data"),($F$26-$E$26)/$E$26)) -> 0
A27: Pumpe inkl. stigrør og forerørsforsejlinger mv. - 20 | B27: m³/h | C27: 15 | D27: 0 | E27: 0 | F27: 0 | G27: =IF($D$27="",IF($E$27>0,"Ny data",IF($E$27="","",0)),IF($D$27=0,IF($E$27=0,0,"Ny data"),($E$27-$D$27)/$D$27)) -> 0 | H27: =IF($E$27="",IF($F$27>0,"Ny data",IF($F$27="","",0)),IF($E$27=0,IF($F$27=0,0,"Ny data"),($F$27-$E$27)/$E$27)) -> 0
A28: Pumpe inkl. stigrør og forerørsforsejlinger mv. - 21 | B28: m³/h | C28: 15 | D28: 0 | E28: 0 | F28: 0 | G28: =IF($D$28="",IF($E$28>0,"Ny data",IF($E$28="","",0)),IF($D$28=0,IF($E$28=0,0,"Ny data"),($E$28-$D$28)/$D$28)) -> 0 | H28: =IF($E$28="",IF($F$28>0,"Ny data",IF($F$28="","",0)),IF($E$28=0,IF($F$28=0,0,"Ny data"),($F$28-$E$28)/$E$28)) -> 0
A29: Pumpe inkl. stigrør og forerørsforsejlinger mv. - 22 | B29: m³/h | C29: 15 | D29: 0 | E29: 0 | F29: 0 | G29: =IF($D$29="",IF($E$29>0,"Ny data",IF($E$29="","",0)),IF($D$29=0,IF($E$29=0,0,"Ny data"),($E$29-$D$29)/$D$29)) -> 0 | H29: =IF($E$29="",IF($F$29>0,"Ny data",IF($F$29="","",0)),IF($E$29=0,IF($F$29=0,0,"Ny data"),($F$29-$E$29)/$E$29)) -> 0
A30: Pumpe inkl. stigrør og forerørsforsejlinger mv. - 23 | B30: m³/h | C30: 15 | D30: 0 | E30: 0 | F30: 0 | G30: =IF($D$30="",IF($E$30>0,"Ny data",IF($E$30="","",0)),IF($D$30=0,IF($E$30=0,0,"Ny data"),($E$30-$D$30)/$D$30)) -> 0 | H30: =IF($E$30="",IF($F$30>0,"Ny data",IF($F$30="","",0)),IF($E$30=0,IF($F$30=0,0,"Ny data"),($F$30-$E$30)/$E$30)) -> 0
A31: Pumpe inkl. stigrør og forerørsforsejlinger mv. - 24 | B31: m³/h | C31: 15 | D31: 0 | E31: 0 | F31: 0 | G31: =IF($D$31="",IF($E$31>0,"Ny data",IF($E$31="","",0)),IF($D$31=0,IF($E$31=0,0,"Ny data"),($E$31-$D$31)/$D$31)) -> 0 | H31: =IF($E$31="",IF($F$31>0,"Ny data",IF($F$31="","",0)),IF($E$31=0,IF($F$31=0,0,"Ny data"),($F$31-$E$31)/$E$31)) -> 0
A32: Pumpe inkl. stigrør og forerørsforsejlinger mv. - 25 | B32: m³/h | C32: 15 | D32: 0 | E32: 0 | F32: 0 | G32: =IF($D$32="",IF($E$32>0,"Ny data",IF($E$32="","",0)),IF($D$32=0,IF($E$32=0,0,"Ny data"),($E$32-$D$32)/$D$32)) -> 0 | H32: =IF($E$32="",IF($F$32>0,"Ny data",IF($F$32="","",0)),IF($E$32=0,IF($F$32=0,0,"Ny data"),($F$32-$E$32)/$E$32)) -> 0
A33: Pumpe inkl. stigrør og forerørsforsejlinger mv. - 26 | B33: m³/h | C33: 15 | D33: 0 | E33: 0 | F33: 0 | G33: =IF($D$33="",IF($E$33>0,"Ny data",IF($E$33="","",0)),IF($D$33=0,IF($E$33=0,0,"Ny data"),($E$33-$D$33)/$D$33)) -> 0 | H33: =IF($E$33="",IF($F$33>0,"Ny data",IF($F$33="","",0)),IF($E$33=0,IF($F$33=0,0,"Ny data"),($F$33-$E$33)/$E$33)) -> 0
A34: Pumpe inkl. stigrør og forerørsforsejlinger mv. - 27 | B34: m³/h | C34: 15 | D34: 0 | E34: 0 | F34: 0 | G34: =IF($D$34="",IF($E$34>0,"Ny data",IF($E$34="","",0)),IF($D$34=0,IF($E$34=0,0,"Ny data"),($E$34-$D$34)/$D$34)) -> 0 | H34: =IF($E$34="",IF($F$34>0,"Ny data",IF($F$34="","",0)),IF($E$34=0,IF($F$34=0,0,"Ny data"),($F$34-$E$34)/$E$34)) -> 0
A35: Pumpe inkl. stigrør og forerørsforsejlinger mv. - 28 | B35: m³/h | C35: 15 | D35: 0 | E35: 0 | F35: 0 | G35: =IF($D$35="",IF($E$35>0,"Ny data",IF($E$35="","",0)),IF($D$35=0,IF($E$35=0,0,"Ny data"),($E$35-$D$35)/$D$35)) -> 0 | H35: =IF($E$35="",IF($F$35>0,"Ny data",IF($F$35="","",0)),IF($E$35=0,IF($F$35=0,0,"Ny data"),($F$35-$E$35)/$E$35)) -> 0
A36: Pumpe inkl. stigrør og forerørsforsejlinger mv. - 29 | B36: m³/h | C36: 15 | D36: 0 | E36: 0 | F36: 0 | G36: =IF($D$36="",IF($E$36>0,"Ny data",IF($E$36="","",0)),IF($D$36=0,IF($E$36=0,0,"Ny data"),($E$36-$D$36)/$D$36)) -> 0 | H36: =IF($E$36="",IF($F$36>0,"Ny data",IF($F$36="","",0)),IF($E$36=0,IF($F$36=0,0,"Ny data"),($F$36-$E$36)/$E$36)) -> 0
A37: Pumpe inkl. stigrør og forerørsforsejlinger mv. - 30 | B37: m³/h | C37: 15 | D37: 0 | E37: 0 | F37: 0 | G37: =IF($D$37="",IF($E$37>0,"Ny data",IF($E$37="","",0)),IF($D$37=0,IF($E$37=0,0,"Ny data"),($E$37-$D$37)/$D$37)) -> 0 | H37: =IF($E$37="",IF($F$37>0,"Ny data",IF($F$37="","",0)),IF($E$37=0,IF($F$37=0,0,"Ny data"),($F$37-$E$37)/$E$37)) -> 0
A38: Erstatninger (OBS ingen øst-tillæg eller øvrige tillæg) | B38: stk. | C38: 30 | D38: 0 | E38: 0 | F38: 0 | G38: =IF($D$38="",IF($E$38>0,"Ny data",IF($E$38="","",0)),IF($D$38=0,IF($E$38=0,0,"Ny data"),($E$38-$D$38)/$D$38)) -> 0 | H38: =IF($E$38="",IF($F$38>0,"Ny data",IF($F$38="","",0)),IF($E$38=0,IF($F$38=0,0,"Ny data"),($F$38-$E$38)/$E$38)) -> 0
A39: Hegn | B39: stk. | C39: 15 | D39: 5 | E39: 5 | F39: 5 | G39: =IF($D$39="",IF($E$39>0,"Ny data",IF($E$39="","",0)),IF($D$39=0,IF($E$39=0,0,"Ny data"),($E$39-$D$39)/$D$39)) -> 0 | H39: =IF($E$39="",IF($F$39>0,"Ny data",IF($F$39="","",0)),IF($E$39=0,IF($F$39=0,0,"Ny data"),($F$39-$E$39)/$E$39)) -> 0
A40: Elanlæg | B40: boring | C40: 20 | D40: 12 | E40: 12 | F40: 12 | G40: =IF($D$40="",IF($E$40>0,"Ny data",IF($E$40="","",0)),IF($D$40=0,IF($E$40=0,0,"Ny data"),($E$40-$D$40)/$D$40)) -> 0 | H40: =IF($E$40="",IF($F$40>0,"Ny data",IF($F$40="","",0)),IF($E$40=0,IF($F$40=0,0,"Ny data"),($F$40-$E$40)/$E$40)) -> 0
A41: SRO anlæg | B41: boring | C41: 10 | D41: 12 | E41: 12 | F41: 12 | G41: =IF($D$41="",IF($E$41>0,"Ny data",IF($E$41="","",0)),IF($D$41=0,IF($E$41=0,0,"Ny data"),($E$41-$D$41)/$D$41)) -> 0 | H41: =IF($E$41="",IF($F$41>0,"Ny data",IF($F$41="","",0)),IF($E$41=0,IF($F$41=0,0,"Ny data"),($F$41-$E$41)/$E$41)) -> 0
A42: Råvandsledninger - Land | G42: =IF($D$42="",IF($E$42>0,"Ny data",IF($E$42="","",0)),IF($D$42=0,IF($E$42=0,0,"Ny data"),($E$42-$D$42)/$D$42)) ->  | H42: =IF($E$42="",IF($F$42>0,"Ny data",IF($F$42="","",0)),IF($E$42=0,IF($F$42=0,0,"Ny data"),($F$42-$E$42)/$E$42)) -> 
A43: Ø 50mm < Ledningsnet ≤ Ø110 mm | B43: meter | C43: 75 | D43: 170.4434593 | E43: 171 | F43: 179 | G43: =IF($D$43="",IF($E$43>0,"Ny data",IF($E$43="","",0)),IF($D$43=0,IF($E$43=0,0,"Ny data"),($E$43-$D$43)/$D$43)) -> 0.003265251314 | H43: =IF($E$43="",IF($F$43>0,"Ny data",IF($F$43="","",0)),IF($E$43=0,IF($F$43=0,0,"Ny data"),($F$43-$E$43)/$E$43)) -> 0.04678362573
A44: Ø110 mm < Ledningsnet ≤ Ø 250 mm | B44: meter | C44: 75 | D44: 0 | E44: 0 | F44: 0 | G44: =IF($D$44="",IF($E$44>0,"Ny data",IF($E$44="","",0)),IF($D$44=0,IF($E$44=0,0,"Ny data"),($E$44-$D$44)/$D$44)) -> 0 | H44: =IF($E$44="",IF($F$44>0,"Ny data",IF($F$44="","",0)),IF($E$44=0,IF($F$44=0,0,"Ny data"),($F$44-$E$44)/$E$44)) -> 0
A45: Ø 250 mm < Ledningsnet ≤ Ø 500mm | B45: meter | C45: 75 | D45: 0 | E45: 0 | F45: 0 | G45: =IF($D$45="",IF($E$45>0,"Ny data",IF($E$45="","",0)),IF($D$45=0,IF($E$45=0,0,"Ny data"),($E$45-$D$45)/$D$45)) -> 0 | H45: =IF($E$45="",IF($F$45>0,"Ny data",IF($F$45="","",0)),IF($E$45=0,IF($F$45=0,0,"Ny data"),($F$45-$E$45)/$E$45)) -> 0
A46: Ledningsnet > Ø 500 mm | B46: meter | C46: 75 | D46: 0 | E46: 0 | F46: 0 | G46: =IF($D$46="",IF($E$46>0,"Ny data",IF($E$46="","",0)),IF($D$46=0,IF($E$46=0,0,"Ny data"),($E$46-$D$46)/$D$46)) -> 0 | H46: =IF($E$46="",IF($F$46>0,"Ny data",IF($F$46="","",0)),IF($E$46=0,IF($F$46=0,0,"Ny data"),($F$46-$E$46)/$E$46)) -> 0
A47: Råvandsledninger - By | G47: =IF($D$47="",IF($E$47>0,"Ny data",IF($E$47="","",0)),IF($D$47=0,IF($E$47=0,0,"Ny data"),($E$47-$D$47)/$D$47)) ->  | H47: =IF($E$47="",IF($F$47>0,"Ny data",IF($F$47="","",0)),IF($E$47=0,IF($F$47=0,0,"Ny data"),($F$47-$E$47)/$E$47)) -> 
A48: Ø 50mm < Ledningsnet ≤ Ø110 mm | B48: meter | C48: 75 | D48: 1565.491688 | E48: 1547 | F48: 1620 | G48: =IF($D$48="",IF($E$48>0,"Ny data",IF($E$48="","",0)),IF($D$48=0,IF($E$48=0,0,"Ny data"),($E$48-$D$48)/$D$48)) -> -0.01181206369 | H48: =IF($E$48="",IF($F$48>0,"Ny data",IF($F$48="","",0)),IF($E$48=0,IF($F$48=0,0,"Ny data"),($F$48-$E$48)/$E$48)) -> 0.04718810601
A49: Ø110 mm < Ledningsnet ≤ Ø 250 mm | B49: meter | C49: 75 | D49: 637.6916436 | E49: 638 | F49: 638 | G49: =IF($D$49="",IF($E$49>0,"Ny data",IF($E$49="","",0)),IF($D$49=0,IF($E$49=0,0,"Ny data"),($E$49-$D$49)/$D$49)) -> 0.0004835509662 | H49: =IF($E$49="",IF($F$49>0,"Ny data",IF($F$49="","",0)),IF($E$49=0,IF($F$49=0,0,"Ny data"),($F$49-$E$49)/$E$49)) -> 0
A50: Ø 250 mm < Ledningsnet ≤ Ø 500mm | B50: meter | C50: 75 | D50: 0 | E50: 0 | F50: 0 | G50: =IF($D$50="",IF($E$50>0,"Ny data",IF($E$50="","",0)),IF($D$50=0,IF($E$50=0,0,"Ny data"),($E$50-$D$50)/$D$50)) -> 0 | H50: =IF($E$50="",IF($F$50>0,"Ny data",IF($F$50="","",0)),IF($E$50=0,IF($F$50=0,0,"Ny data"),($F$50-$E$50)/$E$50)) -> 0
A51: Ledningsnet > Ø 500 mm | B51: meter | C51: 75 | D51: 0 | E51: 0 | F51: 0 | G51: =IF($D$51="",IF($E$51>0,"Ny data",IF($E$51="","",0)),IF($D$51=0,IF($E$51=0,0,"Ny data"),($E$51-$D$51)/$D$51)) -> 0 | H51: =IF($E$51="",IF($F$51>0,"Ny data",IF($F$51="","",0)),IF($E$51=0,IF($F$51=0,0,"Ny data"),($F$51-$E$51)/$E$51)) -> 0
A52: Råvandsledninger - City | G52: =IF($D$52="",IF($E$52>0,"Ny data",IF($E$52="","",0)),IF($D$52=0,IF($E$52=0,0,"Ny data"),($E$52-$D$52)/$D$52)) ->  | H52: =IF($E$52="",IF($F$52>0,"Ny data",IF($F$52="","",0)),IF($E$52=0,IF($F$52=0,0,"Ny data"),($F$52-$E$52)/$E$52)) -> 
A53: Ø 50mm < Ledningsnet ≤ Ø110 mm | B53: meter | C53: 75 | D53: 19.07102431 | E53: 83 | F53: 3 | G53: =IF($D$53="",IF($E$53>0,"Ny data",IF($E$53="","",0)),IF($D$53=0,IF($E$53=0,0,"Ny data"),($E$53-$D$53)/$D$53)) -> 3.352152178 | H53: =IF($E$53="",IF($F$53>0,"Ny data",IF($F$53="","",0)),IF($E$53=0,IF($F$53=0,0,"Ny data"),($F$53-$E$53)/$E$53)) -> -0.9638554217 | I53: Ændring i zoneopgørelse
A54: Ø110 mm < Ledningsnet ≤ Ø 250 mm | B54: meter | C54: 75 | D54: 0 | E54: 0 | F54: 0 | G54: =IF($D$54="",IF($E$54>0,"Ny data",IF($E$54="","",0)),IF($D$54=0,IF($E$54=0,0,"Ny data"),($E$54-$D$54)/$D$54)) -> 0 | H54: =IF($E$54="",IF($F$54>0,"Ny data",IF($F$54="","",0)),IF($E$54=0,IF($F$54=0,0,"Ny data"),($F$54-$E$54)/$E$54)) -> 0
A55: Ø 250 mm < Ledningsnet ≤ Ø 500mm | B55: meter | C55: 75 | D55: 0 | E55: 0 | F55: 0 | G55: =IF($D$55="",IF($E$55>0,"Ny data",IF($E$55="","",0)),IF($D$55=0,IF($E$55=0,0,"Ny data"),($E$55-$D$55)/$D$55)) -> 0 | H55: =IF($E$55="",IF($F$55>0,"Ny data",IF($F$55="","",0)),IF($E$55=0,IF($F$55=0,0,"Ny data"),($F$55-$E$55)/$E$55)) -> 0
A56: Ledningsnet > Ø 500 mm | B56: meter | C56: 75 | D56: 0 | E56: 0 | F56: 0 | G56: =IF($D$56="",IF($E$56>0,"Ny data",IF($E$56="","",0)),IF($D$56=0,IF($E$56=0,0,"Ny data"),($E$56-$D$56)/$D$56)) -> 0 | H56: =IF($E$56="",IF($F$56>0,"Ny data",IF($F$56="","",0)),IF($E$56=0,IF($F$56=0,0,"Ny data"),($F$56-$E$56)/$E$56)) -> 0
A57: Vandværk 1 | G57: =IF($D$57="",IF($E$57>0,"Ny data",IF($E$57="","",0)),IF($D$57=0,IF($E$57=0,0,"Ny data"),($E$57-$D$57)/$D$57)) ->  | H57: =IF($E$57="",IF($F$57>0,"Ny data",IF($F$57="","",0)),IF($E$57=0,IF($F$57=0,0,"Ny data"),($F$57-$E$57)/$E$57)) -> 
A58: Beluftningsanlæg, iltningstrappe, Konstruktioner | B58: m³/h | C58: 50 | D58: 90 | E58: 90 | F58: 90 | G58: =IF($D$58="",IF($E$58>0,"Ny data",IF($E$58="","",0)),IF($D$58=0,IF($E$58=0,0,"Ny data"),($E$58-$D$58)/$D$58)) -> 0 | H58: =IF($E$58="",IF($F$58>0,"Ny data",IF($F$58="","",0)),IF($E$58=0,IF($F$58=0,0,"Ny data"),($F$58-$E$58)/$E$58)) -> 0
A59: Beluftningsanlæg, iltningstrappe, Mek./EL | B59: m³/h | C59: 25 | D59: 90 | E59: 90 | F59: 90 | G59: =IF($D$59="",IF($E$59>0,"Ny data",IF($E$59="","",0)),IF($D$59=0,IF($E$59=0,0,"Ny data"),($E$59-$D$59)/$D$59)) -> 0 | H59: =IF($E$59="",IF($F$59>0,"Ny data",IF($F$59="","",0)),IF($E$59=0,IF($F$59=0,0,"Ny data"),($F$59-$E$59)/$E$59)) -> 0
A60: Beluftningsanlæg, ika-beluftning, Konstruktioner | B60: m³/h | C60: 50 | D60: 0 | E60: 0 | F60: 0 | G60: =IF($D$60="",IF($E$60>0,"Ny data",IF($E$60="","",0)),IF($D$60=0,IF($E$60=0,0,"Ny data"),($E$60-$D$60)/$D$60)) -> 0 | H60: =IF($E$60="",IF($F$60>0,"Ny data",IF($F$60="","",0)),IF($E$60=0,IF($F$60=0,0,"Ny data"),($F$60-$E$60)/$E$60)) -> 0
A61: Beluftningsanlæg, ika-beluftning, Mek./EL | B61: m³/h | C61: 25 | D61: 0 | E61: 0 | F61: 0 | G61: =IF($D$61="",IF($E$61>0,"Ny data",IF($E$61="","",0)),IF($D$61=0,IF($E$61=0,0,"Ny data"),($E$61-$D$61)/$D$61)) -> 0 | H61: =IF($E$61="",IF($F$61>0,"Ny data",IF($F$61="","",0)),IF($E$61=0,IF($F$61=0,0,"Ny data"),($F$61-$E$61)/$E$61)) -> 0
A62: Beluftningsanlæg, bundbeluftbning, Konstruktioner | B62: m³/h | C62: 50 | D62: 0 | E62: 0 | F62: 0 | G62: =IF($D$62="",IF($E$62>0,"Ny data",IF($E$62="","",0)),IF($D$62=0,IF($E$62=0,0,"Ny data"),($E$62-$D$62)/$D$62)) -> 0 | H62: =IF($E$62="",IF($F$62>0,"Ny data",IF($F$62="","",0)),IF($E$62=0,IF($F$62=0,0,"Ny data"),($F$62-$E$62)/$E$62)) -> 0
A63: Beluftningsanlæg, bundbeluftbning, Mek./EL | B63: m³/h | C63: 25 | D63: 0 | E63: 0 | F63: 0 | G63: =IF($D$63="",IF($E$63>0,"Ny data",IF($E$63="","",0)),IF($D$63=0,IF($E$63=0,0,"Ny data"),($E$63-$D$63)/$D$63)) -> 0 | H63: =IF($E$63="",IF($F$63>0,"Ny data",IF($F$63="","",0)),IF($E$63=0,IF($F$63=0,0,"Ny data"),($F$63-$E$63)/$E$63)) -> 0
A64: Beluftningsanlæg, rislebakke, Konstruktioner | B64: m³/h | C64: 50 | D64: 0 | E64: 0 | F64: 0 | G64: =IF($D$64="",IF($E$64>0,"Ny data",IF($E$64="","",0)),IF($D$64=0,IF($E$64=0,0,"Ny data"),($E$64-$D$64)/$D$64)) -> 0 | H64: =IF($E$64="",IF($F$64>0,"Ny data",IF($F$64="","",0)),IF($E$64=0,IF($F$64=0,0,"Ny data"),($F$64-$E$64)/$E$64)) -> 0
A65: Beluftningsanlæg, rislebakke, Mek./EL | B65: m³/h | C65: 25 | D65: 0 | E65: 0 | F65: 0 | G65: =IF($D$65="",IF($E$65>0,"Ny data",IF($E$65="","",0)),IF($D$65=0,IF($E$65=0,0,"Ny data"),($E$65-$D$65)/$D$65)) -> 0 | H65: =IF($E$65="",IF($F$65>0,"Ny data",IF($F$65="","",0)),IF($E$65=0,IF($F$65=0,0,"Ny data"),($F$65-$E$65)/$E$65)) -> 0
A66: Beluftningsanlæg, kompressorbeluftning | B66: m³/h | C66: 25 | D66: 0 | E66: 0 | F66: 0 | G66: =IF($D$66="",IF($E$66>0,"Ny data",IF($E$66="","",0)),IF($D$66=0,IF($E$66=0,0,"Ny data"),($E$66-$D$66)/$D$66)) -> 0 | H66: =IF($E$66="",IF($F$66>0,"Ny data",IF($F$66="","",0)),IF($E$66=0,IF($F$66=0,0,"Ny data"),($F$66-$E$66)/$E$66)) -> 0
A67: Beluftningsanlæg, ren ilt | B67: m³/h | C67: 25 | D67: 0 | E67: 0 | F67: 0 | G67: =IF($D$67="",IF($E$67>0,"Ny data",IF($E$67="","",0)),IF($D$67=0,IF($E$67=0,0,"Ny data"),($E$67-$D$67)/$D$67)) -> 0 | H67: =IF($E$67="",IF($F$67>0,"Ny data",IF($F$67="","",0)),IF($E$67=0,IF($F$67=0,0,"Ny data"),($F$67-$E$67)/$E$67)) -> 0
A68: Behandlingsanlæg, kalk anlæg | B68: m³/h | C68: 25 | D68: 0 | E68: 0 | F68: 0 | G68: =IF($D$68="",IF($E$68>0,"Ny data",IF($E$68="","",0)),IF($D$68=0,IF($E$68=0,0,"Ny data"),($E$68-$D$68)/$D$68)) -> 0 | H68: =IF($E$68="",IF($F$68>0,"Ny data",IF($F$68="","",0)),IF($E$68=0,IF($F$68=0,0,"Ny data"),($F$68-$E$68)/$E$68)) -> 0
A69: Behandlingsanlæg, luddosering | B69: m³/h | C69: 25 | D69: 0 | E69: 0 | F69: 0 | G69: =IF($D$69="",IF($E$69>0,"Ny data",IF($E$69="","",0)),IF($D$69=0,IF($E$69=0,0,"Ny data"),($E$69-$D$69)/$D$69)) -> 0 | H69: =IF($E$69="",IF($F$69>0,"Ny data",IF($F$69="","",0)),IF($E$69=0,IF($F$69=0,0,"Ny data"),($F$69-$E$69)/$E$69)) -> 0
A70: Filteranlæg, åbne filtre, enkelt filtrering, Konstruktioner | B70: m³/h | C70: 50 | D70: 0 | E70: 0 | F70: 0 | G70: =IF($D$70="",IF($E$70>0,"Ny data",IF($E$70="","",0)),IF($D$70=0,IF($E$70=0,0,"Ny data"),($E$70-$D$70)/$D$70)) -> 0 | H70: =IF($E$70="",IF($F$70>0,"Ny data",IF($F$70="","",0)),IF($E$70=0,IF($F$70=0,0,"Ny data"),($F$70-$E$70)/$E$70)) -> 0
A71: Filteranlæg, åbne filtre, enkelt filtrering, Mek./EL | B71: m³/h | C71: 25 | D71: 0 | E71: 0 | F71: 0 | G71: =IF($D$71="",IF($E$71>0,"Ny data",IF($E$71="","",0)),IF($D$71=0,IF($E$71=0,0,"Ny data"),($E$71-$D$71)/$D$71)) -> 0 | H71: =IF($E$71="",IF($F$71>0,"Ny data",IF($F$71="","",0)),IF($E$71=0,IF($F$71=0,0,"Ny data"),($F$71-$E$71)/$E$71)) -> 0
A72: Filteranlæg, åbne filtre, dobbelt filtrering, Konstruktioner | B72: m³/h | C72: 50 | D72: 90 | E72: 90 | F72: 90 | G72: =IF($D$72="",IF($E$72>0,"Ny data",IF($E$72="","",0)),IF($D$72=0,IF($E$72=0,0,"Ny data"),($E$72-$D$72)/$D$72)) -> 0 | H72: =IF($E$72="",IF($F$72>0,"Ny data",IF($F$72="","",0)),IF($E$72=0,IF($F$72=0,0,"Ny data"),($F$72-$E$72)/$E$72)) -> 0
A73: Filteranlæg, åbne filtre, dobbelt filtrering, Mek./EL | B73: m³/h | C73: 25 | D73: 90 | E73: 90 | F73: 90 | G73: =IF($D$73="",IF($E$73>0,"Ny data",IF($E$73="","",0)),IF($D$73=0,IF($E$73=0,0,"Ny data"),($E$73-$D$73)/$D$73)) -> 0 | H73: =IF($E$73="",IF($F$73>0,"Ny data",IF($F$73="","",0)),IF($E$73=0,IF($F$73=0,0,"Ny data"),($F$73-$E$73)/$E$73)) -> 0
A74: Filteranlæg, trykfiltre, enkelt filtrering | B74: m³/h | C74: 25 | D74: 0 | E74: 0 | F74: 0 | G74: =IF($D$74="",IF($E$74>0,"Ny data",IF($E$74="","",0)),IF($D$74=0,IF($E$74=0,0,"Ny data"),($E$74-$D$74)/$D$74)) -> 0 | H74: =IF($E$74="",IF($F$74>0,"Ny data",IF($F$74="","",0)),IF($E$74=0,IF($F$74=0,0,"Ny data"),($F$74-$E$74)/$E$74)) -> 0
A75: Filteranlæg, trykfiltre, dobbelt filtrering | B75: m³/h | C75: 25 | D75: 0 | E75: 0 | F75: 0 | G75: =IF($D$75="",IF($E$75>0,"Ny data",IF($E$75="","",0)),IF($D$75=0,IF($E$75=0,0,"Ny data"),($E$75-$D$75)/$D$75)) -> 0 | H75: =IF($E$75="",IF($F$75>0,"Ny data",IF($F$75="","",0)),IF($E$75=0,IF($F$75=0,0,"Ny data"),($F$75-$E$75)/$E$75)) -> 0
A76: Rentvandsbeholder insitu støbt | B76: m³ | C76: 50 | D76: 1000 | E76: 1000 | F76: 1000 | G76: =IF($D$76="",IF($E$76>0,"Ny data",IF($E$76="","",0)),IF($D$76=0,IF($E$76=0,0,"Ny data"),($E$76-$D$76)/$D$76)) -> 0 | H76: =IF($E$76="",IF($F$76>0,"Ny data",IF($F$76="","",0)),IF($E$76=0,IF($F$76=0,0,"Ny data"),($F$76-$E$76)/$E$76)) -> 0
A77: Rentvandsbeholder element | B77: m³ | C77: 50 | D77: 0 | E77: 0 | F77: 0 | G77: =IF($D$77="",IF($E$77>0,"Ny data",IF($E$77="","",0)),IF($D$77=0,IF($E$77=0,0,"Ny data"),($E$77-$D$77)/$D$77)) -> 0 | H77: =IF($E$77="",IF($F$77>0,"Ny data",IF($F$77="","",0)),IF($E$77=0,IF($F$77=0,0,"Ny data"),($F$77-$E$77)/$E$77)) -> 0
A78: Udpumpningsanlæg, rentvandspumper på vandværk | B78: m³/h | C78: 25 | D78: 270 | E78: 270 | F78: 270 | G78: =IF($D$78="",IF($E$78>0,"Ny data",IF($E$78="","",0)),IF($D$78=0,IF($E$78=0,0,"Ny data"),($E$78-$D$78)/$D$78)) -> 0 | H78: =IF($E$78="",IF($F$78>0,"Ny data",IF($F$78="","",0)),IF($E$78=0,IF($F$78=0,0,"Ny data"),($F$78-$E$78)/$E$78)) -> 0
A79: Udpumpningsanlæg, frekvensomformer | B79: kW | C79: 25 | D79: 15 | E79: 15 | F79: 15 | G79: =IF($D$79="",IF($E$79>0,"Ny data",IF($E$79="","",0)),IF($D$79=0,IF($E$79=0,0,"Ny data"),($E$79-$D$79)/$D$79)) -> 0 | H79: =IF($E$79="",IF($F$79>0,"Ny data",IF($F$79="","",0)),IF($E$79=0,IF($F$79=0,0,"Ny data"),($F$79-$E$79)/$E$79)) -> 0
A80: Udpumpningsanlæg, Hydrofor | B80: liter | C80: 25 | D80: 0 | E80: 0 | F80: 0 | G80: =IF($D$80="",IF($E$80>0,"Ny data",IF($E$80="","",0)),IF($D$80=0,IF($E$80=0,0,"Ny data"),($E$80-$D$80)/$D$80)) -> 0 | H80: =IF($E$80="",IF($F$80>0,"Ny data",IF($F$80="","",0)),IF($E$80=0,IF($F$80=0,0,"Ny data"),($F$80-$E$80)/$E$80)) -> 0
A81: Skyllevand-/slamhåndteringsanlæg - lukkede betonbeholdere | B81: m³ | C81: 50 | D81: 50 | E81: 50 | F81: 50 | G81: =IF($D$81="",IF($E$81>0,"Ny data",IF($E$81="","",0)),IF($D$81=0,IF($E$81=0,0,"Ny data"),($E$81-$D$81)/$D$81)) -> 0 | H81: =IF($E$81="",IF($F$81>0,"Ny data",IF($F$81="","",0)),IF($E$81=0,IF($F$81=0,0,"Ny data"),($F$81-$E$81)/$E$81)) -> 0
A82: Skyllevand-/slamhåndteringsanl. - åbne med faste sider/bund | B82: m³ | C82: 50 | D82: 0 | E82: 0 | F82: 0 | G82: =IF($D$82="",IF($E$82>0,"Ny data",IF($E$82="","",0)),IF($D$82=0,IF($E$82=0,0,"Ny data"),($E$82-$D$82)/$D$82)) -> 0 | H82: =IF($E$82="",IF($F$82>0,"Ny data",IF($F$82="","",0)),IF($E$82=0,IF($F$82=0,0,"Ny data"),($F$82-$E$82)/$E$82)) -> 0
A83: Skyllevand-/slamhåndteringsanlæg - jordbassiner | B83: m³ | C83: 50 | D83: 0 | E83: 0 | F83: 0 | G83: =IF($D$83="",IF($E$83>0,"Ny data",IF($E$83="","",0)),IF($D$83=0,IF($E$83=0,0,"Ny data"),($E$83-$D$83)/$D$83)) -> 0 | H83: =IF($E$83="",IF($F$83>0,"Ny data",IF($F$83="","",0)),IF($E$83=0,IF($F$83=0,0,"Ny data"),($F$83-$E$83)/$E$83)) -> 0
A84: Skyllevandsbehandling, inkl. UV-filter mv., Mek./EL | B84: m³/h. | C84: 25 | D84: 5 | E84: 5 | F84: 5 | G84: =IF($D$84="",IF($E$84>0,"Ny data",IF($E$84="","",0)),IF($D$84=0,IF($E$84=0,0,"Ny data"),($E$84-$D$84)/$D$84)) -> 0 | H84: =IF($E$84="",IF($F$84>0,"Ny data",IF($F$84="","",0)),IF($E$84=0,IF($F$84=0,0,"Ny data"),($F$84-$E$84)/$E$84)) -> 0
A85: Skyllevandsbehandling, inkl. UV-filter mv., SRO | B85: m³/h. | C85: 10 | D85: 5 | E85: 5 | F85: 5 | G85: =IF($D$85="",IF($E$85>0,"Ny data",IF($E$85="","",0)),IF($D$85=0,IF($E$85=0,0,"Ny data"),($E$85-$D$85)/$D$85)) -> 0 | H85: =IF($E$85="",IF($F$85>0,"Ny data",IF($F$85="","",0)),IF($E$85=0,IF($F$85=0,0,"Ny data"),($F$85-$E$85)/$E$85)) -> 0
A86: Nødstrømsanlæg på vandværk | B86: kW | C86: 25 | D86: 0 | E86: 0 | F86: 0 | G86: =IF($D$86="",IF($E$86>0,"Ny data",IF($E$86="","",0)),IF($D$86=0,IF($E$86=0,0,"Ny data"),($E$86-$D$86)/$D$86)) -> 0 | H86: =IF($E$86="",IF($F$86>0,"Ny data",IF($F$86="","",0)),IF($E$86=0,IF($F$86=0,0,"Ny data"),($F$86-$E$86)/$E$86)) -> 0
A87: Elanlæg og SRO-anlæg - vandværk, Elanlæg | B87: m³/h. | C87: 25 | D87: 90 | E87: 90 | F87: 90 | G87: =IF($D$87="",IF($E$87>0,"Ny data",IF($E$87="","",0)),IF($D$87=0,IF($E$87=0,0,"Ny data"),($E$87-$D$87)/$D$87)) -> 0 | H87: =IF($E$87="",IF($F$87>0,"Ny data",IF($F$87="","",0)),IF($E$87=0,IF($F$87=0,0,"Ny data"),($F$87-$E$87)/$E$87)) -> 0
A88: Elanlæg og SRO-anlæg - vandværk, SRO | B88: m³/h. | C88: 10 | D88: 90 | E88: 90 | F88: 90 | G88: =IF($D$88="",IF($E$88>0,"Ny data",IF($E$88="","",0)),IF($D$88=0,IF($E$88=0,0,"Ny data"),($E$88-$D$88)/$D$88)) -> 0 | H88: =IF($E$88="",IF($F$88>0,"Ny data",IF($F$88="","",0)),IF($E$88=0,IF($F$88=0,0,"Ny data"),($F$88-$E$88)/$E$88)) -> 0
A89: Vandværk 2 | G89: =IF($D$89="",IF($E$89>0,"Ny data",IF($E$89="","",0)),IF($D$89=0,IF($E$89=0,0,"Ny data"),($E$89-$D$89)/$D$89)) ->  | H89: =IF($E$89="",IF($F$89>0,"Ny data",IF($F$89="","",0)),IF($E$89=0,IF($F$89=0,0,"Ny data"),($F$89-$E$89)/$E$89)) -> 
A90: Beluftningsanlæg, iltningstrappe, Konstruktioner | B90: m³/h | C90: 50 | D90: 0 | E90: 0 | F90: 0 | G90: =IF($D$90="",IF($E$90>0,"Ny data",IF($E$90="","",0)),IF($D$90=0,IF($E$90=0,0,"Ny data"),($E$90-$D$90)/$D$90)) -> 0 | H90: =IF($E$90="",IF($F$90>0,"Ny data",IF($F$90="","",0)),IF($E$90=0,IF($F$90=0,0,"Ny data"),($F$90-$E$90)/$E$90)) -> 0
A91: Beluftningsanlæg, iltningstrappe, Mek./EL | B91: m³/h | C91: 25 | D91: 0 | E91: 0 | F91: 0 | G91: =IF($D$91="",IF($E$91>0,"Ny data",IF($E$91="","",0)),IF($D$91=0,IF($E$91=0,0,"Ny data"),($E$91-$D$91)/$D$91)) -> 0 | H91: =IF($E$91="",IF($F$91>0,"Ny data",IF($F$91="","",0)),IF($E$91=0,IF($F$91=0,0,"Ny data"),($F$91-$E$91)/$E$91)) -> 0
A92: Beluftningsanlæg, ika-beluftning, Konstruktioner | B92: m³/h | C92: 50 | D92: 0 | E92: 0 | F92: 0 | G92: =IF($D$92="",IF($E$92>0,"Ny data",IF($E$92="","",0)),IF($D$92=0,IF($E$92=0,0,"Ny data"),($E$92-$D$92)/$D$92)) -> 0 | H92: =IF($E$92="",IF($F$92>0,"Ny data",IF($F$92="","",0)),IF($E$92=0,IF($F$92=0,0,"Ny data"),($F$92-$E$92)/$E$92)) -> 0
A93: Beluftningsanlæg, ika-beluftning, Mek./EL | B93: m³/h | C93: 25 | D93: 0 | E93: 0 | F93: 0 | G93: =IF($D$93="",IF($E$93>0,"Ny data",IF($E$93="","",0)),IF($D$93=0,IF($E$93=0,0,"Ny data"),($E$93-$D$93)/$D$93)) -> 0 | H93: =IF($E$93="",IF($F$93>0,"Ny data",IF($F$93="","",0)),IF($E$93=0,IF($F$93=0,0,"Ny data"),($F$93-$E$93)/$E$93)) -> 0
A94: Beluftningsanlæg, bundbeluftbning, Konstruktioner | B94: m³/h | C94: 50 | D94: 0 | E94: 0 | F94: 0 | G94: =IF($D$94="",IF($E$94>0,"Ny data",IF($E$94="","",0)),IF($D$94=0,IF($E$94=0,0,"Ny data"),($E$94-$D$94)/$D$94)) -> 0 | H94: =IF($E$94="",IF($F$94>0,"Ny data",IF($F$94="","",0)),IF($E$94=0,IF($F$94=0,0,"Ny data"),($F$94-$E$94)/$E$94)) -> 0
A95: Beluftningsanlæg, bundbeluftbning, Mek./EL | B95: m³/h | C95: 25 | D95: 0 | E95: 0 | F95: 0 | G95: =IF($D$95="",IF($E$95>0,"Ny data",IF($E$95="","",0)),IF($D$95=0,IF($E$95=0,0,"Ny data"),($E$95-$D$95)/$D$95)) -> 0 | H95: =IF($E$95="",IF($F$95>0,"Ny data",IF($F$95="","",0)),IF($E$95=0,IF($F$95=0,0,"Ny data"),($F$95-$E$95)/$E$95)) -> 0
A96: Beluftningsanlæg, rislebakke, Konstruktioner | B96: m³/h | C96: 50 | D96: 44 | E96: 44 | F96: 44 | G96: =IF($D$96="",IF($E$96>0,"Ny data",IF($E$96="","",0)),IF($D$96=0,IF($E$96=0,0,"Ny data"),($E$96-$D$96)/$D$96)) -> 0 | H96: =IF($E$96="",IF($F$96>0,"Ny data",IF($F$96="","",0)),IF($E$96=0,IF($F$96=0,0,"Ny data"),($F$96-$E$96)/$E$96)) -> 0
A97: Beluftningsanlæg, rislebakke, Mek./EL | B97: m³/h | C97: 25 | D97: 44 | E97: 44 | F97: 44 | G97: =IF($D$97="",IF($E$97>0,"Ny data",IF($E$97="","",0)),IF($D$97=0,IF($E$97=0,0,"Ny data"),($E$97-$D$97)/$D$97)) -> 0 | H97: =IF($E$97="",IF($F$97>0,"Ny data",IF($F$97="","",0)),IF($E$97=0,IF($F$97=0,0,"Ny data"),($F$97-$E$97)/$E$97)) -> 0
A98: Beluftningsanlæg, kompressorbeluftning | B98: m³/h | C98: 25 | D98: 0 | E98: 0 | F98: 0 | G98: =IF($D$98="",IF($E$98>0,"Ny data",IF($E$98="","",0)),IF($D$98=0,IF($E$98=0,0,"Ny data"),($E$98-$D$98)/$D$98)) -> 0 | H98: =IF($E$98="",IF($F$98>0,"Ny data",IF($F$98="","",0)),IF($E$98=0,IF($F$98=0,0,"Ny data"),($F$98-$E$98)/$E$98)) -> 0
A99: Beluftningsanlæg, ren ilt | B99: m³/h | C99: 25 | D99: 0 | E99: 0 | F99: 0 | G99: =IF($D$99="",IF($E$99>0,"Ny data",IF($E$99="","",0)),IF($D$99=0,IF($E$99=0,0,"Ny data"),($E$99-$D$99)/$D$99)) -> 0 | H99: =IF($E$99="",IF($F$99>0,"Ny data",IF($F$99="","",0)),IF($E$99=0,IF($F$99=0,0,"Ny data"),($F$99-$E$99)/$E$99)) -> 0
A100: Behandlingsanlæg, kalk anlæg | B100: m³/h | C100: 25 | D100: 0 | E100: 0 | F100: 0 | G100: =IF($D$100="",IF($E$100>0,"Ny data",IF($E$100="","",0)),IF($D$100=0,IF($E$100=0,0,"Ny data"),($E$100-$D$100)/$D$100)) -> 0 | H100: =IF($E$100="",IF($F$100>0,"Ny data",IF($F$100="","",0)),IF($E$100=0,IF($F$100=0,0,"Ny data"),($F$100-$E$100)/$E$100)) -> 0
A101: Behandlingsanlæg, luddosering | B101: m³/h | C101: 25 | D101: 0 | E101: 0 | F101: 0 | G101: =IF($D$101="",IF($E$101>0,"Ny data",IF($E$101="","",0)),IF($D$101=0,IF($E$101=0,0,"Ny data"),($E$101-$D$101)/$D$101)) -> 0 | H101: =IF($E$101="",IF($F$101>0,"Ny data",IF($F$101="","",0)),IF($E$101=0,IF($F$101=0,0,"Ny data"),($F$101-$E$101)/$E$101)) -> 0
A102: Filteranlæg, åbne filtre, enkelt filtrering, Konstruktioner | B102: m³/h | C102: 50 | D102: 0 | E102: 0 | F102: 0 | G102: =IF($D$102="",IF($E$102>0,"Ny data",IF($E$102="","",0)),IF($D$102=0,IF($E$102=0,0,"Ny data"),($E$102-$D$102)/$D$102)) -> 0 | H102: =IF($E$102="",IF($F$102>0,"Ny data",IF($F$102="","",0)),IF($E$102=0,IF($F$102=0,0,"Ny data"),($F$102-$E$102)/$E$102)) -> 0
A103: Filteranlæg, åbne filtre, enkelt filtrering, Mek./EL | B103: m³/h | C103: 25 | D103: 0 | E103: 0 | F103: 0 | G103: =IF($D$103="",IF($E$103>0,"Ny data",IF($E$103="","",0)),IF($D$103=0,IF($E$103=0,0,"Ny data"),($E$103-$D$103)/$D$103)) -> 0 | H103: =IF($E$103="",IF($F$103>0,"Ny data",IF($F$103="","",0)),IF($E$103=0,IF($F$103=0,0,"Ny data"),($F$103-$E$103)/$E$103)) -> 0
A104: Filteranlæg, åbne filtre, dobbelt filtrering, Konstruktioner | B104: m³/h | C104: 50 | D104: 44 | E104: 44 | F104: 44 | G104: =IF($D$104="",IF($E$104>0,"Ny data",IF($E$104="","",0)),IF($D$104=0,IF($E$104=0,0,"Ny data"),($E$104-$D$104)/$D$104)) -> 0 | H104: =IF($E$104="",IF($F$104>0,"Ny data",IF($F$104="","",0)),IF($E$104=0,IF($F$104=0,0,"Ny data"),($F$104-$E$104)/$E$104)) -> 0
A105: Filteranlæg, åbne filtre, dobbelt filtrering, Mek./EL | B105: m³/h | C105: 25 | D105: 44 | E105: 44 | F105: 44 | G105: =IF($D$105="",IF($E$105>0,"Ny data",IF($E$105="","",0)),IF($D$105=0,IF($E$105=0,0,"Ny data"),($E$105-$D$105)/$D$105)) -> 0 | H105: =IF($E$105="",IF($F$105>0,"Ny data",IF($F$105="","",0)),IF($E$105=0,IF($F$105=0,0,"Ny data"),($F$105-$E$105)/$E$105)) -> 0
A106: Filteranlæg, trykfiltre, enkelt filtrering | B106: m³/h | C106: 25 | D106: 0 | E106: 0 | F106: 0 | G106: =IF($D$106="",IF($E$106>0,"Ny data",IF($E$106="","",0)),IF($D$106=0,IF($E$106=0,0,"Ny data"),($E$106-$D$106)/$D$106)) -> 0 | H106: =IF($E$106="",IF($F$106>0,"Ny data",IF($F$106="","",0)),IF($E$106=0,IF($F$106=0,0,"Ny data"),($F$106-$E$106)/$E$106)) -> 0
A107: Filteranlæg, trykfiltre, dobbelt filtrering | B107: m³/h | C107: 25 | D107: 0 | E107: 0 | F107: 0 | G107: =IF($D$107="",IF($E$107>0,"Ny data",IF($E$107="","",0)),IF($D$107=0,IF($E$107=0,0,"Ny data"),($E$107-$D$107)/$D$107)) -> 0 | H107: =IF($E$107="",IF($F$107>0,"Ny data",IF($F$107="","",0)),IF($E$107=0,IF($F$107=0,0,"Ny data"),($F$107-$E$107)/$E$107)) -> 0
A108: Rentvandsbeholder insitu støbt | B108: m³ | C108: 50 | D108: 135 | E108: 135 | F108: 135 | G108: =IF($D$108="",IF($E$108>0,"Ny data",IF($E$108="","",0)),IF($D$108=0,IF($E$108=0,0,"Ny data"),($E$108-$D$108)/$D$108)) -> 0 | H108: =IF($E$108="",IF($F$108>0,"Ny data",IF($F$108="","",0)),IF($E$108=0,IF($F$108=0,0,"Ny data"),($F$108-$E$108)/$E$108)) -> 0
A109: Rentvandsbeholder element | B109: m³ | C109: 50 | D109: 0 | E109: 0 | F109: 0 | G109: =IF($D$109="",IF($E$109>0,"Ny data",IF($E$109="","",0)),IF($D$109=0,IF($E$109=0,0,"Ny data"),($E$109-$D$109)/$D$109)) -> 0 | H109: =IF($E$109="",IF($F$109>0,"Ny data",IF($F$109="","",0)),IF($E$109=0,IF($F$109=0,0,"Ny data"),($F$109-$E$109)/$E$109)) -> 0
A110: Udpumpningsanlæg, rentvandspumper på vandværk | B110: m³/h | C110: 25 | D110: 150 | E110: 150 | F110: 150 | G110: =IF($D$110="",IF($E$110>0,"Ny data",IF($E$110="","",0)),IF($D$110=0,IF($E$110=0,0,"Ny data"),($E$110-$D$110)/$D$110)) -> 0 | H110: =IF($E$110="",IF($F$110>0,"Ny data",IF($F$110="","",0)),IF($E$110=0,IF($F$110=0,0,"Ny data"),($F$110-$E$110)/$E$110)) -> 0
A111: Udpumpningsanlæg, frekvensomformer | B111: kW | C111: 25 | D111: 10 | E111: 10 | F111: 10 | G111: =IF($D$111="",IF($E$111>0,"Ny data",IF($E$111="","",0)),IF($D$111=0,IF($E$111=0,0,"Ny data"),($E$111-$D$111)/$D$111)) -> 0 | H111: =IF($E$111="",IF($F$111>0,"Ny data",IF($F$111="","",0)),IF($E$111=0,IF($F$111=0,0,"Ny data"),($F$111-$E$111)/$E$111)) -> 0
A112: Udpumpningsanlæg, Hydrofor | B112: liter | C112: 25 | D112: 0 | E112: 0 | F112: 0 | G112: =IF($D$112="",IF($E$112>0,"Ny data",IF($E$112="","",0)),IF($D$112=0,IF($E$112=0,0,"Ny data"),($E$112-$D$112)/$D$112)) -> 0 | H112: =IF($E$112="",IF($F$112>0,"Ny data",IF($F$112="","",0)),IF($E$112=0,IF($F$112=0,0,"Ny data"),($F$112-$E$112)/$E$112)) -> 0
A113: Skyllevand-/slamhåndteringsanlæg - lukkede betonbeholdere | B113: m³ | C113: 50 | D113: 20 | E113: 20 | F113: 20 | G113: =IF($D$113="",IF($E$113>0,"Ny data",IF($E$113="","",0)),IF($D$113=0,IF($E$113=0,0,"Ny data"),($E$113-$D$113)/$D$113)) -> 0 | H113: =IF($E$113="",IF($F$113>0,"Ny data",IF($F$113="","",0)),IF($E$113=0,IF($F$113=0,0,"Ny data"),($F$113-$E$113)/$E$113)) -> 0
A114: Skyllevand-/slamhåndteringsanl. - åbne med faste sider/bund | B114: m³ | C114: 50 | D114: 0 | E114: 0 | F114: 0 | G114: =IF($D$114="",IF($E$114>0,"Ny data",IF($E$114="","",0)),IF($D$114=0,IF($E$114=0,0,"Ny data"),($E$114-$D$114)/$D$114)) -> 0 | H114: =IF($E$114="",IF($F$114>0,"Ny data",IF($F$114="","",0)),IF($E$114=0,IF($F$114=0,0,"Ny data"),($F$114-$E$114)/$E$114)) -> 0
A115: Skyllevand-/slamhåndteringsanlæg - jordbassiner | B115: m³ | C115: 50 | D115: 0 | E115: 0 | F115: 0 | G115: =IF($D$115="",IF($E$115>0,"Ny data",IF($E$115="","",0)),IF($D$115=0,IF($E$115=0,0,"Ny data"),($E$115-$D$115)/$D$115)) -> 0 | H115: =IF($E$115="",IF($F$115>0,"Ny data",IF($F$115="","",0)),IF($E$115=0,IF($F$115=0,0,"Ny data"),($F$115-$E$115)/$E$115)) -> 0
A116: Skyllevandsbehandling, inkl. UV-filter mv., Mek./EL | B116: m³/h. | C116: 25 | D116: 3 | E116: 3 | F116: 3 | G116: =IF($D$116="",IF($E$116>0,"Ny data",IF($E$116="","",0)),IF($D$116=0,IF($E$116=0,0,"Ny data"),($E$116-$D$116)/$D$116)) -> 0 | H116: =IF($E$116="",IF($F$116>0,"Ny data",IF($F$116="","",0)),IF($E$116=0,IF($F$116=0,0,"Ny data"),($F$116-$E$116)/$E$116)) -> 0
A117: Skyllevandsbehandling, inkl. UV-filter mv., SRO | B117: m³/h. | C117: 10 | D117: 3 | E117: 3 | F117: 3 | G117: =IF($D$117="",IF($E$117>0,"Ny data",IF($E$117="","",0)),IF($D$117=0,IF($E$117=0,0,"Ny data"),($E$117-$D$117)/$D$117)) -> 0 | H117: =IF($E$117="",IF($F$117>0,"Ny data",IF($F$117="","",0)),IF($E$117=0,IF($F$117=0,0,"Ny data"),($F$117-$E$117)/$E$117)) -> 0
A118: Nødstrømsanlæg på vandværk | B118: kW | C118: 25 | D118: 0 | E118: 0 | F118: 0 | G118: =IF($D$118="",IF($E$118>0,"Ny data",IF($E$118="","",0)),IF($D$118=0,IF($E$118=0,0,"Ny data"),($E$118-$D$118)/$D$118)) -> 0 | H118: =IF($E$118="",IF($F$118>0,"Ny data",IF($F$118="","",0)),IF($E$118=0,IF($F$118=0,0,"Ny data"),($F$118-$E$118)/$E$118)) -> 0
A119: Elanlæg og SRO-anlæg - vandværk, Elanlæg | B119: m³/h. | C119: 25 | D119: 44 | E119: 44 | F119: 44 | G119: =IF($D$119="",IF($E$119>0,"Ny data",IF($E$119="","",0)),IF($D$119=0,IF($E$119=0,0,"Ny data"),($E$119-$D$119)/$D$119)) -> 0 | H119: =IF($E$119="",IF($F$119>0,"Ny data",IF($F$119="","",0)),IF($E$119=0,IF($F$119=0,0,"Ny data"),($F$119-$E$119)/$E$119)) -> 0
A120: Elanlæg og SRO-anlæg - vandværk, SRO | B120: m³/h. | C120: 10 | D120: 44 | E120: 44 | F120: 44 | G120: =IF($D$120="",IF($E$120>0,"Ny data",IF($E$120="","",0)),IF($D$120=0,IF($E$120=0,0,"Ny data"),($E$120-$D$120)/$D$120)) -> 0 | H120: =IF($E$120="",IF($F$120>0,"Ny data",IF($F$120="","",0)),IF($E$120=0,IF($F$120=0,0,"Ny data"),($F$120-$E$120)/$E$120)) -> 0
A121: Vandværk 3 | G121: =IF($D$121="",IF($E$121>0,"Ny data",IF($E$121="","",0)),IF($D$121=0,IF($E$121=0,0,"Ny data"),($E$121-$D$121)/$D$121)) ->  | H121: =IF($E$121="",IF($F$121>0,"Ny data",IF($F$121="","",0)),IF($E$121=0,IF($F$121=0,0,"Ny data"),($F$121-$E$121)/$E$121)) -> 
A122: Beluftningsanlæg, iltningstrappe, Konstruktioner | B122: m³/h | C122: 50 | D122: 0 | E122: 0 | F122: 0 | G122: =IF($D$122="",IF($E$122>0,"Ny data",IF($E$122="","",0)),IF($D$122=0,IF($E$122=0,0,"Ny data"),($E$122-$D$122)/$D$122)) -> 0 | H122: =IF($E$122="",IF($F$122>0,"Ny data",IF($F$122="","",0)),IF($E$122=0,IF($F$122=0,0,"Ny data"),($F$122-$E$122)/$E$122)) -> 0
A123: Beluftningsanlæg, iltningstrappe, Mek./EL | B123: m³/h | C123: 25 | D123: 0 | E123: 0 | F123: 0 | G123: =IF($D$123="",IF($E$123>0,"Ny data",IF($E$123="","",0)),IF($D$123=0,IF($E$123=0,0,"Ny data"),($E$123-$D$123)/$D$123)) -> 0 | H123: =IF($E$123="",IF($F$123>0,"Ny data",IF($F$123="","",0)),IF($E$123=0,IF($F$123=0,0,"Ny data"),($F$123-$E$123)/$E$123)) -> 0
A124: Beluftningsanlæg, ika-beluftning, Konstruktioner | B124: m³/h | C124: 50 | D124: 0 | E124: 0 | F124: 0 | G124: =IF($D$124="",IF($E$124>0,"Ny data",IF($E$124="","",0)),IF($D$124=0,IF($E$124=0,0,"Ny data"),($E$124-$D$124)/$D$124)) -> 0 | H124: =IF($E$124="",IF($F$124>0,"Ny data",IF($F$124="","",0)),IF($E$124=0,IF($F$124=0,0,"Ny data"),($F$124-$E$124)/$E$124)) -> 0
A125: Beluftningsanlæg, ika-beluftning, Mek./EL | B125: m³/h | C125: 25 | D125: 0 | E125: 0 | F125: 0 | G125: =IF($D$125="",IF($E$125>0,"Ny data",IF($E$125="","",0)),IF($D$125=0,IF($E$125=0,0,"Ny data"),($E$125-$D$125)/$D$125)) -> 0 | H125: =IF($E$125="",IF($F$125>0,"Ny data",IF($F$125="","",0)),IF($E$125=0,IF($F$125=0,0,"Ny data"),($F$125-$E$125)/$E$125)) -> 0
A126: Beluftningsanlæg, bundbeluftbning, Konstruktioner | B126: m³/h | C126: 50 | D126: 40 | E126: 40 | F126: 40 | G126: =IF($D$126="",IF($E$126>0,"Ny data",IF($E$126="","",0)),IF($D$126=0,IF($E$126=0,0,"Ny data"),($E$126-$D$126)/$D$126)) -> 0 | H126: =IF($E$126="",IF($F$126>0,"Ny data",IF($F$126="","",0)),IF($E$126=0,IF($F$126=0,0,"Ny data"),($F$126-$E$126)/$E$126)) -> 0
A127: Beluftningsanlæg, bundbeluftbning, Mek./EL | B127: m³/h | C127: 25 | D127: 40 | E127: 40 | F127: 40 | G127: =IF($D$127="",IF($E$127>0,"Ny data",IF($E$127="","",0)),IF($D$127=0,IF($E$127=0,0,"Ny data"),($E$127-$D$127)/$D$127)) -> 0 | H127: =IF($E$127="",IF($F$127>0,"Ny data",IF($F$127="","",0)),IF($E$127=0,IF($F$127=0,0,"Ny data"),($F$127-$E$127)/$E$127)) -> 0
A128: Beluftningsanlæg, rislebakke, Konstruktioner | B128: m³/h | C128: 50 | D128: 0 | E128: 0 | F128: 0 | G128: =IF($D$128="",IF($E$128>0,"Ny data",IF($E$128="","",0)),IF($D$128=0,IF($E$128=0,0,"Ny data"),($E$128-$D$128)/$D$128)) -> 0 | H128: =IF($E$128="",IF($F$128>0,"Ny data",IF($F$128="","",0)),IF($E$128=0,IF($F$128=0,0,"Ny data"),($F$128-$E$128)/$E$128)) -> 0
A129: Beluftningsanlæg, rislebakke, Mek./EL | B129: m³/h | C129: 25 | D129: 0 | E129: 0 | F129: 0 | G129: =IF($D$129="",IF($E$129>0,"Ny data",IF($E$129="","",0)),IF($D$129=0,IF($E$129=0,0,"Ny data"),($E$129-$D$129)/$D$129)) -> 0 | H129: =IF($E$129="",IF($F$129>0,"Ny data",IF($F$129="","",0)),IF($E$129=0,IF($F$129=0,0,"Ny data"),($F$129-$E$129)/$E$129)) -> 0
A130: Beluftningsanlæg, kompressorbeluftning | B130: m³/h | C130: 25 | D130: 0 | E130: 0 | F130: 0 | G130: =IF($D$130="",IF($E$130>0,"Ny data",IF($E$130="","",0)),IF($D$130=0,IF($E$130=0,0,"Ny data"),($E$130-$D$130)/$D$130)) -> 0 | H130: =IF($E$130="",IF($F$130>0,"Ny data",IF($F$130="","",0)),IF($E$130=0,IF($F$130=0,0,"Ny data"),($F$130-$E$130)/$E$130)) -> 0
A131: Beluftningsanlæg, ren ilt | B131: m³/h | C131: 25 | D131: 0 | E131: 0 | F131: 0 | G131: =IF($D$131="",IF($E$131>0,"Ny data",IF($E$131="","",0)),IF($D$131=0,IF($E$131=0,0,"Ny data"),($E$131-$D$131)/$D$131)) -> 0 | H131: =IF($E$131="",IF($F$131>0,"Ny data",IF($F$131="","",0)),IF($E$131=0,IF($F$131=0,0,"Ny data"),($F$131-$E$131)/$E$131)) -> 0
A132: Behandlingsanlæg, kalk anlæg | B132: m³/h | C132: 25 | D132: 0 | E132: 0 | F132: 0 | G132: =IF($D$132="",IF($E$132>0,"Ny data",IF($E$132="","",0)),IF($D$132=0,IF($E$132=0,0,"Ny data"),($E$132-$D$132)/$D$132)) -> 0 | H132: =IF($E$132="",IF($F$132>0,"Ny data",IF($F$132="","",0)),IF($E$132=0,IF($F$132=0,0,"Ny data"),($F$132-$E$132)/$E$132)) -> 0
A133: Behandlingsanlæg, luddosering | B133: m³/h | C133: 25 | D133: 0 | E133: 0 | F133: 0 | G133: =IF($D$133="",IF($E$133>0,"Ny data",IF($E$133="","",0)),IF($D$133=0,IF($E$133=0,0,"Ny data"),($E$133-$D$133)/$D$133)) -> 0 | H133: =IF($E$133="",IF($F$133>0,"Ny data",IF($F$133="","",0)),IF($E$133=0,IF($F$133=0,0,"Ny data"),($F$133-$E$133)/$E$133)) -> 0
A134: Filteranlæg, åbne filtre, enkelt filtrering, Konstruktioner | B134: m³/h | C134: 50 | D134: 0 | E134: 0 | F134: 0 | G134: =IF($D$134="",IF($E$134>0,"Ny data",IF($E$134="","",0)),IF($D$134=0,IF($E$134=0,0,"Ny data"),($E$134-$D$134)/$D$134)) -> 0 | H134: =IF($E$134="",IF($F$134>0,"Ny data",IF($F$134="","",0)),IF($E$134=0,IF($F$134=0,0,"Ny data"),($F$134-$E$134)/$E$134)) -> 0
A135: Filteranlæg, åbne filtre, enkelt filtrering, Mek./EL | B135: m³/h | C135: 25 | D135: 0 | E135: 0 | F135: 0 | G135: =IF($D$135="",IF($E$135>0,"Ny data",IF($E$135="","",0)),IF($D$135=0,IF($E$135=0,0,"Ny data"),($E$135-$D$135)/$D$135)) -> 0 | H135: =IF($E$135="",IF($F$135>0,"Ny data",IF($F$135="","",0)),IF($E$135=0,IF($F$135=0,0,"Ny data"),($F$135-$E$135)/$E$135)) -> 0
A136: Filteranlæg, åbne filtre, dobbelt filtrering, Konstruktioner | B136: m³/h | C136: 50 | D136: 40 | E136: 40 | F136: 40 | G136: =IF($D$136="",IF($E$136>0,"Ny data",IF($E$136="","",0)),IF($D$136=0,IF($E$136=0,0,"Ny data"),($E$136-$D$136)/$D$136)) -> 0 | H136: =IF($E$136="",IF($F$136>0,"Ny data",IF($F$136="","",0)),IF($E$136=0,IF($F$136=0,0,"Ny data"),($F$136-$E$136)/$E$136)) -> 0
A137: Filteranlæg, åbne filtre, dobbelt filtrering, Mek./EL | B137: m³/h | C137: 25 | D137: 40 | E137: 40 | F137: 40 | G137: =IF($D$137="",IF($E$137>0,"Ny data",IF($E$137="","",0)),IF($D$137=0,IF($E$137=0,0,"Ny data"),($E$137-$D$137)/$D$137)) -> 0 | H137: =IF($E$137="",IF($F$137>0,"Ny data",IF($F$137="","",0)),IF($E$137=0,IF($F$137=0,0,"Ny data"),($F$137-$E$137)/$E$137)) -> 0
A138: Filteranlæg, trykfiltre, enkelt filtrering | B138: m³/h | C138: 25 | D138: 0 | E138: 0 | F138: 0 | G138: =IF($D$138="",IF($E$138>0,"Ny data",IF($E$138="","",0)),IF($D$138=0,IF($E$138=0,0,"Ny data"),($E$138-$D$138)/$D$138)) -> 0 | H138: =IF($E$138="",IF($F$138>0,"Ny data",IF($F$138="","",0)),IF($E$138=0,IF($F$138=0,0,"Ny data"),($F$138-$E$138)/$E$138)) -> 0
A139: Filteranlæg, trykfiltre, dobbelt filtrering | B139: m³/h | C139: 25 | D139: 0 | E139: 0 | F139: 0 | G139: =IF($D$139="",IF($E$139>0,"Ny data",IF($E$139="","",0)),IF($D$139=0,IF($E$139=0,0,"Ny data"),($E$139-$D$139)/$D$139)) -> 0 | H139: =IF($E$139="",IF($F$139>0,"Ny data",IF($F$139="","",0)),IF($E$139=0,IF($F$139=0,0,"Ny data"),($F$139-$E$139)/$E$139)) -> 0
A140: Rentvandsbeholder insitu støbt | B140: m³ | C140: 50 | D140: 120 | E140: 120 | F140: 120 | G140: =IF($D$140="",IF($E$140>0,"Ny data",IF($E$140="","",0)),IF($D$140=0,IF($E$140=0,0,"Ny data"),($E$140-$D$140)/$D$140)) -> 0 | H140: =IF($E$140="",IF($F$140>0,"Ny data",IF($F$140="","",0)),IF($E$140=0,IF($F$140=0,0,"Ny data"),($F$140-$E$140)/$E$140)) -> 0
A141: Rentvandsbeholder element | B141: m³ | C141: 50 | D141: 0 | E141: 0 | F141: 0 | G141: =IF($D$141="",IF($E$141>0,"Ny data",IF($E$141="","",0)),IF($D$141=0,IF($E$141=0,0,"Ny data"),($E$141-$D$141)/$D$141)) -> 0 | H141: =IF($E$141="",IF($F$141>0,"Ny data",IF($F$141="","",0)),IF($E$141=0,IF($F$141=0,0,"Ny data"),($F$141-$E$141)/$E$141)) -> 0
A142: Udpumpningsanlæg, rentvandspumper på vandværk | B142: m³/h | C142: 25 | D142: 40 | E142: 40 | F142: 40 | G142: =IF($D$142="",IF($E$142>0,"Ny data",IF($E$142="","",0)),IF($D$142=0,IF($E$142=0,0,"Ny data"),($E$142-$D$142)/$D$142)) -> 0 | H142: =IF($E$142="",IF($F$142>0,"Ny data",IF($F$142="","",0)),IF($E$142=0,IF($F$142=0,0,"Ny data"),($F$142-$E$142)/$E$142)) -> 0
A143: Udpumpningsanlæg, frekvensomformer | B143: kW | C143: 25 | D143: 5 | E143: 5 | F143: 5 | G143: =IF($D$143="",IF($E$143>0,"Ny data",IF($E$143="","",0)),IF($D$143=0,IF($E$143=0,0,"Ny data"),($E$143-$D$143)/$D$143)) -> 0 | H143: =IF($E$143="",IF($F$143>0,"Ny data",IF($F$143="","",0)),IF($E$143=0,IF($F$143=0,0,"Ny data"),($F$143-$E$143)/$E$143)) -> 0
A144: Udpumpningsanlæg, Hydrofor | B144: liter | C144: 25 | D144: 0 | E144: 0 | F144: 0 | G144: =IF($D$144="",IF($E$144>0,"Ny data",IF($E$144="","",0)),IF($D$144=0,IF($E$144=0,0,"Ny data"),($E$144-$D$144)/$D$144)) -> 0 | H144: =IF($E$144="",IF($F$144>0,"Ny data",IF($F$144="","",0)),IF($E$144=0,IF($F$144=0,0,"Ny data"),($F$144-$E$144)/$E$144)) -> 0
A145: Skyllevand-/slamhåndteringsanlæg - lukkede betonbeholdere | B145: m³ | C145: 50 | D145: 15 | E145: 15 | F145: 15 | G145: =IF($D$145="",IF($E$145>0,"Ny data",IF($E$145="","",0)),IF($D$145=0,IF($E$145=0,0,"Ny data"),($E$145-$D$145)/$D$145)) -> 0 | H145: =IF($E$145="",IF($F$145>0,"Ny data",IF($F$145="","",0)),IF($E$145=0,IF($F$145=0,0,"Ny data"),($F$145-$E$145)/$E$145)) -> 0
A146: Skyllevand-/slamhåndteringsanl. - åbne med faste sider/bund | B146: m³ | C146: 50 | D146: 0 | E146: 0 | F146: 0 | G146: =IF($D$146="",IF($E$146>0,"Ny data",IF($E$146="","",0)),IF($D$146=0,IF($E$146=0,0,"Ny data"),($E$146-$D$146)/$D$146)) -> 0 | H146: =IF($E$146="",IF($F$146>0,"Ny data",IF($F$146="","",0)),IF($E$146=0,IF($F$146=0,0,"Ny data"),($F$146-$E$146)/$E$146)) -> 0
A147: Skyllevand-/slamhåndteringsanlæg - jordbassiner | B147: m³ | C147: 50 | D147: 0 | E147: 0 | F147: 0 | G147: =IF($D$147="",IF($E$147>0,"Ny data",IF($E$147="","",0)),IF($D$147=0,IF($E$147=0,0,"Ny data"),($E$147-$D$147)/$D$147)) -> 0 | H147: =IF($E$147="",IF($F$147>0,"Ny data",IF($F$147="","",0)),IF($E$147=0,IF($F$147=0,0,"Ny data"),($F$147-$E$147)/$E$147)) -> 0
A148: Skyllevandsbehandling, inkl. UV-filter mv., Mek./EL | B148: m³/h. | C148: 25 | D148: 0 | E148: 0 | F148: 0 | G148: =IF($D$148="",IF($E$148>0,"Ny data",IF($E$148="","",0)),IF($D$148=0,IF($E$148=0,0,"Ny data"),($E$148-$D$148)/$D$148)) -> 0 | H148: =IF($E$148="",IF($F$148>0,"Ny data",IF($F$148="","",0)),IF($E$148=0,IF($F$148=0,0,"Ny data"),($F$148-$E$148)/$E$148)) -> 0
A149: Skyllevandsbehandling, inkl. UV-filter mv., SRO | B149: m³/h. | C149: 10 | D149: 0 | E149: 0 | F149: 0 | G149: =IF($D$149="",IF($E$149>0,"Ny data",IF($E$149="","",0)),IF($D$149=0,IF($E$149=0,0,"Ny data"),($E$149-$D$149)/$D$149)) -> 0 | H149: =IF($E$149="",IF($F$149>0,"Ny data",IF($F$149="","",0)),IF($E$149=0,IF($F$149=0,0,"Ny data"),($F$149-$E$149)/$E$149)) -> 0
A150: Nødstrømsanlæg på vandværk | B150: kW | C150: 25 | D150: 0 | E150: 0 | F150: 0 | G150: =IF($D$150="",IF($E$150>0,"Ny data",IF($E$150="","",0)),IF($D$150=0,IF($E$150=0,0,"Ny data"),($E$150-$D$150)/$D$150)) -> 0 | H150: =IF($E$150="",IF($F$150>0,"Ny data",IF($F$150="","",0)),IF($E$150=0,IF($F$150=0,0,"Ny data"),($F$150-$E$150)/$E$150)) -> 0
A151: Elanlæg og SRO-anlæg - vandværk, Elanlæg | B151: m³/h. | C151: 25 | D151: 40 | E151: 40 | F151: 40 | G151: =IF($D$151="",IF($E$151>0,"Ny data",IF($E$151="","",0)),IF($D$151=0,IF($E$151=0,0,"Ny data"),($E$151-$D$151)/$D$151)) -> 0 | H151: =IF($E$151="",IF($F$151>0,"Ny data",IF($F$151="","",0)),IF($E$151=0,IF($F$151=0,0,"Ny data"),($F$151-$E$151)/$E$151)) -> 0
A152: Elanlæg og SRO-anlæg - vandværk, SRO | B152: m³/h. | C152: 10 | D152: 40 | E152: 40 | F152: 40 | G152: =IF($D$152="",IF($E$152>0,"Ny data",IF($E$152="","",0)),IF($D$152=0,IF($E$152=0,0,"Ny data"),($E$152-$D$152)/$D$152)) -> 0 | H152: =IF($E$152="",IF($F$152>0,"Ny data",IF($F$152="","",0)),IF($E$152=0,IF($F$152=0,0,"Ny data"),($F$152-$E$152)/$E$152)) -> 0
A153: Vandværk 4 | G153: =IF($D$153="",IF($E$153>0,"Ny data",IF($E$153="","",0)),IF($D$153=0,IF($E$153=0,0,"Ny data"),($E$153-$D$153)/$D$153)) ->  | H153: =IF($E$153="",IF($F$153>0,"Ny data",IF($F$153="","",0)),IF($E$153=0,IF($F$153=0,0,"Ny data"),($F$153-$E$153)/$E$153)) -> 
A154: Beluftningsanlæg, iltningstrappe, Konstruktioner | B154: m³/h | C154: 50 | D154: 0 | E154: 0 | F154: 0 | G154: =IF($D$154="",IF($E$154>0,"Ny data",IF($E$154="","",0)),IF($D$154=0,IF($E$154=0,0,"Ny data"),($E$154-$D$154)/$D$154)) -> 0 | H154: =IF($E$154="",IF($F$154>0,"Ny data",IF($F$154="","",0)),IF($E$154=0,IF($F$154=0,0,"Ny data"),($F$154-$E$154)/$E$154)) -> 0
A155: Beluftningsanlæg, iltningstrappe, Mek./EL | B155: m³/h | C155: 25 | D155: 0 | E155: 0 | F155: 0 | G155: =IF($D$155="",IF($E$155>0,"Ny data",IF($E$155="","",0)),IF($D$155=0,IF($E$155=0,0,"Ny data"),($E$155-$D$155)/$D$155)) -> 0 | H155: =IF($E$155="",IF($F$155>0,"Ny data",IF($F$155="","",0)),IF($E$155=0,IF($F$155=0,0,"Ny data"),($F$155-$E$155)/$E$155)) -> 0
A156: Beluftningsanlæg, ika-beluftning, Konstruktioner | B156: m³/h | C156: 50 | D156: 0 | E156: 0 | F156: 0 | G156: =IF($D$156="",IF($E$156>0,"Ny data",IF($E$156="","",0)),IF($D$156=0,IF($E$156=0,0,"Ny data"),($E$156-$D$156)/$D$156)) -> 0 | H156: =IF($E$156="",IF($F$156>0,"Ny data",IF($F$156="","",0)),IF($E$156=0,IF($F$156=0,0,"Ny data"),($F$156-$E$156)/$E$156)) -> 0
A157: Beluftningsanlæg, ika-beluftning, Mek./EL | B157: m³/h | C157: 25 | D157: 0 | E157: 0 | F157: 0 | G157: =IF($D$157="",IF($E$157>0,"Ny data",IF($E$157="","",0)),IF($D$157=0,IF($E$157=0,0,"Ny data"),($E$157-$D$157)/$D$157)) -> 0 | H157: =IF($E$157="",IF($F$157>0,"Ny data",IF($F$157="","",0)),IF($E$157=0,IF($F$157=0,0,"Ny data"),($F$157-$E$157)/$E$157)) -> 0
A158: Beluftningsanlæg, bundbeluftbning, Konstruktioner | B158: m³/h | C158: 50 | D158: 44 | E158: 44 | F158: 44 | G158: =IF($D$158="",IF($E$158>0,"Ny data",IF($E$158="","",0)),IF($D$158=0,IF($E$158=0,0,"Ny data"),($E$158-$D$158)/$D$158)) -> 0 | H158: =IF($E$158="",IF($F$158>0,"Ny data",IF($F$158="","",0)),IF($E$158=0,IF($F$158=0,0,"Ny data"),($F$158-$E$158)/$E$158)) -> 0
A159: Beluftningsanlæg, bundbeluftbning, Mek./EL | B159: m³/h | C159: 25 | D159: 44 | E159: 44 | F159: 44 | G159: =IF($D$159="",IF($E$159>0,"Ny data",IF($E$159="","",0)),IF($D$159=0,IF($E$159=0,0,"Ny data"),($E$159-$D$159)/$D$159)) -> 0 | H159: =IF($E$159="",IF($F$159>0,"Ny data",IF($F$159="","",0)),IF($E$159=0,IF($F$159=0,0,"Ny data"),($F$159-$E$159)/$E$159)) -> 0
A160: Beluftningsanlæg, rislebakke, Konstruktioner | B160: m³/h | C160: 50 | D160: 0 | E160: 0 | F160: 0 | G160: =IF($D$160="",IF($E$160>0,"Ny data",IF($E$160="","",0)),IF($D$160=0,IF($E$160=0,0,"Ny data"),($E$160-$D$160)/$D$160)) -> 0 | H160: =IF($E$160="",IF($F$160>0,"Ny data",IF($F$160="","",0)),IF($E$160=0,IF($F$160=0,0,"Ny data"),($F$160-$E$160)/$E$160)) -> 0
A161: Beluftningsanlæg, rislebakke, Mek./EL | B161: m³/h | C161: 25 | D161: 0 | E161: 0 | F161: 0 | G161: =IF($D$161="",IF($E$161>0,"Ny data",IF($E$161="","",0)),IF($D$161=0,IF($E$161=0,0,"Ny data"),($E$161-$D$161)/$D$161)) -> 0 | H161: =IF($E$161="",IF($F$161>0,"Ny data",IF($F$161="","",0)),IF($E$161=0,IF($F$161=0,0,"Ny data"),($F$161-$E$161)/$E$161)) -> 0
A162: Beluftningsanlæg, kompressorbeluftning | B162: m³/h | C162: 25 | D162: 0 | E162: 0 | F162: 0 | G162: =IF($D$162="",IF($E$162>0,"Ny data",IF($E$162="","",0)),IF($D$162=0,IF($E$162=0,0,"Ny data"),($E$162-$D$162)/$D$162)) -> 0 | H162: =IF($E$162="",IF($F$162>0,"Ny data",IF($F$162="","",0)),IF($E$162=0,IF($F$162=0,0,"Ny data"),($F$162-$E$162)/$E$162)) -> 0
A163: Beluftningsanlæg, ren ilt | B163: m³/h | C163: 25 | D163: 0 | E163: 0 | F163: 0 | G163: =IF($D$163="",IF($E$163>0,"Ny data",IF($E$163="","",0)),IF($D$163=0,IF($E$163=0,0,"Ny data"),($E$163-$D$163)/$D$163)) -> 0 | H163: =IF($E$163="",IF($F$163>0,"Ny data",IF($F$163="","",0)),IF($E$163=0,IF($F$163=0,0,"Ny data"),($F$163-$E$163)/$E$163)) -> 0
A164: Behandlingsanlæg, kalk anlæg | B164: m³/h | C164: 25 | D164: 0 | E164: 0 | F164: 0 | G164: =IF($D$164="",IF($E$164>0,"Ny data",IF($E$164="","",0)),IF($D$164=0,IF($E$164=0,0,"Ny data"),($E$164-$D$164)/$D$164)) -> 0 | H164: =IF($E$164="",IF($F$164>0,"Ny data",IF($F$164="","",0)),IF($E$164=0,IF($F$164=0,0,"Ny data"),($F$164-$E$164)/$E$164)) -> 0
A165: Behandlingsanlæg, luddosering | B165: m³/h | C165: 25 | D165: 0 | E165: 0 | F165: 0 | G165: =IF($D$165="",IF($E$165>0,"Ny data",IF($E$165="","",0)),IF($D$165=0,IF($E$165=0,0,"Ny data"),($E$165-$D$165)/$D$165)) -> 0 | H165: =IF($E$165="",IF($F$165>0,"Ny data",IF($F$165="","",0)),IF($E$165=0,IF($F$165=0,0,"Ny data"),($F$165-$E$165)/$E$165)) -> 0
A166: Filteranlæg, åbne filtre, enkelt filtrering, Konstruktioner | B166: m³/h | C166: 50 | D166: 0 | E166: 0 | F166: 0 | G166: =IF($D$166="",IF($E$166>0,"Ny data",IF($E$166="","",0)),IF($D$166=0,IF($E$166=0,0,"Ny data"),($E$166-$D$166)/$D$166)) -> 0 | H166: =IF($E$166="",IF($F$166>0,"Ny data",IF($F$166="","",0)),IF($E$166=0,IF($F$166=0,0,"Ny data"),($F$166-$E$166)/$E$166)) -> 0
A167: Filteranlæg, åbne filtre, enkelt filtrering, Mek./EL | B167: m³/h | C167: 25 | D167: 0 | E167: 0 | F167: 0 | G167: =IF($D$167="",IF($E$167>0,"Ny data",IF($E$167="","",0)),IF($D$167=0,IF($E$167=0,0,"Ny data"),($E$167-$D$167)/$D$167)) -> 0 | H167: =IF($E$167="",IF($F$167>0,"Ny data",IF($F$167="","",0)),IF($E$167=0,IF($F$167=0,0,"Ny data"),($F$167-$E$167)/$E$167)) -> 0
A168: Filteranlæg, åbne filtre, dobbelt filtrering, Konstruktioner | B168: m³/h | C168: 50 | D168: 44 | E168: 44 | F168: 44 | G168: =IF($D$168="",IF($E$168>0,"Ny data",IF($E$168="","",0)),IF($D$168=0,IF($E$168=0,0,"Ny data"),($E$168-$D$168)/$D$168)) -> 0 | H168: =IF($E$168="",IF($F$168>0,"Ny data",IF($F$168="","",0)),IF($E$168=0,IF($F$168=0,0,"Ny data"),($F$168-$E$168)/$E$168)) -> 0
A169: Filteranlæg, åbne filtre, dobbelt filtrering, Mek./EL | B169: m³/h | C169: 25 | D169: 44 | E169: 44 | F169: 44 | G169: =IF($D$169="",IF($E$169>0,"Ny data",IF($E$169="","",0)),IF($D$169=0,IF($E$169=0,0,"Ny data"),($E$169-$D$169)/$D$169)) -> 0 | H169: =IF($E$169="",IF($F$169>0,"Ny data",IF($F$169="","",0)),IF($E$169=0,IF($F$169=0,0,"Ny data"),($F$169-$E$169)/$E$169)) -> 0
A170: Filteranlæg, trykfiltre, enkelt filtrering | B170: m³/h | C170: 25 | D170: 0 | E170: 0 | F170: 0 | G170: =IF($D$170="",IF($E$170>0,"Ny data",IF($E$170="","",0)),IF($D$170=0,IF($E$170=0,0,"Ny data"),($E$170-$D$170)/$D$170)) -> 0 | H170: =IF($E$170="",IF($F$170>0,"Ny data",IF($F$170="","",0)),IF($E$170=0,IF($F$170=0,0,"Ny data"),($F$170-$E$170)/$E$170)) -> 0
A171: Filteranlæg, trykfiltre, dobbelt filtrering | B171: m³/h | C171: 25 | D171: 0 | E171: 0 | F171: 0 | G171: =IF($D$171="",IF($E$171>0,"Ny data",IF($E$171="","",0)),IF($D$171=0,IF($E$171=0,0,"Ny data"),($E$171-$D$171)/$D$171)) -> 0 | H171: =IF($E$171="",IF($F$171>0,"Ny data",IF($F$171="","",0)),IF($E$171=0,IF($F$171=0,0,"Ny data"),($F$171-$E$171)/$E$171)) -> 0
A172: Rentvandsbeholder insitu støbt | B172: m³ | C172: 50 | D172: 200 | E172: 200 | F172: 200 | G172: =IF($D$172="",IF($E$172>0,"Ny data",IF($E$172="","",0)),IF($D$172=0,IF($E$172=0,0,"Ny data"),($E$172-$D$172)/$D$172)) -> 0 | H172: =IF($E$172="",IF($F$172>0,"Ny data",IF($F$172="","",0)),IF($E$172=0,IF($F$172=0,0,"Ny data"),($F$172-$E$172)/$E$172)) -> 0
A173: Rentvandsbeholder element | B173: m³ | C173: 50 | D173: 0 | E173: 0 | F173: 0 | G173: =IF($D$173="",IF($E$173>0,"Ny data",IF($E$173="","",0)),IF($D$173=0,IF($E$173=0,0,"Ny data"),($E$173-$D$173)/$D$173)) -> 0 | H173: =IF($E$173="",IF($F$173>0,"Ny data",IF($F$173="","",0)),IF($E$173=0,IF($F$173=0,0,"Ny data"),($F$173-$E$173)/$E$173)) -> 0
A174: Udpumpningsanlæg, rentvandspumper på vandværk | B174: m³/h | C174: 25 | D174: 150 | E174: 150 | F174: 150 | G174: =IF($D$174="",IF($E$174>0,"Ny data",IF($E$174="","",0)),IF($D$174=0,IF($E$174=0,0,"Ny data"),($E$174-$D$174)/$D$174)) -> 0 | H174: =IF($E$174="",IF($F$174>0,"Ny data",IF($F$174="","",0)),IF($E$174=0,IF($F$174=0,0,"Ny data"),($F$174-$E$174)/$E$174)) -> 0
A175: Udpumpningsanlæg, frekvensomformer | B175: kW | C175: 25 | D175: 10 | E175: 10 | F175: 10 | G175: =IF($D$175="",IF($E$175>0,"Ny data",IF($E$175="","",0)),IF($D$175=0,IF($E$175=0,0,"Ny data"),($E$175-$D$175)/$D$175)) -> 0 | H175: =IF($E$175="",IF($F$175>0,"Ny data",IF($F$175="","",0)),IF($E$175=0,IF($F$175=0,0,"Ny data"),($F$175-$E$175)/$E$175)) -> 0
A176: Udpumpningsanlæg, Hydrofor | B176: liter | C176: 25 | D176: 0 | E176: 0 | F176: 0 | G176: =IF($D$176="",IF($E$176>0,"Ny data",IF($E$176="","",0)),IF($D$176=0,IF($E$176=0,0,"Ny data"),($E$176-$D$176)/$D$176)) -> 0 | H176: =IF($E$176="",IF($F$176>0,"Ny data",IF($F$176="","",0)),IF($E$176=0,IF($F$176=0,0,"Ny data"),($F$176-$E$176)/$E$176)) -> 0
A177: Skyllevand-/slamhåndteringsanlæg - lukkede betonbeholdere | B177: m³ | C177: 50 | D177: 20 | E177: 20 | F177: 20 | G177: =IF($D$177="",IF($E$177>0,"Ny data",IF($E$177="","",0)),IF($D$177=0,IF($E$177=0,0,"Ny data"),($E$177-$D$177)/$D$177)) -> 0 | H177: =IF($E$177="",IF($F$177>0,"Ny data",IF($F$177="","",0)),IF($E$177=0,IF($F$177=0,0,"Ny data"),($F$177-$E$177)/$E$177)) -> 0
A178: Skyllevand-/slamhåndteringsanl. - åbne med faste sider/bund | B178: m³ | C178: 50 | D178: 0 | E178: 0 | F178: 0 | G178: =IF($D$178="",IF($E$178>0,"Ny data",IF($E$178="","",0)),IF($D$178=0,IF($E$178=0,0,"Ny data"),($E$178-$D$178)/$D$178)) -> 0 | H178: =IF($E$178="",IF($F$178>0,"Ny data",IF($F$178="","",0)),IF($E$178=0,IF($F$178=0,0,"Ny data"),($F$178-$E$178)/$E$178)) -> 0
A179: Skyllevand-/slamhåndteringsanlæg - jordbassiner | B179: m³ | C179: 50 | D179: 0 | E179: 0 | F179: 0 | G179: =IF($D$179="",IF($E$179>0,"Ny data",IF($E$179="","",0)),IF($D$179=0,IF($E$179=0,0,"Ny data"),($E$179-$D$179)/$D$179)) -> 0 | H179: =IF($E$179="",IF($F$179>0,"Ny data",IF($F$179="","",0)),IF($E$179=0,IF($F$179=0,0,"Ny data"),($F$179-$E$179)/$E$179)) -> 0
A180: Skyllevandsbehandling, inkl. UV-filter mv., Mek./EL | B180: m³/h. | C180: 25 | D180: 5 | E180: 5 | F180: 5 | G180: =IF($D$180="",IF($E$180>0,"Ny data",IF($E$180="","",0)),IF($D$180=0,IF($E$180=0,0,"Ny data"),($E$180-$D$180)/$D$180)) -> 0 | H180: =IF($E$180="",IF($F$180>0,"Ny data",IF($F$180="","",0)),IF($E$180=0,IF($F$180=0,0,"Ny data"),($F$180-$E$180)/$E$180)) -> 0
A181: Skyllevandsbehandling, inkl. UV-filter mv., SRO | B181: m³/h. | C181: 10 | D181: 5 | E181: 5 | F181: 5 | G181: =IF($D$181="",IF($E$181>0,"Ny data",IF($E$181="","",0)),IF($D$181=0,IF($E$181=0,0,"Ny data"),($E$181-$D$181)/$D$181)) -> 0 | H181: =IF($E$181="",IF($F$181>0,"Ny data",IF($F$181="","",0)),IF($E$181=0,IF($F$181=0,0,"Ny data"),($F$181-$E$181)/$E$181)) -> 0
A182: Nødstrømsanlæg på vandværk | B182: kW | C182: 25 | D182: 0 | E182: 0 | F182: 0 | G182: =IF($D$182="",IF($E$182>0,"Ny data",IF($E$182="","",0)),IF($D$182=0,IF($E$182=0,0,"Ny data"),($E$182-$D$182)/$D$182)) -> 0 | H182: =IF($E$182="",IF($F$182>0,"Ny data",IF($F$182="","",0)),IF($E$182=0,IF($F$182=0,0,"Ny data"),($F$182-$E$182)/$E$182)) -> 0
A183: Elanlæg og SRO-anlæg - vandværk, Elanlæg | B183: m³/h. | C183: 25 | D183: 44 | E183: 44 | F183: 44 | G183: =IF($D$183="",IF($E$183>0,"Ny data",IF($E$183="","",0)),IF($D$183=0,IF($E$183=0,0,"Ny data"),($E$183-$D$183)/$D$183)) -> 0 | H183: =IF($E$183="",IF($F$183>0,"Ny data",IF($F$183="","",0)),IF($E$183=0,IF($F$183=0,0,"Ny data"),($F$183-$E$183)/$E$183)) -> 0
A184: Elanlæg og SRO-anlæg - vandværk, SRO | B184: m³/h. | C184: 10 | D184: 44 | E184: 44 | F184: 44 | G184: =IF($D$184="",IF($E$184>0,"Ny data",IF($E$184="","",0)),IF($D$184=0,IF($E$184=0,0,"Ny data"),($E$184-$D$184)/$D$184)) -> 0 | H184: =IF($E$184="",IF($F$184>0,"Ny data",IF($F$184="","",0)),IF($E$184=0,IF($F$184=0,0,"Ny data"),($F$184-$E$184)/$E$184)) -> 0
A185: Vandværk 5 | G185: =IF($D$185="",IF($E$185>0,"Ny data",IF($E$185="","",0)),IF($D$185=0,IF($E$185=0,0,"Ny data"),($E$185-$D$185)/$D$185)) ->  | H185: =IF($E$185="",IF($F$185>0,"Ny data",IF($F$185="","",0)),IF($E$185=0,IF($F$185=0,0,"Ny data"),($F$185-$E$185)/$E$185)) -> 
A186: Beluftningsanlæg, iltningstrappe, Konstruktioner | B186: m³/h | C186: 50 | D186: 0 | E186: 0 | F186: 0 | G186: =IF($D$186="",IF($E$186>0,"Ny data",IF($E$186="","",0)),IF($D$186=0,IF($E$186=0,0,"Ny data"),($E$186-$D$186)/$D$186)) -> 0 | H186: =IF($E$186="",IF($F$186>0,"Ny data",IF($F$186="","",0)),IF($E$186=0,IF($F$186=0,0,"Ny data"),($F$186-$E$186)/$E$186)) -> 0
A187: Beluftningsanlæg, iltningstrappe, Mek./EL | B187: m³/h | C187: 25 | D187: 0 | E187: 0 | F187: 0 | G187: =IF($D$187="",IF($E$187>0,"Ny data",IF($E$187="","",0)),IF($D$187=0,IF($E$187=0,0,"Ny data"),($E$187-$D$187)/$D$187)) -> 0 | H187: =IF($E$187="",IF($F$187>0,"Ny data",IF($F$187="","",0)),IF($E$187=0,IF($F$187=0,0,"Ny data"),($F$187-$E$187)/$E$187)) -> 0
A188: Beluftningsanlæg, ika-beluftning, Konstruktioner | B188: m³/h | C188: 50 | D188: 0 | E188: 0 | F188: 0 | G188: =IF($D$188="",IF($E$188>0,"Ny data",IF($E$188="","",0)),IF($D$188=0,IF($E$188=0,0,"Ny data"),($E$188-$D$188)/$D$188)) -> 0 | H188: =IF($E$188="",IF($F$188>0,"Ny data",IF($F$188="","",0)),IF($E$188=0,IF($F$188=0,0,"Ny data"),($F$188-$E$188)/$E$188)) -> 0
A189: Beluftningsanlæg, ika-beluftning, Mek./EL | B189: m³/h | C189: 25 | D189: 0 | E189: 0 | F189: 0 | G189: =IF($D$189="",IF($E$189>0,"Ny data",IF($E$189="","",0)),IF($D$189=0,IF($E$189=0,0,"Ny data"),($E$189-$D$189)/$D$189)) -> 0 | H189: =IF($E$189="",IF($F$189>0,"Ny data",IF($F$189="","",0)),IF($E$189=0,IF($F$189=0,0,"Ny data"),($F$189-$E$189)/$E$189)) -> 0
A190: Beluftningsanlæg, bundbeluftbning, Konstruktioner | B190: m³/h | C190: 50 | D190: 85 | E190: 85 | F190: 85 | G190: =IF($D$190="",IF($E$190>0,"Ny data",IF($E$190="","",0)),IF($D$190=0,IF($E$190=0,0,"Ny data"),($E$190-$D$190)/$D$190)) -> 0 | H190: =IF($E$190="",IF($F$190>0,"Ny data",IF($F$190="","",0)),IF($E$190=0,IF($F$190=0,0,"Ny data"),($F$190-$E$190)/$E$190)) -> 0
A191: Beluftningsanlæg, bundbeluftbning, Mek./EL | B191: m³/h | C191: 25 | D191: 85 | E191: 85 | F191: 85 | G191: =IF($D$191="",IF($E$191>0,"Ny data",IF($E$191="","",0)),IF($D$191=0,IF($E$191=0,0,"Ny data"),($E$191-$D$191)/$D$191)) -> 0 | H191: =IF($E$191="",IF($F$191>0,"Ny data",IF($F$191="","",0)),IF($E$191=0,IF($F$191=0,0,"Ny data"),($F$191-$E$191)/$E$191)) -> 0
A192: Beluftningsanlæg, rislebakke, Konstruktioner | B192: m³/h | C192: 50 | D192: 0 | E192: 0 | F192: 0 | G192: =IF($D$192="",IF($E$192>0,"Ny data",IF($E$192="","",0)),IF($D$192=0,IF($E$192=0,0,"Ny data"),($E$192-$D$192)/$D$192)) -> 0 | H192: =IF($E$192="",IF($F$192>0,"Ny data",IF($F$192="","",0)),IF($E$192=0,IF($F$192=0,0,"Ny data"),($F$192-$E$192)/$E$192)) -> 0
A193: Beluftningsanlæg, rislebakke, Mek./EL | B193: m³/h | C193: 25 | D193: 0 | E193: 0 | F193: 0 | G193: =IF($D$193="",IF($E$193>0,"Ny data",IF($E$193="","",0)),IF($D$193=0,IF($E$193=0,0,"Ny data"),($E$193-$D$193)/$D$193)) -> 0 | H193: =IF($E$193="",IF($F$193>0,"Ny data",IF($F$193="","",0)),IF($E$193=0,IF($F$193=0,0,"Ny data"),($F$193-$E$193)/$E$193)) -> 0
A194: Beluftningsanlæg, kompressorbeluftning | B194: m³/h | C194: 25 | D194: 0 | E194: 0 | F194: 0 | G194: =IF($D$194="",IF($E$194>0,"Ny data",IF($E$194="","",0)),IF($D$194=0,IF($E$194=0,0,"Ny data"),($E$194-$D$194)/$D$194)) -> 0 | H194: =IF($E$194="",IF($F$194>0,"Ny data",IF($F$194="","",0)),IF($E$194=0,IF($F$194=0,0,"Ny data"),($F$194-$E$194)/$E$194)) -> 0
A195: Beluftningsanlæg, ren ilt | B195: m³/h | C195: 25 | D195: 0 | E195: 0 | F195: 0 | G195: =IF($D$195="",IF($E$195>0,"Ny data",IF($E$195="","",0)),IF($D$195=0,IF($E$195=0,0,"Ny data"),($E$195-$D$195)/$D$195)) -> 0 | H195: =IF($E$195="",IF($F$195>0,"Ny data",IF($F$195="","",0)),IF($E$195=0,IF($F$195=0,0,"Ny data"),($F$195-$E$195)/$E$195)) -> 0
A196: Behandlingsanlæg, kalk anlæg | B196: m³/h | C196: 25 | D196: 0 | E196: 0 | F196: 0 | G196: =IF($D$196="",IF($E$196>0,"Ny data",IF($E$196="","",0)),IF($D$196=0,IF($E$196=0,0,"Ny data"),($E$196-$D$196)/$D$196)) -> 0 | H196: =IF($E$196="",IF($F$196>0,"Ny data",IF($F$196="","",0)),IF($E$196=0,IF($F$196=0,0,"Ny data"),($F$196-$E$196)/$E$196)) -> 0
A197: Behandlingsanlæg, luddosering | B197: m³/h | C197: 25 | D197: 0 | E197: 0 | F197: 0 | G197: =IF($D$197="",IF($E$197>0,"Ny data",IF($E$197="","",0)),IF($D$197=0,IF($E$197=0,0,"Ny data"),($E$197-$D$197)/$D$197)) -> 0 | H197: =IF($E$197="",IF($F$197>0,"Ny data",IF($F$197="","",0)),IF($E$197=0,IF($F$197=0,0,"Ny data"),($F$197-$E$197)/$E$197)) -> 0
A198: Filteranlæg, åbne filtre, enkelt filtrering, Konstruktioner | B198: m³/h | C198: 50 | D198: 0 | E198: 0 | F198: 0 | G198: =IF($D$198="",IF($E$198>0,"Ny data",IF($E$198="","",0)),IF($D$198=0,IF($E$198=0,0,"Ny data"),($E$198-$D$198)/$D$198)) -> 0 | H198: =IF($E$198="",IF($F$198>0,"Ny data",IF($F$198="","",0)),IF($E$198=0,IF($F$198=0,0,"Ny data"),($F$198-$E$198)/$E$198)) -> 0
A199: Filteranlæg, åbne filtre, enkelt filtrering, Mek./EL | B199: m³/h | C199: 25 | D199: 0 | E199: 0 | F199: 0 | G199: =IF($D$199="",IF($E$199>0,"Ny data",IF($E$199="","",0)),IF($D$199=0,IF($E$199=0,0,"Ny data"),($E$199-$D$199)/$D$199)) -> 0 | H199: =IF($E$199="",IF($F$199>0,"Ny data",IF($F$199="","",0)),IF($E$199=0,IF($F$199=0,0,"Ny data"),($F$199-$E$199)/$E$199)) -> 0
A200: Filteranlæg, åbne filtre, dobbelt filtrering, Konstruktioner | B200: m³/h | C200: 50 | D200: 85 | E200: 85 | F200: 85 | G200: =IF($D$200="",IF($E$200>0,"Ny data",IF($E$200="","",0)),IF($D$200=0,IF($E$200=0,0,"Ny data"),($E$200-$D$200)/$D$200)) -> 0 | H200: =IF($E$200="",IF($F$200>0,"Ny data",IF($F$200="","",0)),IF($E$200=0,IF($F$200=0,0,"Ny data"),($F$200-$E$200)/$E$200)) -> 0
A201: Filteranlæg, åbne filtre, dobbelt filtrering, Mek./EL | B201: m³/h | C201: 25 | D201: 85 | E201: 85 | F201: 85 | G201: =IF($D$201="",IF($E$201>0,"Ny data",IF($E$201="","",0)),IF($D$201=0,IF($E$201=0,0,"Ny data"),($E$201-$D$201)/$D$201)) -> 0 | H201: =IF($E$201="",IF($F$201>0,"Ny data",IF($F$201="","",0)),IF($E$201=0,IF($F$201=0,0,"Ny data"),($F$201-$E$201)/$E$201)) -> 0
... 799 more rows

Sheet Distributionsanlæg
A1: Distributionsanlæg | B1: Enhed | C1: Standard-levetid | D1: Samlet mængde per 31/12-2019 | E1: Samlet mængde per 31/12-2020 | F1: Samlet mængde per 31/12-2021 | G1: Afvigelse 2019-2020 | H1: Afvigelse 2020-2021 | I1: Bemærkninger
A3: Ledningsnet - Land | G3: =IF($D$3="",IF($E$3>0,"Ny data",IF($E$3="","",0)),IF($D$3=0,IF($E$3=0,0,"Ny data"),($E$3-$D$3)/$D$3)) ->  | H3: =IF($E$3="",IF($F$3>0,"Ny data",IF($F$3="","",0)),IF($E$3=0,IF($F$3=0,0,"Ny data"),($F$3-$E$3)/$E$3)) -> 
A4: Ledningsnet ≤ Ø50 mm | B4: meter | C4: 75 | D4: 1404.29569 | E4: 1929.5694 | F4: 5668.17632 | G4: =IF($D$4="",IF($E$4>0,"Ny data",IF($E$4="","",0)),IF($D$4=0,IF($E$4=0,0,"Ny data"),($E$4-$D$4)/$D$4)) -> 0.3740477971 | H4: =IF($E$4="",IF($F$4>0,"Ny data",IF($F$4="","",0)),IF($E$4=0,IF($F$4=0,0,"Ny data"),($F$4-$E$4)/$E$4)) -> 1.937534312 | I4: Udvidelse af forsyningsområdet med overtagelse af mindre private vandforsyninger
A5: Ø 50mm < Ledningsnet ≤ Ø110 mm | B5: meter | C5: 75 | D5: 9331.526117 | E5: 11734.2388 | F5: 12287.71507 | G5: =IF($D$5="",IF($E$5>0,"Ny data",IF($E$5="","",0)),IF($D$5=0,IF($E$5=0,0,"Ny data"),($E$5-$D$5)/$D$5)) -> 0.2574833583 | H5: =IF($E$5="",IF($F$5>0,"Ny data",IF($F$5="","",0)),IF($E$5=0,IF($F$5=0,0,"Ny data"),($F$5-$E$5)/$E$5)) -> 0.04716763341 | I5: Udvidelse af forsyningsområdet med overtagelse af mindre private vandforsyninger
A6: Ø110 mm < Ledningsnet ≤ Ø 250 mm | B6: meter | C6: 75 | D6: 5776.848595 | E6: 6216.3372 | F6: 8308.404306 | G6: =IF($D$6="",IF($E$6>0,"Ny data",IF($E$6="","",0)),IF($D$6=0,IF($E$6=0,0,"Ny data"),($E$6-$D$6)/$D$6)) -> 0.07607757024 | H6: =IF($E$6="",IF($F$6>0,"Ny data",IF($F$6="","",0)),IF($E$6=0,IF($F$6=0,0,"Ny data"),($F$6-$E$6)/$E$6)) -> 0.3365433757 | I6: Udvidelse af forsyningsområdet med overtagelse af mindre private vandforsyninger
A7: Ø 250 mm < Ledningsnet ≤ Ø 500mm | B7: meter | C7: 75 | D7: 5375.95883 | E7: 5391.1001 | F7: 5651.877411 | G7: =IF($D$7="",IF($E$7>0,"Ny data",IF($E$7="","",0)),IF($D$7=0,IF($E$7=0,0,"Ny data"),($E$7-$D$7)/$D$7)) -> 0.002816478086 | H7: =IF($E$7="",IF($F$7>0,"Ny data",IF($F$7="","",0)),IF($E$7=0,IF($F$7=0,0,"Ny data"),($F$7-$E$7)/$E$7)) -> 0.04837181763
A8: Ledningsnet > Ø 500 mm | B8: meter | C8: 75 | D8: 0 | E8: 0 | F8: 0 | G8: =IF($D$8="",IF($E$8>0,"Ny data",IF($E$8="","",0)),IF($D$8=0,IF($E$8=0,0,"Ny data"),($E$8-$D$8)/$D$8)) -> 0 | H8: =IF($E$8="",IF($F$8>0,"Ny data",IF($F$8="","",0)),IF($E$8=0,IF($F$8=0,0,"Ny data"),($F$8-$E$8)/$E$8)) -> 0 | I8: Udvidelse af forsyningsområdet med overtagelse af mindre private vandforsyninger
A9: Støbejernsledninger ≤ Ø50 mm | B9: meter | C9: 100 | D9: 82.24227372 | E9: 267.5435 | F9: 284.2133618 | G9: =IF($D$9="",IF($E$9>0,"Ny data",IF($E$9="","",0)),IF($D$9=0,IF($E$9=0,0,"Ny data"),($E$9-$D$9)/$D$9)) -> 2.253114097 | H9: =IF($E$9="",IF($F$9>0,"Ny data",IF($F$9="","",0)),IF($E$9=0,IF($F$9=0,0,"Ny data"),($F$9-$E$9)/$E$9)) -> 0.06230710801 | I9: Udvidelse af forsyningsområdet med overtagelse af mindre private vandforsyninger
A10: Støbejernsledninger Ø 50mm < Ledningsnet ≤ Ø110 mm | B10: meter | C10: 100 | D10: 1285.766579 | E10: 1092.7901 | F10: 1341.620288 | G10: =IF($D$10="",IF($E$10>0,"Ny data",IF($E$10="","",0)),IF($D$10=0,IF($E$10=0,0,"Ny data"),($E$10-$D$10)/$D$10)) -> -0.1500867127 | H10: =IF($E$10="",IF($F$10>0,"Ny data",IF($F$10="","",0)),IF($E$10=0,IF($F$10=0,0,"Ny data"),($F$10-$E$10)/$E$10)) -> 0.2277017221 | I10: Udvidelse af forsyningsområdet med overtagelse af mindre private vandforsyninger
A11: Støbejernsledninger Ø110 mm < Ledningsnet ≤ Ø 250 mm | B11: meter | C11: 100 | D11: 629.4914931 | E11: 631.3898 | F11: 639.985615 | G11: =IF($D$11="",IF($E$11>0,"Ny data",IF($E$11="","",0)),IF($D$11=0,IF($E$11=0,0,"Ny data"),($E$11-$D$11)/$D$11)) -> 0.003015619597 | H11: =IF($E$11="",IF($F$11>0,"Ny data",IF($F$11="","",0)),IF($E$11=0,IF($F$11=0,0,"Ny data"),($F$11-$E$11)/$E$11)) -> 0.01361411755
A12: Støbejernsledninger Ø 250 mm < Ledningsnet ≤ Ø 500mm | B12: meter | C12: 100 | D12: 0 | E12: 0 | F12: 0 | G12: =IF($D$12="",IF($E$12>0,"Ny data",IF($E$12="","",0)),IF($D$12=0,IF($E$12=0,0,"Ny data"),($E$12-$D$12)/$D$12)) -> 0 | H12: =IF($E$12="",IF($F$12>0,"Ny data",IF($F$12="","",0)),IF($E$12=0,IF($F$12=0,0,"Ny data"),($F$12-$E$12)/$E$12)) -> 0
A13: Støbejernsledninger Ledningsnet > Ø 500 mm | B13: meter | C13: 100 | D13: 0 | E13: 0 | F13: 0 | G13: =IF($D$13="",IF($E$13>0,"Ny data",IF($E$13="","",0)),IF($D$13=0,IF($E$13=0,0,"Ny data"),($E$13-$D$13)/$D$13)) -> 0 | H13: =IF($E$13="",IF($F$13>0,"Ny data",IF($F$13="","",0)),IF($E$13=0,IF($F$13=0,0,"Ny data"),($F$13-$E$13)/$E$13)) -> 0
A14: Eternitledninger ≤ Ø50 mm | B14: meter | C14: 75 | D14: 0 | E14: 0 | F14: 0 | G14: =IF($D$14="",IF($E$14>0,"Ny data",IF($E$14="","",0)),IF($D$14=0,IF($E$14=0,0,"Ny data"),($E$14-$D$14)/$D$14)) -> 0 | H14: =IF($E$14="",IF($F$14>0,"Ny data",IF($F$14="","",0)),IF($E$14=0,IF($F$14=0,0,"Ny data"),($F$14-$E$14)/$E$14)) -> 0
A15: Eternitledninger Ø 50mm < Ledningsnet ≤ Ø110 mm | B15: meter | C15: 75 | D15: 0 | E15: 0 | F15: 179.0480082 | G15: =IF($D$15="",IF($E$15>0,"Ny data",IF($E$15="","",0)),IF($D$15=0,IF($E$15=0,0,"Ny data"),($E$15-$D$15)/$D$15)) -> 0 | H15: =IF($E$15="",IF($F$15>0,"Ny data",IF($F$15="","",0)),IF($E$15=0,IF($F$15=0,0,"Ny data"),($F$15-$E$15)/$E$15)) -> Ny data | I15: Udvidelse af forsyningsområdet med overtagelse af mindre private vandforsyninger
A16: Eternitledninger Ø110 mm < Ledningsnet ≤ Ø 250 mm | B16: meter | C16: 75 | D16: 3292.003251 | E16: 2925.7058 | F16: 3083.183921 | G16: =IF($D$16="",IF($E$16>0,"Ny data",IF($E$16="","",0)),IF($D$16=0,IF($E$16=0,0,"Ny data"),($E$16-$D$16)/$D$16)) -> -0.1112688608 | H16: =IF($E$16="",IF($F$16>0,"Ny data",IF($F$16="","",0)),IF($E$16=0,IF($F$16=0,0,"Ny data"),($F$16-$E$16)/$E$16)) -> 0.05382568562
A17: Eternitledninger Ø 250 mm < Ledningsnet ≤ Ø 500mm | B17: meter | C17: 75 | D17: 597.9561691 | E17: 598.8493 | F17: 683.8437754 | G17: =IF($D$17="",IF($E$17>0,"Ny data",IF($E$17="","",0)),IF($D$17=0,IF($E$17=0,0,"Ny data"),($E$17-$D$17)/$D$17)) -> 0.001493639401 | H17: =IF($E$17="",IF($F$17>0,"Ny data",IF($F$17="","",0)),IF($E$17=0,IF($F$17=0,0,"Ny data"),($F$17-$E$17)/$E$17)) -> 0.1419296564
A18: Eternitledninger Ledningsnet > Ø 500 mm | B18: meter | C18: 75 | D18: 0 | E18: 0 | F18: 0 | G18: =IF($D$18="",IF($E$18>0,"Ny data",IF($E$18="","",0)),IF($D$18=0,IF($E$18=0,0,"Ny data"),($E$18-$D$18)/$D$18)) -> 0 | H18: =IF($E$18="",IF($F$18>0,"Ny data",IF($F$18="","",0)),IF($E$18=0,IF($F$18=0,0,"Ny data"),($F$18-$E$18)/$E$18)) -> 0
A19: Skelbrønd, Konstruktioner | B19: stk. | C19: 50 | D19: 0 | E19: 0 | F19: 0 | G19: =IF($D$19="",IF($E$19>0,"Ny data",IF($E$19="","",0)),IF($D$19=0,IF($E$19=0,0,"Ny data"),($E$19-$D$19)/$D$19)) -> 0 | H19: =IF($E$19="",IF($F$19>0,"Ny data",IF($F$19="","",0)),IF($E$19=0,IF($F$19=0,0,"Ny data"),($F$19-$E$19)/$E$19)) -> 0
A20: Skelbrønd, Mek./EL | B20: stk. | C20: 15 | D20: 0 | E20: 0 | F20: 0 | G20: =IF($D$20="",IF($E$20>0,"Ny data",IF($E$20="","",0)),IF($D$20=0,IF($E$20=0,0,"Ny data"),($E$20-$D$20)/$D$20)) -> 0 | H20: =IF($E$20="",IF($F$20>0,"Ny data",IF($F$20="","",0)),IF($E$20=0,IF($F$20=0,0,"Ny data"),($F$20-$E$20)/$E$20)) -> 0
A21: Inspektionsbrønd, Konstruktioner | B21: stk. | C21: 50 | D21: 0 | E21: 0 | F21: 0 | G21: =IF($D$21="",IF($E$21>0,"Ny data",IF($E$21="","",0)),IF($D$21=0,IF($E$21=0,0,"Ny data"),($E$21-$D$21)/$D$21)) -> 0 | H21: =IF($E$21="",IF($F$21>0,"Ny data",IF($F$21="","",0)),IF($E$21=0,IF($F$21=0,0,"Ny data"),($F$21-$E$21)/$E$21)) -> 0
A22: Inspektionsbrønd, Mek./EL | B22: stk. | C22: 15 | D22: 0 | E22: 0 | F22: 0 | G22: =IF($D$22="",IF($E$22>0,"Ny data",IF($E$22="","",0)),IF($D$22=0,IF($E$22=0,0,"Ny data"),($E$22-$D$22)/$D$22)) -> 0 | H22: =IF($E$22="",IF($F$22>0,"Ny data",IF($F$22="","",0)),IF($E$22=0,IF($F$22=0,0,"Ny data"),($F$22-$E$22)/$E$22)) -> 0
A23: Stik på ledningsnet, Konstruktioner | B23: stk. | C23: 75 | D23: 261 | E23: 254 | F23: 254 | G23: =IF($D$23="",IF($E$23>0,"Ny data",IF($E$23="","",0)),IF($D$23=0,IF($E$23=0,0,"Ny data"),($E$23-$D$23)/$D$23)) -> -0.02681992337 | H23: =IF($E$23="",IF($F$23>0,"Ny data",IF($F$23="","",0)),IF($E$23=0,IF($F$23=0,0,"Ny data"),($F$23-$E$23)/$E$23)) -> 0
A24: Stik på ledningsnet, Mek./EL | B24: stk. | C24: 75 | D24: 261 | E24: 254 | F24: 254 | G24: =IF($D$24="",IF($E$24>0,"Ny data",IF($E$24="","",0)),IF($D$24=0,IF($E$24=0,0,"Ny data"),($E$24-$D$24)/$D$24)) -> -0.02681992337 | H24: =IF($E$24="",IF($F$24>0,"Ny data",IF($F$24="","",0)),IF($E$24=0,IF($F$24=0,0,"Ny data"),($F$24-$E$24)/$E$24)) -> 0
A25: Ledningsnet - By | G25: =IF($D$25="",IF($E$25>0,"Ny data",IF($E$25="","",0)),IF($D$25=0,IF($E$25=0,0,"Ny data"),($E$25-$D$25)/$D$25)) ->  | H25: =IF($E$25="",IF($F$25>0,"Ny data",IF($F$25="","",0)),IF($E$25=0,IF($F$25=0,0,"Ny data"),($F$25-$E$25)/$E$25)) -> 
A26: Ledningsnet ≤ Ø50 mm | B26: meter | C26: 75 | D26: 13793.6237 | E26: 13944.8886 | F26: 15546.96407 | G26: =IF($D$26="",IF($E$26>0,"Ny data",IF($E$26="","",0)),IF($D$26=0,IF($E$26=0,0,"Ny data"),($E$26-$D$26)/$D$26)) -> 0.01096629197 | H26: =IF($E$26="",IF($F$26>0,"Ny data",IF($F$26="","",0)),IF($E$26=0,IF($F$26=0,0,"Ny data"),($F$26-$E$26)/$E$26)) -> 0.1148862149
A27: Ø 50mm < Ledningsnet ≤ Ø110 mm | B27: meter | C27: 75 | D27: 110228.6013 | E27: 110678.1607 | F27: 110731.6146 | G27: =IF($D$27="",IF($E$27>0,"Ny data",IF($E$27="","",0)),IF($D$27=0,IF($E$27=0,0,"Ny data"),($E$27-$D$27)/$D$27)) -> 0.004078427878 | H27: =IF($E$27="",IF($F$27>0,"Ny data",IF($F$27="","",0)),IF($E$27=0,IF($F$27=0,0,"Ny data"),($F$27-$E$27)/$E$27)) -> 0.0004829668118
A28: Ø110 mm < Ledningsnet ≤ Ø 250 mm | B28: meter | C28: 75 | D28: 38635.43048 | E28: 40603.787 | F28: 40822.54329 | G28: =IF($D$28="",IF($E$28>0,"Ny data",IF($E$28="","",0)),IF($D$28=0,IF($E$28=0,0,"Ny data"),($E$28-$D$28)/$D$28)) -> 0.05094692861 | H28: =IF($E$28="",IF($F$28>0,"Ny data",IF($F$28="","",0)),IF($E$28=0,IF($F$28=0,0,"Ny data"),($F$28-$E$28)/$E$28)) -> 0.005387583319
A29: Ø 250 mm < Ledningsnet ≤ Ø 500mm | B29: meter | C29: 75 | D29: 6957.345731 | E29: 6974.4285 | F29: 6692.092228 | G29: =IF($D$29="",IF($E$29>0,"Ny data",IF($E$29="","",0)),IF($D$29=0,IF($E$29=0,0,"Ny data"),($E$29-$D$29)/$D$29)) -> 0.002455357202 | H29: =IF($E$29="",IF($F$29>0,"Ny data",IF($F$29="","",0)),IF($E$29=0,IF($F$29=0,0,"Ny data"),($F$29-$E$29)/$E$29)) -> -0.04048163547
A30: Ledningsnet > Ø 500 mm | B30: meter | C30: 75 | D30: 3172.823459 | E30: 3179.3774 | F30: 3179.377392 | G30: =IF($D$30="",IF($E$30>0,"Ny data",IF($E$30="","",0)),IF($D$30=0,IF($E$30=0,0,"Ny data"),($E$30-$D$30)/$D$30)) -> 0.00206564931 | H30: =IF($E$30="",IF($F$30>0,"Ny data",IF($F$30="","",0)),IF($E$30=0,IF($F$30=0,0,"Ny data"),($F$30-$E$30)/$E$30)) -> -2.49639176e-09
A31: Støbejernsledninger ≤ Ø50 mm | B31: meter | C31: 100 | D31: 907.2200909 | E31: 955.5096 | F31: 1097.784515 | G31: =IF($D$31="",IF($E$31>0,"Ny data",IF($E$31="","",0)),IF($D$31=0,IF($E$31=0,0,"Ny data"),($E$31-$D$31)/$D$31)) -> 0.05322799795 | H31: =IF($E$31="",IF($F$31>0,"Ny data",IF($F$31="","",0)),IF($E$31=0,IF($F$31=0,0,"Ny data"),($F$31-$E$31)/$E$31)) -> 0.1488995136
A32: Støbejernsledninger Ø 50mm < Ledningsnet ≤ Ø110 mm | B32: meter | C32: 100 | D32: 8409.879453 | E32: 8201.1293 | F32: 8252.014444 | G32: =IF($D$32="",IF($E$32>0,"Ny data",IF($E$32="","",0)),IF($D$32=0,IF($E$32=0,0,"Ny data"),($E$32-$D$32)/$D$32)) -> -0.02482201491 | H32: =IF($E$32="",IF($F$32>0,"Ny data",IF($F$32="","",0)),IF($E$32=0,IF($F$32=0,0,"Ny data"),($F$32-$E$32)/$E$32)) -> 0.006204650852
A33: Støbejernsledninger Ø110 mm < Ledningsnet ≤ Ø 250 mm | B33: meter | C33: 100 | D33: 4680.009266 | E33: 4669.1116 | F33: 4769.336292 | G33: =IF($D$33="",IF($E$33>0,"Ny data",IF($E$33="","",0)),IF($D$33=0,IF($E$33=0,0,"Ny data"),($E$33-$D$33)/$D$33)) -> -0.002328556587 | H33: =IF($E$33="",IF($F$33>0,"Ny data",IF($F$33="","",0)),IF($E$33=0,IF($F$33=0,0,"Ny data"),($F$33-$E$33)/$E$33)) -> 0.02146547368
A34: Støbejernsledninger Ø 250 mm < Ledningsnet ≤ Ø 500mm | B34: meter | C34: 100 | D34: 104.5235754 | E34: 104.7488 | F34: 104.7488226 | G34: =IF($D$34="",IF($E$34>0,"Ny data",IF($E$34="","",0)),IF($D$34=0,IF($E$34=0,0,"Ny data"),($E$34-$D$34)/$D$34)) -> 0.0021547733 | H34: =IF($E$34="",IF($F$34>0,"Ny data",IF($F$34="","",0)),IF($E$34=0,IF($F$34=0,0,"Ny data"),($F$34-$E$34)/$E$34)) -> 2.153039057e-07
A35: Støbejernsledninger Ledningsnet > Ø 500 mm | B35: meter | C35: 100 | D35: 0 | E35: 0 | F35: 0 | G35: =IF($D$35="",IF($E$35>0,"Ny data",IF($E$35="","",0)),IF($D$35=0,IF($E$35=0,0,"Ny data"),($E$35-$D$35)/$D$35)) -> 0 | H35: =IF($E$35="",IF($F$35>0,"Ny data",IF($F$35="","",0)),IF($E$35=0,IF($F$35=0,0,"Ny data"),($F$35-$E$35)/$E$35)) -> 0
A36: Eternitledninger ≤ Ø50 mm | B36: meter | C36: 75 | D36: 197.0851887 | E36: 197.6304 | F36: 197.6304096 | G36: =IF($D$36="",IF($E$36>0,"Ny data",IF($E$36="","",0)),IF($D$36=0,IF($E$36=0,0,"Ny data"),($E$36-$D$36)/$D$36)) -> 0.002766373555 | H36: =IF($E$36="",IF($F$36>0,"Ny data",IF($F$36="","",0)),IF($E$36=0,IF($F$36=0,0,"Ny data"),($F$36-$E$36)/$E$36)) -> 4.874089041e-08
A37: Eternitledninger Ø 50mm < Ledningsnet ≤ Ø110 mm | B37: meter | C37: 75 | D37: 3318.477227 | E37: 3326.9814 | F37: 2594.960537 | G37: =IF($D$37="",IF($E$37>0,"Ny data",IF($E$37="","",0)),IF($D$37=0,IF($E$37=0,0,"Ny data"),($E$37-$D$37)/$D$37)) -> 0.002562673403 | H37: =IF($E$37="",IF($F$37>0,"Ny data",IF($F$37="","",0)),IF($E$37=0,IF($F$37=0,0,"Ny data"),($F$37-$E$37)/$E$37)) -> -0.2200255351 | I37: Udvidelse af forsyningsområdet med overtagelse af mindre private vandforsyninger
A38: Eternitledninger Ø110 mm < Ledningsnet ≤ Ø 250 mm | B38: meter | C38: 75 | D38: 13748.3773 | E38: 11775.3484 | F38: 10988.46464 | G38: =IF($D$38="",IF($E$38>0,"Ny data",IF($E$38="","",0)),IF($D$38=0,IF($E$38=0,0,"Ny data"),($E$38-$D$38)/$D$38)) -> -0.1435099475 | H38: =IF($E$38="",IF($F$38>0,"Ny data",IF($F$38="","",0)),IF($E$38=0,IF($F$38=0,0,"Ny data"),($F$38-$E$38)/$E$38)) -> -0.06682466932
A39: Eternitledninger Ø 250 mm < Ledningsnet ≤ Ø 500mm | B39: meter | C39: 75 | D39: 6309.03441 | E39: 6326.0848 | F39: 6353.46871 | G39: =IF($D$39="",IF($E$39>0,"Ny data",IF($E$39="","",0)),IF($D$39=0,IF($E$39=0,0,"Ny data"),($E$39-$D$39)/$D$39)) -> 0.002702535646 | H39: =IF($E$39="",IF($F$39>0,"Ny data",IF($F$39="","",0)),IF($E$39=0,IF($F$39=0,0,"Ny data"),($F$39-$E$39)/$E$39)) -> 0.004328729491
A40: Eternitledninger Ledningsnet > Ø 500 mm | B40: meter | C40: 75 | D40: 0 | E40: 0 | F40: 0 | G40: =IF($D$40="",IF($E$40>0,"Ny data",IF($E$40="","",0)),IF($D$40=0,IF($E$40=0,0,"Ny data"),($E$40-$D$40)/$D$40)) -> 0 | H40: =IF($E$40="",IF($F$40>0,"Ny data",IF($F$40="","",0)),IF($E$40=0,IF($F$40=0,0,"Ny data"),($F$40-$E$40)/$E$40)) -> 0
A41: Skelbrønd, Konstruktioner | B41: stk. | C41: 50 | D41: 0 | E41: 0 | F41: 0 | G41: =IF($D$41="",IF($E$41>0,"Ny data",IF($E$41="","",0)),IF($D$41=0,IF($E$41=0,0,"Ny data"),($E$41-$D$41)/$D$41)) -> 0 | H41: =IF($E$41="",IF($F$41>0,"Ny data",IF($F$41="","",0)),IF($E$41=0,IF($F$41=0,0,"Ny data"),($F$41-$E$41)/$E$41)) -> 0
A42: Skelbrønd, Mek./EL | B42: stk. | C42: 15 | D42: 0 | E42: 0 | F42: 0 | G42: =IF($D$42="",IF($E$42>0,"Ny data",IF($E$42="","",0)),IF($D$42=0,IF($E$42=0,0,"Ny data"),($E$42-$D$42)/$D$42)) -> 0 | H42: =IF($E$42="",IF($F$42>0,"Ny data",IF($F$42="","",0)),IF($E$42=0,IF($F$42=0,0,"Ny data"),($F$42-$E$42)/$E$42)) -> 0
A43: Inspektionsbrønd, Konstruktioner | B43: stk. | C43: 50 | D43: 0 | E43: 0 | F43: 0 | G43: =IF($D$43="",IF($E$43>0,"Ny data",IF($E$43="","",0)),IF($D$43=0,IF($E$43=0,0,"Ny data"),($E$43-$D$43)/$D$43)) -> 0 | H43: =IF($E$43="",IF($F$43>0,"Ny data",IF($F$43="","",0)),IF($E$43=0,IF($F$43=0,0,"Ny data"),($F$43-$E$43)/$E$43)) -> 0
A44: Inspektionsbrønd, Mek./EL | B44: stk. | C44: 15 | D44: 0 | E44: 0 | F44: 0 | G44: =IF($D$44="",IF($E$44>0,"Ny data",IF($E$44="","",0)),IF($D$44=0,IF($E$44=0,0,"Ny data"),($E$44-$D$44)/$D$44)) -> 0 | H44: =IF($E$44="",IF($F$44>0,"Ny data",IF($F$44="","",0)),IF($E$44=0,IF($F$44=0,0,"Ny data"),($F$44-$E$44)/$E$44)) -> 0
A45: Stik på ledningsnet, Konstruktioner | B45: stk. | C45: 75 | D45: 10118 | E45: 8672 | F45: 8672 | G45: =IF($D$45="",IF($E$45>0,"Ny data",IF($E$45="","",0)),IF($D$45=0,IF($E$45=0,0,"Ny data"),($E$45-$D$45)/$D$45)) -> -0.1429136193 | H45: =IF($E$45="",IF($F$45>0,"Ny data",IF($F$45="","",0)),IF($E$45=0,IF($F$45=0,0,"Ny data"),($F$45-$E$45)/$E$45)) -> 0
A46: Stik på ledningsnet, Mek./EL | B46: stk. | C46: 75 | D46: 10118 | E46: 8672 | F46: 8672 | G46: =IF($D$46="",IF($E$46>0,"Ny data",IF($E$46="","",0)),IF($D$46=0,IF($E$46=0,0,"Ny data"),($E$46-$D$46)/$D$46)) -> -0.1429136193 | H46: =IF($E$46="",IF($F$46>0,"Ny data",IF($F$46="","",0)),IF($E$46=0,IF($F$46=0,0,"Ny data"),($F$46-$E$46)/$E$46)) -> 0
A47: Ledningsnet - City | G47: =IF($D$47="",IF($E$47>0,"Ny data",IF($E$47="","",0)),IF($D$47=0,IF($E$47=0,0,"Ny data"),($E$47-$D$47)/$D$47)) ->  | H47: =IF($E$47="",IF($F$47>0,"Ny data",IF($F$47="","",0)),IF($E$47=0,IF($F$47=0,0,"Ny data"),($F$47-$E$47)/$E$47)) -> 
A48: Ledningsnet ≤ Ø50 mm | B48: meter | C48: 75 | D48: 954.8935148 | E48: 958.2484 | F48: 873.8615914 | G48: =IF($D$48="",IF($E$48>0,"Ny data",IF($E$48="","",0)),IF($D$48=0,IF($E$48=0,0,"Ny data"),($E$48-$D$48)/$D$48)) -> 0.003513360523 | H48: =IF($E$48="",IF($F$48>0,"Ny data",IF($F$48="","",0)),IF($E$48=0,IF($F$48=0,0,"Ny data"),($F$48-$E$48)/$E$48)) -> -0.08806360502
A49: Ø 50mm < Ledningsnet ≤ Ø110 mm | B49: meter | C49: 75 | D49: 9319.718116 | E49: 9347.6732 | F49: 10043.96254 | G49: =IF($D$49="",IF($E$49>0,"Ny data",IF($E$49="","",0)),IF($D$49=0,IF($E$49=0,0,"Ny data"),($E$49-$D$49)/$D$49)) -> 0.002999563304 | H49: =IF($E$49="",IF($F$49>0,"Ny data",IF($F$49="","",0)),IF($E$49=0,IF($F$49=0,0,"Ny data"),($F$49-$E$49)/$E$49)) -> 0.0744879854
A50: Ø110 mm < Ledningsnet ≤ Ø 250 mm | B50: meter | C50: 75 | D50: 6179.720095 | E50: 6285.3158 | F50: 6667.376941 | G50: =IF($D$50="",IF($E$50>0,"Ny data",IF($E$50="","",0)),IF($D$50=0,IF($E$50=0,0,"Ny data"),($E$50-$D$50)/$D$50)) -> 0.01708745761 | H50: =IF($E$50="",IF($F$50>0,"Ny data",IF($F$50="","",0)),IF($E$50=0,IF($F$50=0,0,"Ny data"),($F$50-$E$50)/$E$50)) -> 0.06078630783
A51: Ø 250 mm < Ledningsnet ≤ Ø 500mm | B51: meter | C51: 75 | D51: 752.1533701 | E51: 753.715 | F51: 951.1530851 | G51: =IF($D$51="",IF($E$51>0,"Ny data",IF($E$51="","",0)),IF($D$51=0,IF($E$51=0,0,"Ny data"),($E$51-$D$51)/$D$51)) -> 0.002076212017 | H51: =IF($E$51="",IF($F$51>0,"Ny data",IF($F$51="","",0)),IF($E$51=0,IF($F$51=0,0,"Ny data"),($F$51-$E$51)/$E$51)) -> 0.2619532384 | I51: Udvidelse af forsyningsområdet med overtagelse af mindre private vandforsyninger
A52: Ledningsnet > Ø 500 mm | B52: meter | C52: 75 | D52: 0 | E52: 0 | F52: 0 | G52: =IF($D$52="",IF($E$52>0,"Ny data",IF($E$52="","",0)),IF($D$52=0,IF($E$52=0,0,"Ny data"),($E$52-$D$52)/$D$52)) -> 0 | H52: =IF($E$52="",IF($F$52>0,"Ny data",IF($F$52="","",0)),IF($E$52=0,IF($F$52=0,0,"Ny data"),($F$52-$E$52)/$E$52)) -> 0
A53: Støbejernsledninger ≤ Ø50 mm | B53: meter | C53: 100 | D53: 176.2522387 | E53: 176.5146 | F53: 33.03440638 | G53: =IF($D$53="",IF($E$53>0,"Ny data",IF($E$53="","",0)),IF($D$53=0,IF($E$53=0,0,"Ny data"),($E$53-$D$53)/$D$53)) -> 0.00148855583 | H53: =IF($E$53="",IF($F$53>0,"Ny data",IF($F$53="","",0)),IF($E$53=0,IF($F$53=0,0,"Ny data"),($F$53-$E$53)/$E$53)) -> -0.8128517053 | I53: Udvidelse af forsyningsområdet med overtagelse af mindre private vandforsyninger
A54: Støbejernsledninger Ø 50mm < Ledningsnet ≤ Ø110 mm | B54: meter | C54: 100 | D54: 622.9722391 | E54: 623.6572 | F54: 574.0106708 | G54: =IF($D$54="",IF($E$54>0,"Ny data",IF($E$54="","",0)),IF($D$54=0,IF($E$54=0,0,"Ny data"),($E$54-$D$54)/$D$54)) -> 0.001099504632 | H54: =IF($E$54="",IF($F$54>0,"Ny data",IF($F$54="","",0)),IF($E$54=0,IF($F$54=0,0,"Ny data"),($F$54-$E$54)/$E$54)) -> -0.07960547751
A55: Støbejernsledninger Ø110 mm < Ledningsnet ≤ Ø 250 mm | B55: meter | C55: 100 | D55: 2567.983586 | E55: 2570.5106 | F55: 2453.216094 | G55: =IF($D$55="",IF($E$55>0,"Ny data",IF($E$55="","",0)),IF($D$55=0,IF($E$55=0,0,"Ny data"),($E$55-$D$55)/$D$55)) -> 0.0009840461042 | H55: =IF($E$55="",IF($F$55>0,"Ny data",IF($F$55="","",0)),IF($E$55=0,IF($F$55=0,0,"Ny data"),($F$55-$E$55)/$E$55)) -> -0.04563081996
A56: Støbejernsledninger Ø 250 mm < Ledningsnet ≤ Ø 500mm | B56: meter | C56: 100 | D56: 0 | E56: 0 | F56: 0 | G56: =IF($D$56="",IF($E$56>0,"Ny data",IF($E$56="","",0)),IF($D$56=0,IF($E$56=0,0,"Ny data"),($E$56-$D$56)/$D$56)) -> 0 | H56: =IF($E$56="",IF($F$56>0,"Ny data",IF($F$56="","",0)),IF($E$56=0,IF($F$56=0,0,"Ny data"),($F$56-$E$56)/$E$56)) -> 0
A57: Støbejernsledninger Ledningsnet > Ø 500 mm | B57: meter | C57: 100 | D57: 0 | E57: 0 | F57: 0 | G57: =IF($D$57="",IF($E$57>0,"Ny data",IF($E$57="","",0)),IF($D$57=0,IF($E$57=0,0,"Ny data"),($E$57-$D$57)/$D$57)) -> 0 | H57: =IF($E$57="",IF($F$57>0,"Ny data",IF($F$57="","",0)),IF($E$57=0,IF($F$57=0,0,"Ny data"),($F$57-$E$57)/$E$57)) -> 0
A58: Eternitledninger ≤ Ø50 mm | B58: meter | C58: 75 | D58: 0 | E58: 0 | F58: 0 | G58: =IF($D$58="",IF($E$58>0,"Ny data",IF($E$58="","",0)),IF($D$58=0,IF($E$58=0,0,"Ny data"),($E$58-$D$58)/$D$58)) -> 0 | H58: =IF($E$58="",IF($F$58>0,"Ny data",IF($F$58="","",0)),IF($E$58=0,IF($F$58=0,0,"Ny data"),($F$58-$E$58)/$E$58)) -> 0
A59: Eternitledninger Ø 50mm < Ledningsnet ≤ Ø110 mm | B59: meter | C59: 75 | D59: 65.33803335 | E59: 65.5662 | F59: 66.28421515 | G59: =IF($D$59="",IF($E$59>0,"Ny data",IF($E$59="","",0)),IF($D$59=0,IF($E$59=0,0,"Ny data"),($E$59-$D$59)/$D$59)) -> 0.003492095389 | H59: =IF($E$59="",IF($F$59>0,"Ny data",IF($F$59="","",0)),IF($E$59=0,IF($F$59=0,0,"Ny data"),($F$59-$E$59)/$E$59)) -> 0.01095099536
A60: Eternitledninger Ø110 mm < Ledningsnet ≤ Ø 250 mm | B60: meter | C60: 75 | D60: 1979.909306 | E60: 1984.7086 | F60: 1935.477624 | G60: =IF($D$60="",IF($E$60>0,"Ny data",IF($E$60="","",0)),IF($D$60=0,IF($E$60=0,0,"Ny data"),($E$60-$D$60)/$D$60)) -> 0.002423996713 | H60: =IF($E$60="",IF($F$60>0,"Ny data",IF($F$60="","",0)),IF($E$60=0,IF($F$60=0,0,"Ny data"),($F$60-$E$60)/$E$60)) -> -0.02480514077
A61: Eternitledninger Ø 250 mm < Ledningsnet ≤ Ø 500mm | B61: meter | C61: 75 | D61: 1736.072409 | E61: 1742.0419 | F61: 1620.677924 | G61: =IF($D$61="",IF($E$61>0,"Ny data",IF($E$61="","",0)),IF($D$61=0,IF($E$61=0,0,"Ny data"),($E$61-$D$61)/$D$61)) -> 0.003438503265 | H61: =IF($E$61="",IF($F$61>0,"Ny data",IF($F$61="","",0)),IF($E$61=0,IF($F$61=0,0,"Ny data"),($F$61-$E$61)/$E$61)) -> -0.06966765619
A62: Eternitledninger Ledningsnet > Ø 500 mm | B62: meter | C62: 75 | D62: 0 | E62: 0 | F62: 0 | G62: =IF($D$62="",IF($E$62>0,"Ny data",IF($E$62="","",0)),IF($D$62=0,IF($E$62=0,0,"Ny data"),($E$62-$D$62)/$D$62)) -> 0 | H62: =IF($E$62="",IF($F$62>0,"Ny data",IF($F$62="","",0)),IF($E$62=0,IF($F$62=0,0,"Ny data"),($F$62-$E$62)/$E$62)) -> 0
A63: Skelbrønd, Konstruktioner | B63: stk. | C63: 50 | D63: 0 | E63: 0 | F63: 0 | G63: =IF($D$63="",IF($E$63>0,"Ny data",IF($E$63="","",0)),IF($D$63=0,IF($E$63=0,0,"Ny data"),($E$63-$D$63)/$D$63)) -> 0 | H63: =IF($E$63="",IF($F$63>0,"Ny data",IF($F$63="","",0)),IF($E$63=0,IF($F$63=0,0,"Ny data"),($F$63-$E$63)/$E$63)) -> 0
A64: Skelbrønd, Mek./EL | B64: stk. | C64: 15 | D64: 0 | E64: 0 | F64: 0 | G64: =IF($D$64="",IF($E$64>0,"Ny data",IF($E$64="","",0)),IF($D$64=0,IF($E$64=0,0,"Ny data"),($E$64-$D$64)/$D$64)) -> 0 | H64: =IF($E$64="",IF($F$64>0,"Ny data",IF($F$64="","",0)),IF($E$64=0,IF($F$64=0,0,"Ny data"),($F$64-$E$64)/$E$64)) -> 0
A65: Inspektionsbrønd, Konstruktioner | B65: stk. | C65: 50 | D65: 0 | E65: 0 | F65: 0 | G65: =IF($D$65="",IF($E$65>0,"Ny data",IF($E$65="","",0)),IF($D$65=0,IF($E$65=0,0,"Ny data"),($E$65-$D$65)/$D$65)) -> 0 | H65: =IF($E$65="",IF($F$65>0,"Ny data",IF($F$65="","",0)),IF($E$65=0,IF($F$65=0,0,"Ny data"),($F$65-$E$65)/$E$65)) -> 0
A66: Inspektionsbrønd, Mek./EL | B66: stk. | C66: 15 | D66: 0 | E66: 0 | F66: 0 | G66: =IF($D$66="",IF($E$66>0,"Ny data",IF($E$66="","",0)),IF($D$66=0,IF($E$66=0,0,"Ny data"),($E$66-$D$66)/$D$66)) -> 0 | H66: =IF($E$66="",IF($F$66>0,"Ny data",IF($F$66="","",0)),IF($E$66=0,IF($F$66=0,0,"Ny data"),($F$66-$E$66)/$E$66)) -> 0
A67: Stik på ledningsnet, Konstruktioner | B67: stk. | C67: 75 | D67: 894 | E67: 662 | F67: 662 | G67: =IF($D$67="",IF($E$67>0,"Ny data",IF($E$67="","",0)),IF($D$67=0,IF($E$67=0,0,"Ny data"),($E$67-$D$67)/$D$67)) -> -0.25950783 | H67: =IF($E$67="",IF($F$67>0,"Ny data",IF($F$67="","",0)),IF($E$67=0,IF($F$67=0,0,"Ny data"),($F$67-$E$67)/$E$67)) -> 0 | I67: Ny zoneinddeling
A68: Stik på ledningsnet, Mek./EL | B68: stk. | C68: 75 | D68: 894 | E68: 662 | F68: 662 | G68: =IF($D$68="",IF($E$68>0,"Ny data",IF($E$68="","",0)),IF($D$68=0,IF($E$68=0,0,"Ny data"),($E$68-$D$68)/$D$68)) -> -0.25950783 | H68: =IF($E$68="",IF($F$68>0,"Ny data",IF($F$68="","",0)),IF($E$68=0,IF($F$68=0,0,"Ny data"),($F$68-$E$68)/$E$68)) -> 0 | I68: Ny zoneinddeling
A69: Ledningsnet - Indre city | G69: =IF($D$69="",IF($E$69>0,"Ny data",IF($E$69="","",0)),IF($D$69=0,IF($E$69=0,0,"Ny data"),($E$69-$D$69)/$D$69)) ->  | H69: =IF($E$69="",IF($F$69>0,"Ny data",IF($F$69="","",0)),IF($E$69=0,IF($F$69=0,0,"Ny data"),($F$69-$E$69)/$E$69)) -> 
A70: Ledningsnet ≤ Ø50 mm | B70: meter | C70: 75 | D70: 0 | E70: 0 | F70: 0 | G70: =IF($D$70="",IF($E$70>0,"Ny data",IF($E$70="","",0)),IF($D$70=0,IF($E$70=0,0,"Ny data"),($E$70-$D$70)/$D$70)) -> 0 | H70: =IF($E$70="",IF($F$70>0,"Ny data",IF($F$70="","",0)),IF($E$70=0,IF($F$70=0,0,"Ny data"),($F$70-$E$70)/$E$70)) -> 0
A71: Ø 50mm < Ledningsnet ≤ Ø110 mm | B71: meter | C71: 75 | D71: 0 | E71: 0 | F71: 0 | G71: =IF($D$71="",IF($E$71>0,"Ny data",IF($E$71="","",0)),IF($D$71=0,IF($E$71=0,0,"Ny data"),($E$71-$D$71)/$D$71)) -> 0 | H71: =IF($E$71="",IF($F$71>0,"Ny data",IF($F$71="","",0)),IF($E$71=0,IF($F$71=0,0,"Ny data"),($F$71-$E$71)/$E$71)) -> 0
A72: Ø110 mm < Ledningsnet ≤ Ø 250 mm | B72: meter | C72: 75 | D72: 0 | E72: 0 | F72: 0 | G72: =IF($D$72="",IF($E$72>0,"Ny data",IF($E$72="","",0)),IF($D$72=0,IF($E$72=0,0,"Ny data"),($E$72-$D$72)/$D$72)) -> 0 | H72: =IF($E$72="",IF($F$72>0,"Ny data",IF($F$72="","",0)),IF($E$72=0,IF($F$72=0,0,"Ny data"),($F$72-$E$72)/$E$72)) -> 0
A73: Ø 250 mm < Ledningsnet ≤ Ø 500mm | B73: meter | C73: 75 | D73: 0 | E73: 0 | F73: 0 | G73: =IF($D$73="",IF($E$73>0,"Ny data",IF($E$73="","",0)),IF($D$73=0,IF($E$73=0,0,"Ny data"),($E$73-$D$73)/$D$73)) -> 0 | H73: =IF($E$73="",IF($F$73>0,"Ny data",IF($F$73="","",0)),IF($E$73=0,IF($F$73=0,0,"Ny data"),($F$73-$E$73)/$E$73)) -> 0
A74: Ledningsnet > Ø 500 mm | B74: meter | C74: 75 | D74: 0 | E74: 0 | F74: 0 | G74: =IF($D$74="",IF($E$74>0,"Ny data",IF($E$74="","",0)),IF($D$74=0,IF($E$74=0,0,"Ny data"),($E$74-$D$74)/$D$74)) -> 0 | H74: =IF($E$74="",IF($F$74>0,"Ny data",IF($F$74="","",0)),IF($E$74=0,IF($F$74=0,0,"Ny data"),($F$74-$E$74)/$E$74)) -> 0
A75: Støbejernsledninger ≤ Ø50 mm | B75: meter | C75: 100 | D75: 0 | E75: 0 | F75: 0 | G75: =IF($D$75="",IF($E$75>0,"Ny data",IF($E$75="","",0)),IF($D$75=0,IF($E$75=0,0,"Ny data"),($E$75-$D$75)/$D$75)) -> 0 | H75: =IF($E$75="",IF($F$75>0,"Ny data",IF($F$75="","",0)),IF($E$75=0,IF($F$75=0,0,"Ny data"),($F$75-$E$75)/$E$75)) -> 0
A76: Støbejernsledninger Ø 50mm < Ledningsnet ≤ Ø110 mm | B76: meter | C76: 100 | D76: 0 | E76: 0 | F76: 0 | G76: =IF($D$76="",IF($E$76>0,"Ny data",IF($E$76="","",0)),IF($D$76=0,IF($E$76=0,0,"Ny data"),($E$76-$D$76)/$D$76)) -> 0 | H76: =IF($E$76="",IF($F$76>0,"Ny data",IF($F$76="","",0)),IF($E$76=0,IF($F$76=0,0,"Ny data"),($F$76-$E$76)/$E$76)) -> 0
A77: Støbejernsledninger Ø110 mm < Ledningsnet ≤ Ø 250 mm | B77: meter | C77: 100 | D77: 0 | E77: 0 | F77: 0 | G77: =IF($D$77="",IF($E$77>0,"Ny data",IF($E$77="","",0)),IF($D$77=0,IF($E$77=0,0,"Ny data"),($E$77-$D$77)/$D$77)) -> 0 | H77: =IF($E$77="",IF($F$77>0,"Ny data",IF($F$77="","",0)),IF($E$77=0,IF($F$77=0,0,"Ny data"),($F$77-$E$77)/$E$77)) -> 0
A78: Støbejernsledninger Ø 250 mm < Ledningsnet ≤ Ø 500mm | B78: meter | C78: 100 | D78: 0 | E78: 0 | F78: 0 | G78: =IF($D$78="",IF($E$78>0,"Ny data",IF($E$78="","",0)),IF($D$78=0,IF($E$78=0,0,"Ny data"),($E$78-$D$78)/$D$78)) -> 0 | H78: =IF($E$78="",IF($F$78>0,"Ny data",IF($F$78="","",0)),IF($E$78=0,IF($F$78=0,0,"Ny data"),($F$78-$E$78)/$E$78)) -> 0
A79: Støbejernsledninger Ledningsnet > Ø 500 mm | B79: meter | C79: 100 | D79: 0 | E79: 0 | F79: 0 | G79: =IF($D$79="",IF($E$79>0,"Ny data",IF($E$79="","",0)),IF($D$79=0,IF($E$79=0,0,"Ny data"),($E$79-$D$79)/$D$79)) -> 0 | H79: =IF($E$79="",IF($F$79>0,"Ny data",IF($F$79="","",0)),IF($E$79=0,IF($F$79=0,0,"Ny data"),($F$79-$E$79)/$E$79)) -> 0
A80: Eternitledninger ≤ Ø50 mm | B80: meter | C80: 75 | D80: 0 | E80: 0 | F80: 0 | G80: =IF($D$80="",IF($E$80>0,"Ny data",IF($E$80="","",0)),IF($D$80=0,IF($E$80=0,0,"Ny data"),($E$80-$D$80)/$D$80)) -> 0 | H80: =IF($E$80="",IF($F$80>0,"Ny data",IF($F$80="","",0)),IF($E$80=0,IF($F$80=0,0,"Ny data"),($F$80-$E$80)/$E$80)) -> 0
A81: Eternitledninger Ø 50mm < Ledningsnet ≤ Ø110 mm | B81: meter | C81: 75 | D81: 0 | E81: 0 | F81: 0 | G81: =IF($D$81="",IF($E$81>0,"Ny data",IF($E$81="","",0)),IF($D$81=0,IF($E$81=0,0,"Ny data"),($E$81-$D$81)/$D$81)) -> 0 | H81: =IF($E$81="",IF($F$81>0,"Ny data",IF($F$81="","",0)),IF($E$81=0,IF($F$81=0,0,"Ny data"),($F$81-$E$81)/$E$81)) -> 0
A82: Eternitledninger Ø110 mm < Ledningsnet ≤ Ø 250 mm | B82: meter | C82: 75 | D82: 0 | E82: 0 | F82: 0 | G82: =IF($D$82="",IF($E$82>0,"Ny data",IF($E$82="","",0)),IF($D$82=0,IF($E$82=0,0,"Ny data"),($E$82-$D$82)/$D$82)) -> 0 | H82: =IF($E$82="",IF($F$82>0,"Ny data",IF($F$82="","",0)),IF($E$82=0,IF($F$82=0,0,"Ny data"),($F$82-$E$82)/$E$82)) -> 0
A83: Eternitledninger Ø 250 mm < Ledningsnet ≤ Ø 500mm | B83: meter | C83: 75 | D83: 0 | E83: 0 | F83: 0 | G83: =IF($D$83="",IF($E$83>0,"Ny data",IF($E$83="","",0)),IF($D$83=0,IF($E$83=0,0,"Ny data"),($E$83-$D$83)/$D$83)) -> 0 | H83: =IF($E$83="",IF($F$83>0,"Ny data",IF($F$83="","",0)),IF($E$83=0,IF($F$83=0,0,"Ny data"),($F$83-$E$83)/$E$83)) -> 0
A84: Eternitledninger Ledningsnet > Ø 500 mm | B84: meter | C84: 75 | D84: 0 | E84: 0 | F84: 0 | G84: =IF($D$84="",IF($E$84>0,"Ny data",IF($E$84="","",0)),IF($D$84=0,IF($E$84=0,0,"Ny data"),($E$84-$D$84)/$D$84)) -> 0 | H84: =IF($E$84="",IF($F$84>0,"Ny data",IF($F$84="","",0)),IF($E$84=0,IF($F$84=0,0,"Ny data"),($F$84-$E$84)/$E$84)) -> 0
A85: Skelbrønd, Konstruktioner | B85: stk. | C85: 50 | D85: 0 | E85: 0 | F85: 0 | G85: =IF($D$85="",IF($E$85>0,"Ny data",IF($E$85="","",0)),IF($D$85=0,IF($E$85=0,0,"Ny data"),($E$85-$D$85)/$D$85)) -> 0 | H85: =IF($E$85="",IF($F$85>0,"Ny data",IF($F$85="","",0)),IF($E$85=0,IF($F$85=0,0,"Ny data"),($F$85-$E$85)/$E$85)) -> 0
A86: Skelbrønd, Mek./EL | B86: stk. | C86: 15 | D86: 0 | E86: 0 | F86: 0 | G86: =IF($D$86="",IF($E$86>0,"Ny data",IF($E$86="","",0)),IF($D$86=0,IF($E$86=0,0,"Ny data"),($E$86-$D$86)/$D$86)) -> 0 | H86: =IF($E$86="",IF($F$86>0,"Ny data",IF($F$86="","",0)),IF($E$86=0,IF($F$86=0,0,"Ny data"),($F$86-$E$86)/$E$86)) -> 0
A87: Inspektionsbrønd, Konstruktioner | B87: stk. | C87: 50 | D87: 0 | E87: 0 | F87: 0 | G87: =IF($D$87="",IF($E$87>0,"Ny data",IF($E$87="","",0)),IF($D$87=0,IF($E$87=0,0,"Ny data"),($E$87-$D$87)/$D$87)) -> 0 | H87: =IF($E$87="",IF($F$87>0,"Ny data",IF($F$87="","",0)),IF($E$87=0,IF($F$87=0,0,"Ny data"),($F$87-$E$87)/$E$87)) -> 0
A88: Inspektionsbrønd, Mek./EL | B88: stk. | C88: 15 | D88: 0 | E88: 0 | F88: 0 | G88: =IF($D$88="",IF($E$88>0,"Ny data",IF($E$88="","",0)),IF($D$88=0,IF($E$88=0,0,"Ny data"),($E$88-$D$88)/$D$88)) -> 0 | H88: =IF($E$88="",IF($F$88>0,"Ny data",IF($F$88="","",0)),IF($E$88=0,IF($F$88=0,0,"Ny data"),($F$88-$E$88)/$E$88)) -> 0
A89: Stik på ledningsnet, Konstruktioner | B89: stk. | C89: 75 | D89: 0 | E89: 0 | F89: 0 | G89: =IF($D$89="",IF($E$89>0,"Ny data",IF($E$89="","",0)),IF($D$89=0,IF($E$89=0,0,"Ny data"),($E$89-$D$89)/$D$89)) -> 0 | H89: =IF($E$89="",IF($F$89>0,"Ny data",IF($F$89="","",0)),IF($E$89=0,IF($F$89=0,0,"Ny data"),($F$89-$E$89)/$E$89)) -> 0
A90: Stik på ledningsnet, Mek./EL | B90: stk. | C90: 75 | D90: 0 | E90: 0 | F90: 0 | G90: =IF($D$90="",IF($E$90>0,"Ny data",IF($E$90="","",0)),IF($D$90=0,IF($E$90=0,0,"Ny data"),($E$90-$D$90)/$D$90)) -> 0 | H90: =IF($E$90="",IF($F$90>0,"Ny data",IF($F$90="","",0)),IF($E$90=0,IF($F$90=0,0,"Ny data"),($F$90-$E$90)/$E$90)) -> 0
A91: Ventiler | G91: =IF($D$91="",IF($E$91>0,"Ny data",IF($E$91="","",0)),IF($D$91=0,IF($E$91=0,0,"Ny data"),($E$91-$D$91)/$D$91)) ->  | H91: =IF($E$91="",IF($F$91>0,"Ny data",IF($F$91="","",0)),IF($E$91=0,IF($F$91=0,0,"Ny data"),($F$91-$E$91)/$E$91)) -> 
A92: Ventiler på ledningsnet ≤ Ø50 mm | B92: stk. | C92: 75 | D92: 266 | E92: 266 | F92: 266 | G92: =IF($D$92="",IF($E$92>0,"Ny data",IF($E$92="","",0)),IF($D$92=0,IF($E$92=0,0,"Ny data"),($E$92-$D$92)/$D$92)) -> 0 | H92: =IF($E$92="",IF($F$92>0,"Ny data",IF($F$92="","",0)),IF($E$92=0,IF($F$92=0,0,"Ny data"),($F$92-$E$92)/$E$92)) -> 0
A93: Ventiler på Ø 50mm < Ledningsnet ≤ Ø110 mm | B93: stk. | C93: 75 | D93: 1848 | E93: 1848 | F93: 1848 | G93: =IF($D$93="",IF($E$93>0,"Ny data",IF($E$93="","",0)),IF($D$93=0,IF($E$93=0,0,"Ny data"),($E$93-$D$93)/$D$93)) -> 0 | H93: =IF($E$93="",IF($F$93>0,"Ny data",IF($F$93="","",0)),IF($E$93=0,IF($F$93=0,0,"Ny data"),($F$93-$E$93)/$E$93)) -> 0
A94: Ventiler på Ø110 mm < Ledningsnet ≤ Ø 250 mm | B94: stk. | C94: 75 | D94: 667 | E94: 667 | F94: 667 | G94: =IF($D$94="",IF($E$94>0,"Ny data",IF($E$94="","",0)),IF($D$94=0,IF($E$94=0,0,"Ny data"),($E$94-$D$94)/$D$94)) -> 0 | H94: =IF($E$94="",IF($F$94>0,"Ny data",IF($F$94="","",0)),IF($E$94=0,IF($F$94=0,0,"Ny data"),($F$94-$E$94)/$E$94)) -> 0
A95: Ventiler på Ø 250 mm < Ledningsnet ≤ Ø 500mm | B95: stk. | C95: 75 | D95: 83 | E95: 83 | F95: 83 | G95: =IF($D$95="",IF($E$95>0,"Ny data",IF($E$95="","",0)),IF($D$95=0,IF($E$95=0,0,"Ny data"),($E$95-$D$95)/$D$95)) -> 0 | H95: =IF($E$95="",IF($F$95>0,"Ny data",IF($F$95="","",0)),IF($E$95=0,IF($F$95=0,0,"Ny data"),($F$95-$E$95)/$E$95)) -> 0
A96: Ventiler på ledningsnet > Ø 500 mm | B96: stk. | C96: 75 | D96: 1 | E96: 1 | F96: 1 | G96: =IF($D$96="",IF($E$96>0,"Ny data",IF($E$96="","",0)),IF($D$96=0,IF($E$96=0,0,"Ny data"),($E$96-$D$96)/$D$96)) -> 0 | H96: =IF($E$96="",IF($F$96>0,"Ny data",IF($F$96="","",0)),IF($E$96=0,IF($F$96=0,0,"Ny data"),($F$96-$E$96)/$E$96)) -> 0
A97: Pumpestationer, bygværker og bassiner 1 | G97: =IF($D$97="",IF($E$97>0,"Ny data",IF($E$97="","",0)),IF($D$97=0,IF($E$97=0,0,"Ny data"),($E$97-$D$97)/$D$97)) ->  | H97: =IF($E$97="",IF($F$97>0,"Ny data",IF($F$97="","",0)),IF($E$97=0,IF($F$97=0,0,"Ny data"),($F$97-$E$97)/$E$97)) -> 
A98: Pumpestation (inkl. evt. hydrofor)/trykforøger, Konstruktioner | B98: m³/h | C98: 50 | D98: 1050 | E98: 1050 | F98: 1050 | G98: =IF($D$98="",IF($E$98>0,"Ny data",IF($E$98="","",0)),IF($D$98=0,IF($E$98=0,0,"Ny data"),($E$98-$D$98)/$D$98)) -> 0 | H98: =IF($E$98="",IF($F$98>0,"Ny data",IF($F$98="","",0)),IF($E$98=0,IF($F$98=0,0,"Ny data"),($F$98-$E$98)/$E$98)) -> 0
A99: Pumpestation (inkl. evt. hydrofor)/trykforøger, Mek./EL | B99: m³/h | C99: 25 | D99: 1050 | E99: 1050 | F99: 1050 | G99: =IF($D$99="",IF($E$99>0,"Ny data",IF($E$99="","",0)),IF($D$99=0,IF($E$99=0,0,"Ny data"),($E$99-$D$99)/$D$99)) -> 0 | H99: =IF($E$99="",IF($F$99>0,"Ny data",IF($F$99="","",0)),IF($E$99=0,IF($F$99=0,0,"Ny data"),($F$99-$E$99)/$E$99)) -> 0
A100: Pumpestation (inkl. evt. hydrofor)/trykforøger, SRO | B100: m³/h | C100: 10 | D100: 1050 | E100: 1050 | F100: 1050 | G100: =IF($D$100="",IF($E$100>0,"Ny data",IF($E$100="","",0)),IF($D$100=0,IF($E$100=0,0,"Ny data"),($E$100-$D$100)/$D$100)) -> 0 | H100: =IF($E$100="",IF($F$100>0,"Ny data",IF($F$100="","",0)),IF($E$100=0,IF($F$100=0,0,"Ny data"),($F$100-$E$100)/$E$100)) -> 0
A101: Beholderanlæg - højdebeholder | B101: m³ | C101: 50 | D101: 0 | E101: 0 | F101: 0 | G101: =IF($D$101="",IF($E$101>0,"Ny data",IF($E$101="","",0)),IF($D$101=0,IF($E$101=0,0,"Ny data"),($E$101-$D$101)/$D$101)) -> 0 | H101: =IF($E$101="",IF($F$101>0,"Ny data",IF($F$101="","",0)),IF($E$101=0,IF($F$101=0,0,"Ny data"),($F$101-$E$101)/$E$101)) -> 0
A102: Beholderanlæg - vandtårn | B102: m³ | C102: 50 | D102: 1000 | E102: 1000 | F102: 1000 | G102: =IF($D$102="",IF($E$102>0,"Ny data",IF($E$102="","",0)),IF($D$102=0,IF($E$102=0,0,"Ny data"),($E$102-$D$102)/$D$102)) -> 0 | H102: =IF($E$102="",IF($F$102>0,"Ny data",IF($F$102="","",0)),IF($E$102=0,IF($F$102=0,0,"Ny data"),($F$102-$E$102)/$E$102)) -> 0
A103: Pumpestationer, bygværker og bassiner 2 | G103: =IF($D$103="",IF($E$103>0,"Ny data",IF($E$103="","",0)),IF($D$103=0,IF($E$103=0,0,"Ny data"),($E$103-$D$103)/$D$103)) ->  | H103: =IF($E$103="",IF($F$103>0,"Ny data",IF($F$103="","",0)),IF($E$103=0,IF($F$103=0,0,"Ny data"),($F$103-$E$103)/$E$103)) -> 
A104: Pumpestation (inkl. evt. hydrofor)/trykforøger, Konstruktioner | B104: m³/h | C104: 50 | D104: 600 | E104: 600 | F104: 600 | G104: =IF($D$104="",IF($E$104>0,"Ny data",IF($E$104="","",0)),IF($D$104=0,IF($E$104=0,0,"Ny data"),($E$104-$D$104)/$D$104)) -> 0 | H104: =IF($E$104="",IF($F$104>0,"Ny data",IF($F$104="","",0)),IF($E$104=0,IF($F$104=0,0,"Ny data"),($F$104-$E$104)/$E$104)) -> 0
A105: Pumpestation (inkl. evt. hydrofor)/trykforøger, Mek./EL | B105: m³/h | C105: 25 | D105: 600 | E105: 600 | F105: 600 | G105: =IF($D$105="",IF($E$105>0,"Ny data",IF($E$105="","",0)),IF($D$105=0,IF($E$105=0,0,"Ny data"),($E$105-$D$105)/$D$105)) -> 0 | H105: =IF($E$105="",IF($F$105>0,"Ny data",IF($F$105="","",0)),IF($E$105=0,IF($F$105=0,0,"Ny data"),($F$105-$E$105)/$E$105)) -> 0
A106: Pumpestation (inkl. evt. hydrofor)/trykforøger, SRO | B106: m³/h | C106: 10 | D106: 600 | E106: 600 | F106: 600 | G106: =IF($D$106="",IF($E$106>0,"Ny data",IF($E$106="","",0)),IF($D$106=0,IF($E$106=0,0,"Ny data"),($E$106-$D$106)/$D$106)) -> 0 | H106: =IF($E$106="",IF($F$106>0,"Ny data",IF($F$106="","",0)),IF($E$106=0,IF($F$106=0,0,"Ny data"),($F$106-$E$106)/$E$106)) -> 0
A107: Beholderanlæg - højdebeholder | B107: m³ | C107: 50 | D107: 0 | E107: 0 | F107: 0 | G107: =IF($D$107="",IF($E$107>0,"Ny data",IF($E$107="","",0)),IF($D$107=0,IF($E$107=0,0,"Ny data"),($E$107-$D$107)/$D$107)) -> 0 | H107: =IF($E$107="",IF($F$107>0,"Ny data",IF($F$107="","",0)),IF($E$107=0,IF($F$107=0,0,"Ny data"),($F$107-$E$107)/$E$107)) -> 0
A108: Beholderanlæg - vandtårn | B108: m³ | C108: 50 | D108: 0 | E108: 0 | F108: 0 | G108: =IF($D$108="",IF($E$108>0,"Ny data",IF($E$108="","",0)),IF($D$108=0,IF($E$108=0,0,"Ny data"),($E$108-$D$108)/$D$108)) -> 0 | H108: =IF($E$108="",IF($F$108>0,"Ny data",IF($F$108="","",0)),IF($E$108=0,IF($F$108=0,0,"Ny data"),($F$108-$E$108)/$E$108)) -> 0
A109: Pumpestationer, bygværker og bassiner 3 | G109: =IF($D$109="",IF($E$109>0,"Ny data",IF($E$109="","",0)),IF($D$109=0,IF($E$109=0,0,"Ny data"),($E$109-$D$109)/$D$109)) ->  | H109: =IF($E$109="",IF($F$109>0,"Ny data",IF($F$109="","",0)),IF($E$109=0,IF($F$109=0,0,"Ny data"),($F$109-$E$109)/$E$109)) -> 
A110: Pumpestation (inkl. evt. hydrofor)/trykforøger, Konstruktioner | B110: m³/h | C110: 50 | D110: 0 | G110: =IF($D$110="",IF($E$110>0,"Ny data",IF($E$110="","",0)),IF($D$110=0,IF($E$110=0,0,"Ny data"),($E$110-$D$110)/$D$110)) -> 0 | H110: =IF($E$110="",IF($F$110>0,"Ny data",IF($F$110="","",0)),IF($E$110=0,IF($F$110=0,0,"Ny data"),($F$110-$E$110)/$E$110)) -> 
A111: Pumpestation (inkl. evt. hydrofor)/trykforøger, Mek./EL | B111: m³/h | C111: 25 | D111: 0 | G111: =IF($D$111="",IF($E$111>0,"Ny data",IF($E$111="","",0)),IF($D$111=0,IF($E$111=0,0,"Ny data"),($E$111-$D$111)/$D$111)) -> 0 | H111: =IF($E$111="",IF($F$111>0,"Ny data",IF($F$111="","",0)),IF($E$111=0,IF($F$111=0,0,"Ny data"),($F$111-$E$111)/$E$111)) -> 
A112: Pumpestation (inkl. evt. hydrofor)/trykforøger, SRO | B112: m³/h | C112: 10 | D112: 0 | G112: =IF($D$112="",IF($E$112>0,"Ny data",IF($E$112="","",0)),IF($D$112=0,IF($E$112=0,0,"Ny data"),($E$112-$D$112)/$D$112)) -> 0 | H112: =IF($E$112="",IF($F$112>0,"Ny data",IF($F$112="","",0)),IF($E$112=0,IF($F$112=0,0,"Ny data"),($F$112-$E$112)/$E$112)) -> 
A113: Beholderanlæg - højdebeholder | B113: m³ | C113: 50 | D113: 0 | G113: =IF($D$113="",IF($E$113>0,"Ny data",IF($E$113="","",0)),IF($D$113=0,IF($E$113=0,0,"Ny data"),($E$113-$D$113)/$D$113)) -> 0 | H113: =IF($E$113="",IF($F$113>0,"Ny data",IF($F$113="","",0)),IF($E$113=0,IF($F$113=0,0,"Ny data"),($F$113-$E$113)/$E$113)) -> 
A114: Beholderanlæg - vandtårn | B114: m³ | C114: 50 | D114: 0 | G114: =IF($D$114="",IF($E$114>0,"Ny data",IF($E$114="","",0)),IF($D$114=0,IF($E$114=0,0,"Ny data"),($E$114-$D$114)/$D$114)) -> 0 | H114: =IF($E$114="",IF($F$114>0,"Ny data",IF($F$114="","",0)),IF($E$114=0,IF($F$114=0,0,"Ny data"),($F$114-$E$114)/$E$114)) -> 
A115: Pumpestationer, bygværker og bassiner 4 | G115: =IF($D$115="",IF($E$115>0,"Ny data",IF($E$115="","",0)),IF($D$115=0,IF($E$115=0,0,"Ny data"),($E$115-$D$115)/$D$115)) ->  | H115: =IF($E$115="",IF($F$115>0,"Ny data",IF($F$115="","",0)),IF($E$115=0,IF($F$115=0,0,"Ny data"),($F$115-$E$115)/$E$115)) -> 
A116: Pumpestation (inkl. evt. hydrofor)/trykforøger, Konstruktioner | B116: m³/h | C116: 50 | D116: 0 | G116: =IF($D$116="",IF($E$116>0,"Ny data",IF($E$116="","",0)),IF($D$116=0,IF($E$116=0,0,"Ny data"),($E$116-$D$116)/$D$116)) -> 0 | H116: =IF($E$116="",IF($F$116>0,"Ny data",IF($F$116="","",0)),IF($E$116=0,IF($F$116=0,0,"Ny data"),($F$116-$E$116)/$E$116)) -> 
A117: Pumpestation (inkl. evt. hydrofor)/trykforøger, Mek./EL | B117: m³/h | C117: 25 | D117: 0 | G117: =IF($D$117="",IF($E$117>0,"Ny data",IF($E$117="","",0)),IF($D$117=0,IF($E$117=0,0,"Ny data"),($E$117-$D$117)/$D$117)) -> 0 | H117: =IF($E$117="",IF($F$117>0,"Ny data",IF($F$117="","",0)),IF($E$117=0,IF($F$117=0,0,"Ny data"),($F$117-$E$117)/$E$117)) -> 
A118: Pumpestation (inkl. evt. hydrofor)/trykforøger, SRO | B118: m³/h | C118: 10 | D118: 0 | G118: =IF($D$118="",IF($E$118>0,"Ny data",IF($E$118="","",0)),IF($D$118=0,IF($E$118=0,0,"Ny data"),($E$118-$D$118)/$D$118)) -> 0 | H118: =IF($E$118="",IF($F$118>0,"Ny data",IF($F$118="","",0)),IF($E$118=0,IF($F$118=0,0,"Ny data"),($F$118-$E$118)/$E$118)) -> 
A119: Beholderanlæg - højdebeholder | B119: m³ | C119: 50 | D119: 0 | G119: =IF($D$119="",IF($E$119>0,"Ny data",IF($E$119="","",0)),IF($D$119=0,IF($E$119=0,0,"Ny data"),($E$119-$D$119)/$D$119)) -> 0 | H119: =IF($E$119="",IF($F$119>0,"Ny data",IF($F$119="","",0)),IF($E$119=0,IF($F$119=0,0,"Ny data"),($F$119-$E$119)/$E$119)) -> 
A120: Beholderanlæg - vandtårn | B120: m³ | C120: 50 | D120: 0 | G120: =IF($D$120="",IF($E$120>0,"Ny data",IF($E$120="","",0)),IF($D$120=0,IF($E$120=0,0,"Ny data"),($E$120-$D$120)/$D$120)) -> 0 | H120: =IF($E$120="",IF($F$120>0,"Ny data",IF($F$120="","",0)),IF($E$120=0,IF($F$120=0,0,"Ny data"),($F$120-$E$120)/$E$120)) -> 
A121: Pumpestationer, bygværker og bassiner 5 | G121: =IF($D$121="",IF($E$121>0,"Ny data",IF($E$121="","",0)),IF($D$121=0,IF($E$121=0,0,"Ny data"),($E$121-$D$121)/$D$121)) ->  | H121: =IF($E$121="",IF($F$121>0,"Ny data",IF($F$121="","",0)),IF($E$121=0,IF($F$121=0,0,"Ny data"),($F$121-$E$121)/$E$121)) -> 
A122: Pumpestation (inkl. evt. hydrofor)/trykforøger, Konstruktioner | B122: m³/h | C122: 50 | D122: 0 | G122: =IF($D$122="",IF($E$122>0,"Ny data",IF($E$122="","",0)),IF($D$122=0,IF($E$122=0,0,"Ny data"),($E$122-$D$122)/$D$122)) -> 0 | H122: =IF($E$122="",IF($F$122>0,"Ny data",IF($F$122="","",0)),IF($E$122=0,IF($F$122=0,0,"Ny data"),($F$122-$E$122)/$E$122)) -> 
A123: Pumpestation (inkl. evt. hydrofor)/trykforøger, Mek./EL | B123: m³/h | C123: 25 | D123: 0 | G123: =IF($D$123="",IF($E$123>0,"Ny data",IF($E$123="","",0)),IF($D$123=0,IF($E$123=0,0,"Ny data"),($E$123-$D$123)/$D$123)) -> 0 | H123: =IF($E$123="",IF($F$123>0,"Ny data",IF($F$123="","",0)),IF($E$123=0,IF($F$123=0,0,"Ny data"),($F$123-$E$123)/$E$123)) -> 
A124: Pumpestation (inkl. evt. hydrofor)/trykforøger, SRO | B124: m³/h | C124: 10 | D124: 0 | G124: =IF($D$124="",IF($E$124>0,"Ny data",IF($E$124="","",0)),IF($D$124=0,IF($E$124=0,0,"Ny data"),($E$124-$D$124)/$D$124)) -> 0 | H124: =IF($E$124="",IF($F$124>0,"Ny data",IF($F$124="","",0)),IF($E$124=0,IF($F$124=0,0,"Ny data"),($F$124-$E$124)/$E$124)) -> 
A125: Beholderanlæg - højdebeholder | B125: m³ | C125: 50 | D125: 0 | G125: =IF($D$125="",IF($E$125>0,"Ny data",IF($E$125="","",0)),IF($D$125=0,IF($E$125=0,0,"Ny data"),($E$125-$D$125)/$D$125)) -> 0 | H125: =IF($E$125="",IF($F$125>0,"Ny data",IF($F$125="","",0)),IF($E$125=0,IF($F$125=0,0,"Ny data"),($F$125-$E$125)/$E$125)) -> 
A126: Beholderanlæg - vandtårn | B126: m³ | C126: 50 | D126: 0 | G126: =IF($D$126="",IF($E$126>0,"Ny data",IF($E$126="","",0)),IF($D$126=0,IF($E$126=0,0,"Ny data"),($E$126-$D$126)/$D$126)) -> 0 | H126: =IF($E$126="",IF($F$126>0,"Ny data",IF($F$126="","",0)),IF($E$126=0,IF($F$126=0,0,"Ny data"),($F$126-$E$126)/$E$126)) -> 
A127: Pumpestationer, bygværker og bassiner 6 | G127: =IF($D$127="",IF($E$127>0,"Ny data",IF($E$127="","",0)),IF($D$127=0,IF($E$127=0,0,"Ny data"),($E$127-$D$127)/$D$127)) ->  | H127: =IF($E$127="",IF($F$127>0,"Ny data",IF($F$127="","",0)),IF($E$127=0,IF($F$127=0,0,"Ny data"),($F$127-$E$127)/$E$127)) -> 
A128: Pumpestation (inkl. evt. hydrofor)/trykforøger, Konstruktioner | B128: m³/h | C128: 50 | D128: 0 | G128: =IF($D$128="",IF($E$128>0,"Ny data",IF($E$128="","",0)),IF($D$128=0,IF($E$128=0,0,"Ny data"),($E$128-$D$128)/$D$128)) -> 0 | H128: =IF($E$128="",IF($F$128>0,"Ny data",IF($F$128="","",0)),IF($E$128=0,IF($F$128=0,0,"Ny data"),($F$128-$E$128)/$E$128)) -> 
A129: Pumpestation (inkl. evt. hydrofor)/trykforøger, Mek./EL | B129: m³/h | C129: 25 | D129: 0 | G129: =IF($D$129="",IF($E$129>0,"Ny data",IF($E$129="","",0)),IF($D$129=0,IF($E$129=0,0,"Ny data"),($E$129-$D$129)/$D$129)) -> 0 | H129: =IF($E$129="",IF($F$129>0,"Ny data",IF($F$129="","",0)),IF($E$129=0,IF($F$129=0,0,"Ny data"),($F$129-$E$129)/$E$129)) -> 
A130: Pumpestation (inkl. evt. hydrofor)/trykforøger, SRO | B130: m³/h | C130: 10 | D130: 0 | G130: =IF($D$130="",IF($E$130>0,"Ny data",IF($E$130="","",0)),IF($D$130=0,IF($E$130=0,0,"Ny data"),($E$130-$D$130)/$D$130)) -> 0 | H130: =IF($E$130="",IF($F$130>0,"Ny data",IF($F$130="","",0)),IF($E$130=0,IF($F$130=0,0,"Ny data"),($F$130-$E$130)/$E$130)) -> 
A131: Beholderanlæg - højdebeholder | B131: m³ | C131: 50 | D131: 0 | G131: =IF($D$131="",IF($E$131>0,"Ny data",IF($E$131="","",0)),IF($D$131=0,IF($E$131=0,0,"Ny data"),($E$131-$D$131)/$D$131)) -> 0 | H131: =IF($E$131="",IF($F$131>0,"Ny data",IF($F$131="","",0)),IF($E$131=0,IF($F$131=0,0,"Ny data"),($F$131-$E$131)/$E$131)) -> 
A132: Beholderanlæg - vandtårn | B132: m³ | C132: 50 | D132: 0 | G132: =IF($D$132="",IF($E$132>0,"Ny data",IF($E$132="","",0)),IF($D$132=0,IF($E$132=0,0,"Ny data"),($E$132-$D$132)/$D$132)) -> 0 | H132: =IF($E$132="",IF($F$132>0,"Ny data",IF($F$132="","",0)),IF($E$132=0,IF($F$132=0,0,"Ny data"),($F$132-$E$132)/$E$132)) -> 
A133: Pumpestationer, bygværker og bassiner 7 | G133: =IF($D$133="",IF($E$133>0,"Ny data",IF($E$133="","",0)),IF($D$133=0,IF($E$133=0,0,"Ny data"),($E$133-$D$133)/$D$133)) ->  | H133: =IF($E$133="",IF($F$133>0,"Ny data",IF($F$133="","",0)),IF($E$133=0,IF($F$133=0,0,"Ny data"),($F$133-$E$133)/$E$133)) -> 
A134: Pumpestation (inkl. evt. hydrofor)/trykforøger, Konstruktioner | B134: m³/h | C134: 50 | D134: 0 | G134: =IF($D$134="",IF($E$134>0,"Ny data",IF($E$134="","",0)),IF($D$134=0,IF($E$134=0,0,"Ny data"),($E$134-$D$134)/$D$134)) -> 0 | H134: =IF($E$134="",IF($F$134>0,"Ny data",IF($F$134="","",0)),IF($E$134=0,IF($F$134=0,0,"Ny data"),($F$134-$E$134)/$E$134)) -> 
A135: Pumpestation (inkl. evt. hydrofor)/trykforøger, Mek./EL | B135: m³/h | C135: 25 | D135: 0 | G135: =IF($D$135="",IF($E$135>0,"Ny data",IF($E$135="","",0)),IF($D$135=0,IF($E$135=0,0,"Ny data"),($E$135-$D$135)/$D$135)) -> 0 | H135: =IF($E$135="",IF($F$135>0,"Ny data",IF($F$135="","",0)),IF($E$135=0,IF($F$135=0,0,"Ny data"),($F$135-$E$135)/$E$135)) -> 
A136: Pumpestation (inkl. evt. hydrofor)/trykforøger, SRO | B136: m³/h | C136: 10 | D136: 0 | G136: =IF($D$136="",IF($E$136>0,"Ny data",IF($E$136="","",0)),IF($D$136=0,IF($E$136=0,0,"Ny data"),($E$136-$D$136)/$D$136)) -> 0 | H136: =IF($E$136="",IF($F$136>0,"Ny data",IF($F$136="","",0)),IF($E$136=0,IF($F$136=0,0,"Ny data"),($F$136-$E$136)/$E$136)) -> 
A137: Beholderanlæg - højdebeholder | B137: m³ | C137: 50 | D137: 0 | G137: =IF($D$137="",IF($E$137>0,"Ny data",IF($E$137="","",0)),IF($D$137=0,IF($E$137=0,0,"Ny data"),($E$137-$D$137)/$D$137)) -> 0 | H137: =IF($E$137="",IF($F$137>0,"Ny data",IF($F$137="","",0)),IF($E$137=0,IF($F$137=0,0,"Ny data"),($F$137-$E$137)/$E$137)) -> 
A138: Beholderanlæg - vandtårn | B138: m³ | C138: 50 | D138: 0 | G138: =IF($D$138="",IF($E$138>0,"Ny data",IF($E$138="","",0)),IF($D$138=0,IF($E$138=0,0,"Ny data"),($E$138-$D$138)/$D$138)) -> 0 | H138: =IF($E$138="",IF($F$138>0,"Ny data",IF($F$138="","",0)),IF($E$138=0,IF($F$138=0,0,"Ny data"),($F$138-$E$138)/$E$138)) -> 
A139: Pumpestationer, bygværker og bassiner 8 | G139: =IF($D$139="",IF($E$139>0,"Ny data",IF($E$139="","",0)),IF($D$139=0,IF($E$139=0,0,"Ny data"),($E$139-$D$139)/$D$139)) ->  | H139: =IF($E$139="",IF($F$139>0,"Ny data",IF($F$139="","",0)),IF($E$139=0,IF($F$139=0,0,"Ny data"),($F$139-$E$139)/$E$139)) -> 
A140: Pumpestation (inkl. evt. hydrofor)/trykforøger, Konstruktioner | B140: m³/h | C140: 50 | D140: 0 | G140: =IF($D$140="",IF($E$140>0,"Ny data",IF($E$140="","",0)),IF($D$140=0,IF($E$140=0,0,"Ny data"),($E$140-$D$140)/$D$140)) -> 0 | H140: =IF($E$140="",IF($F$140>0,"Ny data",IF($F$140="","",0)),IF($E$140=0,IF($F$140=0,0,"Ny data"),($F$140-$E$140)/$E$140)) -> 
A141: Pumpestation (inkl. evt. hydrofor)/trykforøger, Mek./EL | B141: m³/h | C141: 25 | D141: 0 | G141: =IF($D$141="",IF($E$141>0,"Ny data",IF($E$141="","",0)),IF($D$141=0,IF($E$141=0,0,"Ny data"),($E$141-$D$141)/$D$141)) -> 0 | H141: =IF($E$141="",IF($F$141>0,"Ny data",IF($F$141="","",0)),IF($E$141=0,IF($F$141=0,0,"Ny data"),($F$141-$E$141)/$E$141)) -> 
A142: Pumpestation (inkl. evt. hydrofor)/trykforøger, SRO | B142: m³/h | C142: 10 | D142: 0 | G142: =IF($D$142="",IF($E$142>0,"Ny data",IF($E$142="","",0)),IF($D$142=0,IF($E$142=0,0,"Ny data"),($E$142-$D$142)/$D$142)) -> 0 | H142: =IF($E$142="",IF($F$142>0,"Ny data",IF($F$142="","",0)),IF($E$142=0,IF($F$142=0,0,"Ny data"),($F$142-$E$142)/$E$142)) -> 
A143: Beholderanlæg - højdebeholder | B143: m³ | C143: 50 | D143: 0 | G143: =IF($D$143="",IF($E$143>0,"Ny data",IF($E$143="","",0)),IF($D$143=0,IF($E$143=0,0,"Ny data"),($E$143-$D$143)/$D$143)) -> 0 | H143: =IF($E$143="",IF($F$143>0,"Ny data",IF($F$143="","",0)),IF($E$143=0,IF($F$143=0,0,"Ny data"),($F$143-$E$143)/$E$143)) -> 
A144: Beholderanlæg - vandtårn | B144: m³ | C144: 50 | D144: 0 | G144: =IF($D$144="",IF($E$144>0,"Ny data",IF($E$144="","",0)),IF($D$144=0,IF($E$144=0,0,"Ny data"),($E$144-$D$144)/$D$144)) -> 0 | H144: =IF($E$144="",IF($F$144>0,"Ny data",IF($F$144="","",0)),IF($E$144=0,IF($F$144=0,0,"Ny data"),($F$144-$E$144)/$E$144)) -> 
A145: Pumpestationer, bygværker og bassiner 9 | G145: =IF($D$145="",IF($E$145>0,"Ny data",IF($E$145="","",0)),IF($D$145=0,IF($E$145=0,0,"Ny data"),($E$145-$D$145)/$D$145)) ->  | H145: =IF($E$145="",IF($F$145>0,"Ny data",IF($F$145="","",0)),IF($E$145=0,IF($F$145=0,0,"Ny data"),($F$145-$E$145)/$E$145)) -> 
A146: Pumpestation (inkl. evt. hydrofor)/trykforøger, Konstruktioner | B146: m³/h | C146: 50 | D146: 0 | G146: =IF($D$146="",IF($E$146>0,"Ny data",IF($E$146="","",0)),IF($D$146=0,IF($E$146=0,0,"Ny data"),($E$146-$D$146)/$D$146)) -> 0 | H146: =IF($E$146="",IF($F$146>0,"Ny data",IF($F$146="","",0)),IF($E$146=0,IF($F$146=0,0,"Ny data"),($F$146-$E$146)/$E$146)) -> 
A147: Pumpestation (inkl. evt. hydrofor)/trykforøger, Mek./EL | B147: m³/h | C147: 25 | D147: 0 | G147: =IF($D$147="",IF($E$147>0,"Ny data",IF($E$147="","",0)),IF($D$147=0,IF($E$147=0,0,"Ny data"),($E$147-$D$147)/$D$147)) -> 0 | H147: =IF($E$147="",IF($F$147>0,"Ny data",IF($F$147="","",0)),IF($E$147=0,IF($F$147=0,0,"Ny data"),($F$147-$E$147)/$E$147)) -> 
A148: Pumpestation (inkl. evt. hydrofor)/trykforøger, SRO | B148: m³/h | C148: 10 | D148: 0 | G148: =IF($D$148="",IF($E$148>0,"Ny data",IF($E$148="","",0)),IF($D$148=0,IF($E$148=0,0,"Ny data"),($E$148-$D$148)/$D$148)) -> 0 | H148: =IF($E$148="",IF($F$148>0,"Ny data",IF($F$148="","",0)),IF($E$148=0,IF($F$148=0,0,"Ny data"),($F$148-$E$148)/$E$148)) -> 
A149: Beholderanlæg - højdebeholder | B149: m³ | C149: 50 | D149: 0 | G149: =IF($D$149="",IF($E$149>0,"Ny data",IF($E$149="","",0)),IF($D$149=0,IF($E$149=0,0,"Ny data"),($E$149-$D$149)/$D$149)) -> 0 | H149: =IF($E$149="",IF($F$149>0,"Ny data",IF($F$149="","",0)),IF($E$149=0,IF($F$149=0,0,"Ny data"),($F$149-$E$149)/$E$149)) -> 
A150: Beholderanlæg - vandtårn | B150: m³ | C150: 50 | D150: 0 | G150: =IF($D$150="",IF($E$150>0,"Ny data",IF($E$150="","",0)),IF($D$150=0,IF($E$150=0,0,"Ny data"),($E$150-$D$150)/$D$150)) -> 0 | H150: =IF($E$150="",IF($F$150>0,"Ny data",IF($F$150="","",0)),IF($E$150=0,IF($F$150=0,0,"Ny data"),($F$150-$E$150)/$E$150)) -> 
A151: Pumpestationer, bygværker og bassiner 10 | G151: =IF($D$151="",IF($E$151>0,"Ny data",IF($E$151="","",0)),IF($D$151=0,IF($E$151=0,0,"Ny data"),($E$151-$D$151)/$D$151)) ->  | H151: =IF($E$151="",IF($F$151>0,"Ny data",IF($F$151="","",0)),IF($E$151=0,IF($F$151=0,0,"Ny data"),($F$151-$E$151)/$E$151)) -> 
A152: Pumpestation (inkl. evt. hydrofor)/trykforøger, Konstruktioner | B152: m³/h | C152: 50 | D152: 0 | G152: =IF($D$152="",IF($E$152>0,"Ny data",IF($E$152="","",0)),IF($D$152=0,IF($E$152=0,0,"Ny data"),($E$152-$D$152)/$D$152)) -> 0 | H152: =IF($E$152="",IF($F$152>0,"Ny data",IF($F$152="","",0)),IF($E$152=0,IF($F$152=0,0,"Ny data"),($F$152-$E$152)/$E$152)) -> 
A153: Pumpestation (inkl. evt. hydrofor)/trykforøger, Mek./EL | B153: m³/h | C153: 25 | D153: 0 | G153: =IF($D$153="",IF($E$153>0,"Ny data",IF($E$153="","",0)),IF($D$153=0,IF($E$153=0,0,"Ny data"),($E$153-$D$153)/$D$153)) -> 0 | H153: =IF($E$153="",IF($F$153>0,"Ny data",IF($F$153="","",0)),IF($E$153=0,IF($F$153=0,0,"Ny data"),($F$153-$E$153)/$E$153)) -> 
A154: Pumpestation (inkl. evt. hydrofor)/trykforøger, SRO | B154: m³/h | C154: 10 | D154: 0 | G154: =IF($D$154="",IF($E$154>0,"Ny data",IF($E$154="","",0)),IF($D$154=0,IF($E$154=0,0,"Ny data"),($E$154-$D$154)/$D$154)) -> 0 | H154: =IF($E$154="",IF($F$154>0,"Ny data",IF($F$154="","",0)),IF($E$154=0,IF($F$154=0,0,"Ny data"),($F$154-$E$154)/$E$154)) -> 
A155: Beholderanlæg - højdebeholder | B155: m³ | C155: 50 | D155: 0 | G155: =IF($D$155="",IF($E$155>0,"Ny data",IF($E$155="","",0)),IF($D$155=0,IF($E$155=0,0,"Ny data"),($E$155-$D$155)/$D$155)) -> 0 | H155: =IF($E$155="",IF($F$155>0,"Ny data",IF($F$155="","",0)),IF($E$155=0,IF($F$155=0,0,"Ny data"),($F$155-$E$155)/$E$155)) -> 
A156: Beholderanlæg - vandtårn | B156: m³ | C156: 50 | D156: 0 | G156: =IF($D$156="",IF($E$156>0,"Ny data",IF($E$156="","",0)),IF($D$156=0,IF($E$156=0,0,"Ny data"),($E$156-$D$156)/$D$156)) -> 0 | H156: =IF($E$156="",IF($F$156>0,"Ny data",IF($F$156="","",0)),IF($E$156=0,IF($F$156=0,0,"Ny data"),($F$156-$E$156)/$E$156)) -> 
A157: Pumpestation (inkl. evt. hydrofor)/trykforøger, Konstruktioner | B157: m³/h | C157: 50 | D157: 0 | G157: =IF($D$157="",IF($E$157>0,"Ny data",IF($E$157="","",0)),IF($D$157=0,IF($E$157=0,0,"Ny data"),($E$157-$D$157)/$D$157)) -> 0 | H157: =IF($E$157="",IF($F$157>0,"Ny data",IF($F$157="","",0)),IF($E$157=0,IF($F$157=0,0,"Ny data"),($F$157-$E$157)/$E$157)) -> 
A158: Pumpestation (inkl. evt. hydrofor)/trykforøger, Mek./EL | B158: m³/h | C158: 25 | D158: 0 | G158: =IF($D$158="",IF($E$158>0,"Ny data",IF($E$158="","",0)),IF($D$158=0,IF($E$158=0,0,"Ny data"),($E$158-$D$158)/$D$158)) -> 0 | H158: =IF($E$158="",IF($F$158>0,"Ny data",IF($F$158="","",0)),IF($E$158=0,IF($F$158=0,0,"Ny data"),($F$158-$E$158)/$E$158)) -> 
A159: Pumpestation (inkl. evt. hydrofor)/trykforøger, SRO | B159: m³/h | C159: 10 | D159: 0 | G159: =IF($D$159="",IF($E$159>0,"Ny data",IF($E$159="","",0)),IF($D$159=0,IF($E$159=0,0,"Ny data"),($E$159-$D$159)/$D$159)) -> 0 | H159: =IF($E$159="",IF($F$159>0,"Ny data",IF($F$159="","",0)),IF($E$159=0,IF($F$159=0,0,"Ny data"),($F$159-$E$159)/$E$159)) -> 
A160: Beholderanlæg - højdebeholder | B160: m³ | C160: 50 | D160: 0 | G160: =IF($D$160="",IF($E$160>0,"Ny data",IF($E$160="","",0)),IF($D$160=0,IF($E$160=0,0,"Ny data"),($E$160-$D$160)/$D$160)) -> 0 | H160: =IF($E$160="",IF($F$160>0,"Ny data",IF($F$160="","",0)),IF($E$160=0,IF($F$160=0,0,"Ny data"),($F$160-$E$160)/$E$160)) -> 
A161: Beholderanlæg - vandtårn | B161: m³ | C161: 50 | D161: 0 | G161: =IF($D$161="",IF($E$161>0,"Ny data",IF($E$161="","",0)),IF($D$161=0,IF($E$161=0,0,"Ny data"),($E$161-$D$161)/$D$161)) -> 0 | H161: =IF($E$161="",IF($F$161>0,"Ny data",IF($F$161="","",0)),IF($E$161=0,IF($F$161=0,0,"Ny data"),($F$161-$E$161)/$E$161)) -> 
A162: Andre | G162: =IF($D$162="",IF($E$162>0,"Ny data",IF($E$162="","",0)),IF($D$162=0,IF($E$162=0,0,"Ny data"),($E$162-$D$162)/$D$162)) ->  | H162: =IF($E$162="",IF($F$162>0,"Ny data",IF($F$162="","",0)),IF($E$162=0,IF($F$162=0,0,"Ny data"),($F$162-$E$162)/$E$162)) -> 
A163: Afregningsmålere, mekaniske, | B163: stk. | C163: 8 | D163: 11737 | E163: 7488 | F163: 586 | G163: =IF($D$163="",IF($E$163>0,"Ny data",IF($E$163="","",0)),IF($D$163=0,IF($E$163=0,0,"Ny data"),($E$163-$D$163)/$D$163)) -> -0.3620175513 | H163: =IF($E$163="",IF($F$163>0,"Ny data",IF($F$163="","",0)),IF($E$163=0,IF($F$163=0,0,"Ny data"),($F$163-$E$163)/$E$163)) -> -0.921741453 | I163: Projekt med etablering af fjernaflæsing
A164: Afregningsmålere, elektroniske med maksimal gennemstrømning ≤ 4 m3/t | B164: stk. | C164: 10 | D164: 0 | E164: 4055 | F164: 11107 | G164: =IF($D$164="",IF($E$164>0,"Ny data",IF($E$164="","",0)),IF($D$164=0,IF($E$164=0,0,"Ny data"),($E$164-$D$164)/$D$164)) -> Ny data | H164: =IF($E$164="",IF($F$164>0,"Ny data",IF($F$164="","",0)),IF($E$164=0,IF($F$164=0,0,"Ny data"),($F$164-$E$164)/$E$164)) -> 1.739087546 | I164: Projekt med etablering af fjernaflæsing
A165: Afregningsmålere, elektroniske med maksimal gennemstrømning > 4 m3/t ≤ 15 m3/t | B165: stk. | C165: 10 | D165: 0 | E165: 169 | F165: 444 | G165: =IF($D$165="",IF($E$165>0,"Ny data",IF($E$165="","",0)),IF($D$165=0,IF($E$165=0,0,"Ny data"),($E$165-$D$165)/$D$165)) -> Ny data | H165: =IF($E$165="",IF($F$165>0,"Ny data",IF($F$165="","",0)),IF($E$165=0,IF($F$165=0,0,"Ny data"),($F$165-$E$165)/$E$165)) -> 1.627218935 | I165: Projekt med etablering af fjernaflæsing
A166: Afregningsmålere, elektroniske med maksimal gennemstrømning > 15 m3/t ≤ 300 m3/t | B166: stk. | C166: 10 | D166: 0 | E166: 62 | F166: 74 | G166: =IF($D$166="",IF($E$166>0,"Ny data",IF($E$166="","",0)),IF($D$166=0,IF($E$166=0,0,"Ny data"),($E$166-$D$166)/$D$166)) -> Ny data | H166: =IF($E$166="",IF($F$166>0,"Ny data",IF($F$166="","",0)),IF($E$166=0,IF($F$166=0,0,"Ny data"),($F$166-$E$166)/$E$166)) -> 0.1935483871 | I166: Projekt med etablering af fjernaflæsing
A167: Afregningsmålere, elektroniske med maksimal gennemstrømning > 300 m3/t | B167: stk. | C167: 10 | D167: 0 | E167: 0 | F167: 0 | G167: =IF($D$167="",IF($E$167>0,"Ny data",IF($E$167="","",0)),IF($D$167=0,IF($E$167=0,0,"Ny data"),($E$167-$D$167)/$D$167)) -> 0 | H167: =IF($E$167="",IF($F$167>0,"Ny data",IF($F$167="","",0)),IF($E$167=0,IF($F$167=0,0,"Ny data"),($F$167-$E$167)/$E$167)) -> 0
A168: SRO-brønd/kvarterbrønd/sektionsbrønd, Konstruktioner | B168: stk. | C168: 50 | D168: 22 | E168: 22 | F168: 22 | G168: =IF($D$168="",IF($E$168>0,"Ny data",IF($E$168="","",0)),IF($D$168=0,IF($E$168=0,0,"Ny data"),($E$168-$D$168)/$D$168)) -> 0 | H168: =IF($E$168="",IF($F$168>0,"Ny data",IF($F$168="","",0)),IF($E$168=0,IF($F$168=0,0,"Ny data"),($F$168-$E$168)/$E$168)) -> 0
A169: SRO-brønd/kvarterbrønd/sektionsbrønd, Mek./EL | B169: stk. | C169: 15 | D169: 22 | E169: 22 | F169: 22 | G169: =IF($D$169="",IF($E$169>0,"Ny data",IF($E$169="","",0)),IF($D$169=0,IF($E$169=0,0,"Ny data"),($E$169-$D$169)/$D$169)) -> 0 | H169: =IF($E$169="",IF($F$169>0,"Ny data",IF($F$169="","",0)),IF($E$169=0,IF($F$169=0,0,"Ny data"),($F$169-$E$169)/$E$169)) -> 0
A170: SRO-brønd/kvarterbrønd/sektionsbrønd, SRO | B170: stk. | C170: 10 | D170: 22 | E170: 22 | F170: 22 | G170: =IF($D$170="",IF($E$170>0,"Ny data",IF($E$170="","",0)),IF($D$170=0,IF($E$170=0,0,"Ny data"),($E$170-$D$170)/$D$170)) -> 0 | H170: =IF($E$170="",IF($F$170>0,"Ny data",IF($F$170="","",0)),IF($E$170=0,IF($F$170=0,0,"Ny data"),($F$170-$E$170)/$E$170)) -> 0
A184: FEJL

Sheet Fællesfunktionsanlæg
A1: Fællesfunktionsanlæg | B1: Enhed | C1: Standard-levetid | D1: Samlet mængde per 31/12-2019 | E1: Samlet mængde per 31/12-2020 | F1: Samlet mængde per 31/12-2021 | G1: Afvigelse 2019-2020 | H1: Afvigelse 2020-2021 | I1: Bemærkninger
A3: Andre | G3: =IF($D$3="",IF($E$3>0,"Ny data",IF($E$3="","",0)),IF($D$3=0,IF($E$3=0,0,"Ny data"),($E$3-$D$3)/$D$3)) ->  | H3: =IF($E$3="",IF($F$3>0,"Ny data",IF($F$3="","",0)),IF($E$3=0,IF($F$3=0,0,"Ny data"),($F$3-$E$3)/$E$3)) -> 
A4: Arbejdsplads og kontor | B4: stk. | C4: 5 | D4: 23.94 | E4: 25.46 | F4: 26.9 | G4: =IF($D$4="",IF($E$4>0,"Ny data",IF($E$4="","",0)),IF($D$4=0,IF($E$4=0,0,"Ny data"),($E$4-$D$4)/$D$4)) -> 0.06349206349 | H4: =IF($E$4="",IF($F$4>0,"Ny data",IF($F$4="","",0)),IF($E$4=0,IF($F$4=0,0,"Ny data"),($F$4-$E$4)/$E$4)) -> 0.05655930872
A5: Køretøjer, personbil | B5: stk. | C5: 5 | D5: 1.1 | E5: 1.1 | F5: 0.76 | G5: =IF($D$5="",IF($E$5>0,"Ny data",IF($E$5="","",0)),IF($D$5=0,IF($E$5=0,0,"Ny data"),($E$5-$D$5)/$D$5)) -> 0 | H5: =IF($E$5="",IF($F$5>0,"Ny data",IF($F$5="","",0)),IF($E$5=0,IF($F$5=0,0,"Ny data"),($F$5-$E$5)/$E$5)) -> -0.3090909091 | I5: solgt i 2021
A6: Køretøjer, små lastvogne (< 3.500 kg.) | B6: stk. | C6: 5 | D6: 7.11 | E6: 7.11 | F6: 7.36 | G6: =IF($D$6="",IF($E$6>0,"Ny data",IF($E$6="","",0)),IF($D$6=0,IF($E$6=0,0,"Ny data"),($E$6-$D$6)/$D$6)) -> 0 | H6: =IF($E$6="",IF($F$6>0,"Ny data",IF($F$6="","",0)),IF($E$6=0,IF($F$6=0,0,"Ny data"),($F$6-$E$6)/$E$6)) -> 0.03516174402
A7: Køretøjer, store lastvogne (> 3.500 kg.) | B7: stk. | C7: 5 | D7: 3.89 | E7: 3.89 | F7: 3.98 | G7: =IF($D$7="",IF($E$7>0,"Ny data",IF($E$7="","",0)),IF($D$7=0,IF($E$7=0,0,"Ny data"),($E$7-$D$7)/$D$7)) -> 0 | H7: =IF($E$7="",IF($F$7>0,"Ny data",IF($F$7="","",0)),IF($E$7=0,IF($F$7=0,0,"Ny data"),($F$7-$E$7)/$E$7)) -> 0.02313624679
A8: Køretøjer, entreprenørmaskiner | B8: stk. | C8: 5 | D8: 0.25 | E8: 0.25 | F8: 0.08 | G8: =IF($D$8="",IF($E$8>0,"Ny data",IF($E$8="","",0)),IF($D$8=0,IF($E$8=0,0,"Ny data"),($E$8-$D$8)/$D$8)) -> 0 | H8: =IF($E$8="",IF($F$8>0,"Ny data",IF($F$8="","",0)),IF($E$8=0,IF($F$8=0,0,"Ny data"),($F$8-$E$8)/$E$8)) -> -0.68 | I8: solgt i 2021
A9: Solcelleanlæg ekskl. inverter | B9: kWp | C9: 25 | D9: 0 | E9: 0 | F9: 0 | G9: =IF($D$9="",IF($E$9>0,"Ny data",IF($E$9="","",0)),IF($D$9=0,IF($E$9=0,0,"Ny data"),($E$9-$D$9)/$D$9)) -> 0 | H9: =IF($E$9="",IF($F$9>0,"Ny data",IF($F$9="","",0)),IF($E$9=0,IF($F$9=0,0,"Ny data"),($F$9-$E$9)/$E$9)) -> 0
A10: Inverter til solcelleanlæg | B10: kWp | C10: 10 | D10: 0 | E10: 0 | F10: 0 | G10: =IF($D$10="",IF($E$10>0,"Ny data",IF($E$10="","",0)),IF($D$10=0,IF($E$10=0,0,"Ny data"),($E$10-$D$10)/$D$10)) -> 0 | H10: =IF($E$10="",IF($F$10>0,"Ny data",IF($F$10="","",0)),IF($E$10=0,IF($F$10=0,0,"Ny data"),($F$10-$E$10)/$E$10)) -> 0
